{"text_format":"1","workbook":"xlsx","n_sheets":18,"sheets":["Mapping Original","CalHome Coverpage","Applicant and Activity","MAPPING","Mortgage Asst MA - Article 4","OOR - Article 5","Shared Hsng SHP - Article 7","ADU-JADU - Article 8","Self-Help SHTA - Article 6","Develop Project PDL - Article 9","PDL Env & Land Use - Article 9","Sources","Allocations","CalHomeDR2021scoring","Certification & Legal","CalHome2021scoring","Application Support","Dropdowns"],"not_rendered":{"charts":0,"images":2,"macros":1,"external_links":5,"defined_names":632,"comments":14,"pivot_tables":0},"unopened":[],"bounds":{"document_bytes":16777216,"sheet_cells":100000,"rows_first":2000,"rows_last":500,"rows_between":2000,"halvings":0,"cell_chars":16384,"cell_head_chars":4096},"cells_cut":0,"cells_raw":0,"read":"whole","date_system":"1900"}

{"sheet":"Mapping Original","index":0,"n_rows":4,"n_cols":184,"rows_kept":4,"cut":false,"hidden":true,"merged":[[1,176,2,176],[1,177,1,182],[1,183,2,183],[1,163,1,168],[1,81,1,87],[1,88,1,94],[1,95,1,101],[1,102,1,108],[1,109,1,115],[1,142,1,147],[0,134,1,141],[1,148,2,148],[1,149,1,154],[1,155,2,155],[1,156,1,161],[1,162,2,162],[0,142,0,182],[1,169,2,169],[1,170,1,175],[1,54,2,54],[1,55,2,55],[1,56,2,56],[1,57,2,57],[1,80,2,80],[1,63,2,63],[1,64,2,64],[1,65,2,65],[1,66,2,66],[1,67,2,67],[1,68,2,68],[1,69,2,69],[1,70,2,70],[1,71,2,71],[1,72,2,78],[1,79,2,79],[1,49,2,49],[1,50,2,50],[1,51,2,51],[1,52,2,52],[1,53,2,53],[1,20,2,20],[1,21,1,22],[1,23,1,24],[1,25,1,26],[1,43,2,43],[0,61,0,63],[0,64,0,117],[0,118,1,125],[0,126,1,133],[1,41,2,41],[1,59,2,59],[1,60,2,60],[1,61,2,61],[1,62,2,62],[0,56,0,57],[0,58,0,60],[1,44,2,44],[1,45,2,45],[1,58,2,58],[1,47,2,47],[1,48,2,48],[0,18,2,18],[0,19,0,20],[0,21,0,38],[0,39,0,43],[0,44,0,55],[1,35,1,36],[1,37,1,38],[1,39,2,39],[1,40,2,40],[1,46,2,46],[1,42,2,42],[1,27,1,28],[1,29,1,30],[1,31,1,32],[1,33,1,34],[1,19,2,19],[0,17,2,17],[0,6,2,6],[0,7,2,7],[0,8,2,8],[0,9,2,9],[0,10,2,10],[0,11,2,11],[0,12,2,12],[0,13,2,13],[0,14,2,14],[0,15,2,15],[0,16,2,16],[0,5,2,5],[0,0,2,0],[0,1,2,1],[0,2,2,2],[0,3,2,3],[0,4,2,4]]}
["Count","HCD Contract #","CAPES App#","Received Date/Time","Applicant Name","Applicant Type","Applicant Street Address","Applicant City","State","Applicant Zip Code","Applicant County","Authorized\nRep Name","Authorized\nRep Title","Authorized\nRep Email","Authorized\nRep Phone #","Contact Person\nName","Contact Person\nTitle","Contact Person\nEmail","Contact Person Phone Number","Eligible Activities §7718",null,"Total Uses of Funds §7719: Activity Type",null,null,null,null,null,null,null,null,null,null,null,null,null,null,null,null,null,"MA - Article 4",null,null,null,null,"OOR - Article 5",null,null,null,null,null,null,null,null,null,null,null,"SHP - Article 7",null,"ADU/JADU - Article 8",null,null,"SHTA - Article 6",null,null,"PDL - Article 8",null,null,null,null,null,null,null,null,null,null,null,null,null,null,null,null,null,null,null,null,null,null,null,null,null,null,null,null,null,null,null,null,null,null,null,null,null,null,null,null,null,null,null,null,null,null,null,null,null,null,null,null,null,"State Assembly",null,null,null,null,null,null,null,"State Senate",null,null,null,null,null,null,null,"U.S. House of Representatives",null,null,null,null,null,null,null,"Self-Score"]
[null,null,null,null,null,null,null,null,null,null,null,null,null,null,null,null,null,null,null,"Program Activities","Project Activities","First-Time Homebuyer for Mortgage Assistance §7718(a)(1)",null,"Owner-Occupied Rehabilitation §7718(a)(2)",null,"Technical Assistance for Shared Housing Program §7718(a)(4)",null,"Accessory Dwelling units (ADU)/Junior Accessory Dwelling units (JADU) Programs",null,"Program Activity Total",null,"Homeownership Project Development Loans §7718(b)",null,"Technical Assistance for Self-Help Housing Projects §7718(a)(3)",null,"Project Activity Total",null,"TOTAL FUNDS REQUEST",null,"Number of units to be assisted","MA Funds Requested","MA Activity Delivery Fee (10% of the award): §7729(d) (see NOFA, p. 9)","Total MA Funds","Does the Applicant currently provide Homebuyer Education classes?","OOR Activity 1","Regular/Substantial Rehab 1?","OOR Activity 2","Regular/Substantial Rehab 2?","OOR Activity 3","Regular/Substantial Rehab 3?","Proposed # of Assisted non-manufactured units","OOR Funds Requested","OOR Funds for units that need regular rehabilitation:","OOR Funds for units that need substantial rehabilitation","OOR Activity Delivery Fee (20% of the award): §7729(d) (see NOFA, p. 9)","Total OOR Funds","SHP Funds Requested","Total SHP Funds","Number of units to be assisted","ADU/JADU Funds Requested","Total ADU/JADU Funds","Number of units to be assisted","SHTA Funds Requested","Total SHTA Funds","Number of units to be assisted","PDL Funds Requested","Total PDL Funds","Development Name","Address","City ","County","Zip","APN(s)",null,null,null,null,null,null,"Proposed Development total units","Unit Type","Unit Breakdown 1",null,null,null,null,null,null,"Unit Breakdown 2",null,null,null,null,null,null,"Unit Breakdown 3",null,null,null,null,null,null,"Unit Breakdown 4",null,null,null,null,null,null,"Unit Breakdown 5",null,null,null,null,null,null,null,null,null,null,null,null,null,null,null,null,null,null,null,null,null,null,null,null,null,null,null,null,null,null,null,null,"MA",null,null,null,null,null,"Total MA Scores","OOR",null,null,null,null,null,"Total OOR Scores","SHP",null,null,null,null,null,"Total SHP Scores","ADU/JADU",null,null,null,null,null,"Total ADU/JADU Scores","PDL",null,null,null,null,null,"Total PDL Scores","SHTA",null,null,null,null,null,"Total SHTA Scores"]
[null,null,null,null,null,null,null,null,null,null,null,null,null,null,null,null,null,null,null,null,null,"CalHome Funds Request","CalHome Funds Eligible","CalHome Funds Request","CalHome Funds Eligible","CalHome Funds Request","CalHome Funds Eligible","CalHome Funds Request","CalHome Funds Eligible","Total CalHome Funds Request","Total CalHome Funds Eligible","CalHome Funds Request","CalHome Funds Eligible","CalHome Funds Request","CalHome Funds Eligible","Total CalHome Funds Request","Total CalHome Funds Eligible","Total CalHome Funds Request","Total CalHome Funds Eligible",null,"MA Funds Requested","MA Activity Delivery Fee","Total MA Funds","QCT?","OOR Activity 1",null,"OOR Activity 2",null,"OOR Activity 2",null,"Proposed # of Assisted non-manufactured units","OOR Funds Requested","OOR Activity Delivery Fee","OOR Activity Delivery Fee","OOR Activity Delivery Fee","Total OOR Funds","SHP Funds Requested","Total SHP Funds","SHP Funds Requested","SHP Funds Requested","Total SHP Funds","No. of Assisted units","SHTA Funds Requested","Total SHTA Funds","No. of Assisted units","PDL Funds Requested","Total PDL Funds","Development Name","Address","City ","County","Zip",null,null,null,null,null,null,null,null,null,"Model No.","Number units","Sq footage","No. bedrooms","No. bathrooms","Total Liens","Proposed Sales Price*","Model No.","Number units","Sq footage","No. bedrooms","No. bathrooms","Total Liens","Proposed Sales Price*","Model No.","Number units","Sq footage","No. bedrooms","No. bathrooms","Total Liens","Proposed Sales Price*","Model No.","Number units","Sq footage","No. bedrooms","No. bathrooms","Total Liens","Proposed Sales Price*","Model No.","Number units","Sq footage","No. bedrooms","No. bathrooms","Total Liens","Proposed Sales Price*","Proposed annual household income","County Median Income","District No.","Name","District No.","Name","District No.","Name","District No.","Name","District No.","Name","District No.","Name","District No.","Name","District No.","Name","District No.","Name","District No.","Name","District No.","Name","District No.","Name","Capability\n40 pts max","Community Need\n15 pts max","Feasibility\n25 pts max","Community Rvitalization\n10 pts max","Volunteer, Self-Help Labor\n10 pts max","Performance Penalty\n-5 pts",null,"Capability\n40 pts max","Community Need\n15 pts max","Feasibility\n25 pts max","Community Rvitalization\n10 pts max","Volunteer, Self-Help Labor\n10 pts max","Performance Penalty\n-5 pts",null,"Capability\n40 pts max","Community Need\n15 pts max","Feasibility\n25 pts max","Community Rvitalization\n10 pts max","Volunteer, Self-Help Labor\n10 pts max","Performance Penalty\n-5 pts",null,"Capability\n40 pts max","Community Need\n15 pts max","Feasibility\n25 pts max","Community Rvitalization\n10 pts max","Volunteer, Self-Help Labor\n10 pts max","Performance Penalty\n-5 pts",null,"Capability\n40 pts max","Community Need\n15 pts max","Feasibility\n25 pts max","Community Rvitalization\n10 pts max","Volunteer, Self-Help Labor\n10 pts max","Performance Penalty\n-5 pts",null,"Capability\n40 pts max","Community Need\n15 pts max","Feasibility\n25 pts max","Community Rvitalization\n10 pts max","Volunteer, Self-Help Labor\n10 pts max","Performance Penalty\n-5 pts"]
[null,null,null,null,{"$f":"'Applicant and Activity'!$F$3","v":0},{"$f":"'Applicant and Activity'!$R$3","v":0},{"$f":"'Applicant and Activity'!$C$4","v":0},{"$f":"'Applicant and Activity'!$S$4","v":0},{"$f":"'Applicant and Activity'!$AH$4","v":0},{"$f":"'Applicant and Activity'!$AJ$4","v":0},{"$f":"'Applicant and Activity'!$AB$4","v":0},{"$f":"'Applicant and Activity'!$E$5","v":0},{"$f":"'Applicant and Activity'!$N$5","v":0},{"$f":"'Applicant and Activity'!$V$5","v":0},{"$f":"'Applicant and Activity'!$AG$5","v":0},{"$f":"'Applicant and Activity'!$E$6","v":0},{"$f":"'Applicant and Activity'!$N$6","v":0},{"$f":"'Applicant and Activity'!$V$6","v":0},{"$f":"'Applicant and Activity'!$AG$6","v":0},{"$error":"#NAME?"},{"$error":"#NAME?"},{"$f":"'Applicant and Activity'!#REF!","v":{"$error":"#REF!"}},{"$f":"'Applicant and Activity'!#REF!","v":{"$error":"#REF!"}},{"$f":"'Applicant and Activity'!#REF!","v":{"$error":"#REF!"}},{"$f":"'Applicant and Activity'!#REF!","v":{"$error":"#REF!"}},{"$f":"'Applicant and Activity'!#REF!","v":{"$error":"#REF!"}},{"$f":"'Applicant and Activity'!#REF!","v":{"$error":"#REF!"}},{"$f":"'Applicant and Activity'!#REF!","v":{"$error":"#REF!"}},{"$f":"'Applicant and Activity'!#REF!","v":{"$error":"#REF!"}},{"$f":"'Applicant and Activity'!#REF!","v":{"$error":"#REF!"}},{"$f":"'Applicant and Activity'!#REF!","v":{"$error":"#REF!"}},{"$f":"'Applicant and Activity'!#REF!","v":{"$error":"#REF!"}},{"$f":"'Applicant and Activity'!#REF!","v":{"$error":"#REF!"}},{"$f":"'Applicant and Activity'!#REF!","v":{"$error":"#REF!"}},{"$f":"'Applicant and Activity'!#REF!","v":{"$error":"#REF!"}},{"$f":"'Applicant and Activity'!#REF!","v":{"$error":"#REF!"}},{"$f":"'Applicant and Activity'!#REF!","v":{"$error":"#REF!"}},{"$f":"'Applicant and Activity'!#REF!","v":{"$error":"#REF!"}},{"$f":"'Applicant and Activity'!#REF!","v":{"$error":"#REF!"}},{"$f":"'Mortgage Asst MA - Article 4'!#REF!","v":{"$error":"#REF!"}},{"$f":"'Mortgage Asst MA - Article 4'!#REF!","v":{"$error":"#REF!"}},{"$f":"'Mortgage Asst MA - Article 4'!#REF!","v":{"$error":"#REF!"}},{"$f":"'Mortgage Asst MA - Article 4'!#REF!","v":{"$error":"#REF!"}},{"$f":"'Mortgage Asst MA - Article 4'!#REF!","v":{"$error":"#REF!"}},{"$f":"'OOR - Article 5'!#REF!","v":{"$error":"#REF!"}},{"$f":"'OOR - Article 5'!#REF!","v":{"$error":"#REF!"}},{"$f":"'OOR - Article 5'!#REF!","v":{"$error":"#REF!"}},{"$f":"'OOR - Article 5'!#REF!","v":{"$error":"#REF!"}},{"$f":"'OOR - Article 5'!#REF!","v":{"$error":"#REF!"}},{"$f":"'OOR - Article 5'!#REF!","v":{"$error":"#REF!"}},{"$f":"'OOR - Article 5'!#REF!","v":{"$error":"#REF!"}},{"$f":"'OOR - Article 5'!#REF!","v":{"$error":"#REF!"}},{"$f":"'OOR - Article 5'!#REF!","v":{"$error":"#REF!"}},{"$f":"'OOR - Article 5'!#REF!","v":{"$error":"#REF!"}},{"$f":"'OOR - Article 5'!#REF!","v":{"$error":"#REF!"}},{"$f":"'OOR - Article 5'!#REF!","v":{"$error":"#REF!"}},{"$f":"'Shared Hsng SHP - Article 7'!#REF!","v":{"$error":"#REF!"}},{"$f":"'Shared Hsng SHP - Article 7'!#REF!","v":{"$error":"#REF!"}},{"$f":"'ADU-JADU - Article 8'!#REF!","v":{"$error":"#REF!"}},{"$f":"'ADU-JADU - Article 8'!#REF!","v":{"$error":"#REF!"}},{"$f":"'ADU-JADU - Article 8'!#REF!","v":{"$error":"#REF!"}},{"$f":"'Self-Help SHTA - Article 6'!#REF!","v":{"$error":"#REF!"}},{"$f":"'Self-Help SHTA - Article 6'!#REF!","v":{"$error":"#REF!"}},{"$f":"'Self-Help SHTA - Article 6'!#REF!","v":{"$error":"#REF!"}},{"$f":"'Develop Project PDL - Article 9'!#REF!","v":{"$error":"#REF!"}},{"$f":"'Develop Project PDL - Article 9'!#REF!","v":{"$error":"#REF!"}},{"$f":"'Develop Project PDL - Article 9'!#REF!","v":{"$error":"#REF!"}},{"$f":"'Develop Project PDL - Article 9'!$F$10","v":0},{"$f":"'Develop Project PDL - Article 9'!$C$11","v":0},{"$f":"'Develop Project PDL - Article 9'!$W$11","v":0},{"$f":"'Develop Project PDL - Article 9'!$AF$11","v":0},{"$f":"'Develop Project PDL - Article 9'!$AJ$11","v":0},{"$f":"'Develop Project PDL - Article 9'!$C$18","v":0},{"$f":"'Develop Project PDL - Article 9'!$G$18","v":0},{"$f":"'Develop Project PDL - Article 9'!$L$18","v":0},{"$f":"'Develop Project PDL - Article 9'!$Q$18","v":0},{"$f":"'Develop Project PDL - Article 9'!$V$18","v":0},{"$f":"'Develop Project PDL - Article 9'!$AA$18","v":0},{"$f":"'Develop Project PDL - Article 9'!$AF$18","v":0},{"$f":"'Develop Project PDL - Article 9'!#REF!","v":{"$error":"#REF!"}},{"$f":"'Develop Project PDL - Article 9'!#REF!","v":{"$error":"#REF!"}},{"$f":"'Develop Project PDL - Article 9'!$A$80","v":0},{"$f":"'Develop Project PDL - Article 9'!$F$80","v":0},{"$f":"'Develop Project PDL - Article 9'!$H$80","v":0},{"$f":"'Develop Project PDL - Article 9'!$L$80","v":0},{"$f":"'Develop Project PDL - Article 9'!$O$80","v":0},{"$f":"'Develop Project PDL - Article 9'!$R$80","v":0},{"$f":"'Develop Project PDL - Article 9'!$V$80","v":0},{"$f":"'Develop Project PDL - Article 9'!$A$81","v":0},{"$f":"'Develop Project PDL - Article 9'!$F$81","v":0},{"$f":"'Develop Project PDL - Article 9'!$H$81","v":0},{"$f":"'Develop Project PDL - Article 9'!$L$81","v":0},{"$f":"'Develop Project PDL - Article 9'!$O$81","v":0},{"$f":"'Develop Project PDL - Article 9'!$R$81","v":0},{"$f":"'Develop Project PDL - Article 9'!$V$81","v":0},{"$f":"'Develop Project PDL - Article 9'!$A$82","v":0},{"$f":"'Develop Project PDL - Article 9'!$F$82","v":0},{"$f":"'Develop Project PDL - Article 9'!$H$81","v":0},{"$f":"'Develop Project PDL - Article 9'!$L$82","v":0},{"$f":"'Develop Project PDL - Article 9'!$O$82","v":0},{"$f":"'Develop Project PDL - Article 9'!$R$82","v":0},{"$f":"'Develop Project PDL - Article 9'!$V$82","v":0},{"$f":"'Develop Project PDL - Article 9'!$A$83","v":0},{"$f":"'Develop Project PDL - Article 9'!$F$83","v":0},{"$f":"'Develop Project PDL - Article 9'!$H$83","v":0},{"$f":"'Develop Project PDL - Article 9'!$L$83","v":0},{"$f":"'Develop Project PDL - Article 9'!$O$83","v":0},{"$f":"'Develop Project PDL - Article 9'!$R$83","v":0},{"$f":"'Develop Project PDL - Article 9'!$V$83","v":0},{"$f":"'Develop Project PDL - Article 9'!$A$84","v":0},{"$f":"'Develop Project PDL - Article 9'!$F$84","v":0},{"$f":"'Develop Project PDL - Article 9'!$H$84","v":0},{"$f":"'Develop Project PDL - Article 9'!$L$84","v":0},{"$f":"'Develop Project PDL - Article 9'!$O$84","v":0},{"$f":"'Develop Project PDL - Article 9'!$R$84","v":0},{"$f":"'Develop Project PDL - Article 9'!$V$84","v":0},{"$f":"'Develop Project PDL - Article 9'!#REF!","v":{"$error":"#REF!"}},{"$f":"'Develop Project PDL - Article 9'!#REF!","v":{"$error":"#REF!"}},{"$f":"'Applicant and Activity'!$A$10","v":0},{"$f":"'Applicant and Activity'!$C$10","v":0},{"$f":"'Applicant and Activity'!$A$11","v":0},{"$f":"'Applicant and Activity'!$C$11","v":0},{"$f":"'Applicant and Activity'!$A$12","v":0},{"$f":"'Applicant and Activity'!$C$12","v":0},{"$f":"'Applicant and Activity'!$A$13","v":0},{"$f":"'Applicant and Activity'!$C$13","v":0},{"$f":"'Applicant and Activity'!$M$10","v":0},{"$f":"'Applicant and Activity'!$O$10","v":0},{"$f":"'Applicant and Activity'!$M$11","v":0},{"$f":"'Applicant and Activity'!$O$11","v":0},{"$f":"'Applicant and Activity'!$M$12","v":0},{"$f":"'Applicant and Activity'!$O$12","v":0},{"$f":"'Applicant and Activity'!$M$13","v":0},{"$f":"'Applicant and Activity'!$O$13","v":0},{"$f":"'Applicant and Activity'!$Z$10","v":0},{"$f":"'Applicant and Activity'!$AB$10","v":0},{"$f":"'Applicant and Activity'!$Z$11","v":0},{"$f":"'Applicant and Activity'!$AB$11","v":0},{"$f":"'Applicant and Activity'!$Z$12","v":0},{"$f":"'Applicant and Activity'!$AB$12","v":0},{"$f":"'Applicant and Activity'!$Z$13","v":0},{"$f":"'Applicant and Activity'!$AB$13","v":0},{"$f":"'Applicant and Activity'!$R$43","v":0},{"$f":"'Applicant and Activity'!$R$44","v":0},{"$f":"'Applicant and Activity'!$R$45","v":0},{"$f":"'Applicant and Activity'!$R$46","v":0},{"$f":"'Applicant and Activity'!$R$47","v":0},{"$f":"'Applicant and Activity'!$R$48","v":0},{"$f":"'Applicant and Activity'!$R$49","v":0},{"$f":"'Applicant and Activity'!$U$43","v":0},{"$f":"'Applicant and Activity'!$U$44","v":0},{"$f":"'Applicant and Activity'!$U$45","v":0},{"$f":"'Applicant and Activity'!$U$46","v":0},{"$f":"'Applicant and Activity'!$U$47","v":0},{"$f":"'Applicant and Activity'!$U$48","v":0},{"$f":"'Applicant and Activity'!$U$49","v":0},{"$f":"'Applicant and Activity'!$X$43","v":0},{"$f":"'Applicant and Activity'!$X$44","v":0},{"$f":"'Applicant and Activity'!$X$45","v":0},{"$f":"'Applicant and Activity'!$X$46","v":0},{"$f":"'Applicant and Activity'!$X$47","v":0},{"$f":"'Applicant and Activity'!$X$48","v":0},{"$f":"'Applicant and Activity'!$X$49","v":0},{"$f":"'Applicant and Activity'!$AA$43","v":0},{"$f":"'Applicant and Activity'!$AA$44","v":0},{"$f":"'Applicant and Activity'!$AA$45","v":0},{"$f":"'Applicant and Activity'!$AA$46","v":0},{"$f":"'Applicant and Activity'!$AA$47","v":0},{"$f":"'Applicant and Activity'!$AA$48","v":0},{"$f":"'Applicant and Activity'!$AA$49","v":0},{"$f":"'Applicant and Activity'!$AD$43","v":0},{"$f":"'Applicant and Activity'!$AD$44","v":0},{"$f":"'Applicant and Activity'!$AD$45","v":0},{"$f":"'Applicant and Activity'!$AD$46","v":0},{"$f":"'Applicant and Activity'!$AD$47","v":0},{"$f":"'Applicant and Activity'!$AD$48","v":0},{"$f":"'Applicant and Activity'!$AD$49","v":0},{"$f":"'Applicant and Activity'!$AG$43","v":0},{"$f":"'Applicant and Activity'!$AG$44","v":0},{"$f":"'Applicant and Activity'!$AG$45","v":0},{"$f":"'Applicant and Activity'!$AG$46","v":0},{"$f":"'Applicant and Activity'!$AG$47","v":0},{"$f":"'Applicant and Activity'!$AG$48","v":0},{"$f":"'Applicant and Activity'!$AG$49","v":0}]

{"sheet":"CalHome Coverpage","index":1,"n_rows":43,"n_cols":1,"rows_kept":43,"cut":false,"hidden":false,"merged":[[36,0,36,22],[2,0,2,22],[3,0,3,22],[5,0,5,22],[6,0,6,22],[25,0,25,22],[26,0,26,22],[28,0,28,22],[29,0,29,22],[31,0,31,22],[32,0,32,22],[35,0,35,22],[4,0,4,2],[44,0,44,22],[37,0,37,22],[38,0,38,22],[39,0,39,22],[41,0,41,22],[42,0,42,22]]}
[]
[]
["CalHome Program Disaster Assistance"]
["2021 Application"]
["2021-08-06"]
[]
["Notice of Funding Availability (NOFA) August 6, 2021"]
[]
[]
[]
[]
[]
[]
[]
[]
[]
[]
[]
[]
[]
[]
[]
[]
[]
[]
["Gavin Newsom, Governor "]
["State of California"]
[]
["Lourdes Castro Ramirez, Secretary"]
["Business, Consumer Services and Housing Agency"]
[]
["Gustavo Velasquez, Director"]
["Department of Housing and Community Development (HCD)"]
[]
[]
["2020 West El Camino Avenue, Suite 500"]
["Sacramento, CA 95833"]
["Phone: (916) 263-2771   "]
["email: calhome@hcd.ca.gov"]
["http://www.hcd.ca.gov/grants-funding/nofas.shtml"]
[]
["Application Technical Support email:"]
["AppSupport@hcd.ca.gov"]

{"sheet":"Applicant and Activity","index":2,"n_rows":97,"n_cols":39,"rows_kept":97,"cut":false,"hidden":false,"merged":[[2,36,2,37],[2,17,2,32],[2,33,2,35],[2,0,2,1],[2,2,2,13],[43,20,43,22],[53,0,53,35],[44,0,44,16],[45,0,45,16],[46,0,46,16],[47,0,47,16],[48,0,48,16],[48,17,48,19],[45,17,45,19],[46,17,46,19],[47,17,47,19],[48,23,48,25],[44,29,44,31],[44,35,44,37],[45,35,45,37],[47,35,47,37],[44,17,44,19],[48,32,48,34],[10,27,10,37],[82,11,82,30],[56,0,56,2],[56,3,56,10],[56,11,56,30],[56,31,56,35],[56,36,56,37],[74,0,74,35],[63,0,63,37],[64,0,64,2],[64,3,64,10],[64,11,64,30],[64,31,64,35],[64,36,64,37],[66,0,66,2],[66,3,66,10],[66,11,66,30],[66,31,66,35],[66,36,66,37],[67,0,67,2],[67,3,67,10],[80,0,80,2],[80,3,80,10],[80,11,80,30],[80,31,80,35],[81,0,81,35],[81,36,81,37],[41,0,41,16],[41,23,41,25],[41,29,41,31],[42,29,42,31],[42,23,42,25],[42,20,42,22],[42,0,42,16],[43,0,43,16],[42,17,42,19],[43,17,43,19],[41,17,41,19],[43,29,43,31],[41,20,41,22],[43,23,43,25],[42,26,42,28],[0,0,0,34],[3,27,3,30],[49,0,49,37],[39,0,39,37],[40,0,40,37],[4,13,4,18],[0,35,0,37],[3,31,3,32],[19,0,19,35],[19,36,19,37],[8,27,8,37],[48,20,48,22],[4,0,4,3],[5,0,5,3],[43,26,43,28],[44,26,44,28],[45,26,45,28],[46,26,46,28],[15,0,15,35],[13,14,13,24],[13,0,13,1],[13,2,13,11],[7,0,7,11],[7,12,7,24],[1,0,1,37],[24,6,24,37],[24,0,24,5],[3,35,3,37],[23,0,23,37],[22,0,22,37],[14,14,14,24],[14,25,14,26],[14,27,14,37],[8,25,8,26],[13,25,13,26],[13,12,13,13],[12,0,12,1],[12,2,12,11],[12,12,12,13],[12,14,12,24],[9,0,9,1],[9,2,9,11],[7,25,7,37],[8,0,8,1],[8,2,8,11],[8,12,8,13],[8,14,8,24],[12,27,12,37],[5,4,5,11],[6,0,6,37],[11,12,11,13],[9,14,9,24],[9,27,9,37],[11,14,11,24],[11,25,11,26],[17,36,17,37],[14,0,14,1],[14,2,14,11],[11,0,11,1],[11,2,11,11],[14,12,14,13],[16,0,16,37],[15,36,15,37],[32,22,32,28],[10,2,10,11],[10,12,10,13],[10,14,10,24],[10,25,10,26],[25,6,25,37],[25,0,25,5],[18,36,18,37],[20,0,20,35],[20,36,20,37],[29,22,29,28],[32,0,32,14],[29,29,29,37],[30,0,30,14],[30,15,30,21],[30,22,30,28],[30,29,30,37],[31,0,31,14],[31,15,31,21],[61,11,61,30],[61,31,61,35],[42,32,42,34],[43,32,43,34],[44,32,44,34],[47,26,47,28],[47,29,47,31],[41,32,41,34],[35,0,35,14],[35,15,35,21],[35,22,35,28],[46,32,46,34],[47,32,47,34],[44,23,44,25],[41,26,41,28],[47,23,47,25],[46,35,46,37],[48,26,48,28],[50,0,50,37],[48,29,48,31],[80,36,80,37],[85,0,85,2],[9,12,9,13],[12,25,12,26],[10,0,10,1],[28,0,28,37],[32,15,32,21],[77,0,77,37],[69,11,69,30],[79,0,79,35],[78,0,78,35],[62,0,62,35],[62,36,62,37],[73,0,73,35],[73,36,73,37],[71,0,71,37],[69,31,69,35],[79,36,79,37],[78,36,78,37],[59,36,59,37],[61,0,61,2],[61,3,61,10],[29,15,29,21],[82,31,82,35],[82,36,82,37],[82,0,82,2],[82,3,82,10],[84,0,84,37],[86,36,86,37],[83,0,83,35],[87,0,87,2],[87,3,87,10],[87,11,87,30],[85,11,85,30],[85,31,85,35],[85,36,85,37],[83,36,83,37],[85,3,85,10],[86,0,86,2],[86,3,86,10],[86,11,86,30],[86,31,86,35],[55,36,55,37],[35,29,35,37],[32,29,32,37],[34,0,34,14],[94,0,94,2],[91,0,91,2],[91,3,91,10],[91,11,91,30],[91,31,91,35],[91,36,91,37],[94,3,94,10],[94,11,94,30],[94,31,94,35],[94,36,94,37],[93,0,93,2],[93,3,93,10],[93,11,93,30],[93,31,93,35],[93,36,93,37],[92,0,92,2],[92,3,92,10],[92,11,92,30],[92,31,92,35],[92,36,92,37],[96,0,96,2],[96,3,96,10],[96,11,96,30],[96,31,96,35],[96,36,96,37],[95,0,95,2],[95,3,95,10],[95,11,95,30],[95,31,95,35],[95,36,95,37],[89,0,89,2],[87,31,87,35],[90,0,90,2],[90,3,90,10],[90,11,90,30],[90,31,90,35],[90,36,90,37],[89,3,89,10],[89,11,89,30],[89,31,89,35],[89,36,89,37],[87,36,87,37],[88,0,88,2],[88,3,88,10],[88,11,88,30],[88,31,88,35],[88,36,88,37],[37,0,37,14],[45,23,45,25],[45,29,45,31],[46,29,46,31],[45,32,45,34],[38,0,38,14],[33,0,33,14],[33,15,33,21],[42,35,42,37],[43,35,43,37],[44,20,44,22],[45,20,45,22],[46,20,46,22],[41,35,41,37],[46,23,46,25],[33,22,33,28],[37,15,37,21],[37,22,37,28],[37,29,37,37],[34,15,34,21],[34,22,34,28],[38,15,38,21],[33,29,33,37],[76,0,76,35],[76,36,76,37],[51,0,51,35],[51,36,51,37],[31,22,31,28],[31,29,31,37],[69,36,69,37],[69,0,69,2],[27,0,27,5],[27,6,27,18],[27,19,27,24],[27,25,27,37],[29,0,29,14],[47,20,47,22],[48,35,48,37],[34,29,34,37],[36,0,36,14],[36,15,36,21],[36,22,36,28],[36,29,36,37],[38,29,38,37],[38,22,38,28],[59,0,59,35],[58,0,58,37],[75,0,75,2],[75,3,75,10],[75,36,75,37],[52,0,52,2],[52,3,52,10],[52,11,52,30],[52,31,52,35],[52,36,52,37],[61,36,61,37],[68,0,68,2],[68,3,68,10],[68,11,68,30],[68,31,68,35],[68,36,68,37],[75,11,75,30],[75,31,75,35],[74,36,74,37],[57,0,57,35],[57,36,57,37],[54,0,54,2],[54,3,54,10],[54,11,54,30],[54,31,54,35],[54,36,54,37],[2,14,2,16],[26,34,26,35],[26,36,26,37],[26,0,26,31],[26,32,26,33],[4,30,4,31],[5,30,5,31],[4,32,4,37],[5,32,5,37],[4,19,4,20],[5,19,5,20],[4,21,4,29],[5,21,5,29],[5,13,5,18],[9,25,9,26],[3,18,3,24],[4,4,4,11],[3,25,3,26],[3,0,3,1],[3,2,3,16],[11,27,11,37],[18,0,18,35],[13,27,13,37],[17,0,17,35],[21,0,21,37],[72,0,72,2],[72,3,72,10],[72,11,72,30],[72,31,72,35],[72,36,72,37],[65,0,65,2],[65,3,65,10],[65,11,65,30],[65,31,65,35],[65,36,65,37],[70,0,70,2],[70,3,70,10],[70,11,70,30],[70,31,70,35],[70,36,70,37],[67,11,67,30],[67,31,67,35],[67,36,67,37],[69,3,69,10],[60,0,60,35],[60,36,60,37],[53,36,53,37],[55,0,55,35]]}
["Applicant and Activity",null,null,null,null,null,null,null,null,null,null,null,null,null,null,null,null,null,null,null,null,null,null,null,null,null,null,null,null,null,null,null,null,null,null,{"$f":"'CalHome Coverpage'!A5","v":"2021-08-06"}]
["When opening this file, a yellow banner at the top may appear with a button that says \"Enable Content\" or \"Enable Editing\". It is essential for full worksheet functionality that you click this box so that the macros are enabled. Macros do not work with Microsoft's Excel version for Apple Mac. Please complete this form using a PC."]
["Applicant name",null,null,null,null,null,null,null,null,null,null,null,null,null,"Applicant type §7716(h)",null,null,null,null,null,null,null,null,null,null,null,null,null,null,null,null,null,null,"Application due date",null,null,"2021-10-28"]
["Address",null,null,null,null,null,null,null,null,null,null,null,null,null,null,null,null,"City",null,null,null,null,null,null,null,"County",null,null,null,null,null,"State",null,null,"Zip",null,null,null,"Local Public Agency"]
["Auth Rep name",null,null,null,null,null,null,null,null,null,null,null,"Title",null,null,null,null,null,null,"Email",null,null,null,null,null,null,null,null,null,null,"Phone",null,null,null,null,null,null,null,"Nonprofit Corporation"]
["Contact name",null,null,null,null,null,null,null,null,null,null,null,"Title",null,null,null,null,null,null,"Email",null,null,null,null,null,null,null,null,null,null,"Phone",null,null,null,null,null,null,null,"Federally Recognized and Special Government Entity"]
["§7754(a) Indicate all legislative reps who represent any portion of the proposed service area. If you have vacancies in your legislative seats, list district number and address. "]
["            California State Assembly",null,null,null,null,null,null,null,null,null,null,null,"            California State Senate",null,null,null,null,null,null,null,null,null,null,null,null,"           U.S. House of Representatives"]
["District #",null,"Name",null,null,null,null,null,null,null,null,null,"District #",null,"Name",null,null,null,null,null,null,null,null,null,null,"District #",null,"Name"]
[]
[null,null,null,null,null,null,null,null,null,null,null,null,null,null,null,null,null,null,null,null,null,null,null,null,null,null,null,null,null,null,null,null,null,null,null,null,null,null,"Alameda"]
[null,null,null,null,null,null,null,null,null,null,null,null,null,null,null,null,null,null,null,null,null,null,null,null,null,null,null,null,null,null,null,null,null,null,null,null,null,null,"Alpine"]
[null,null,null,null,null,null,null,null,null,null,null,null,null,null,null,null,null,null,null,null,null,null,null,null,null,null,null,null,null,null,null,null,null,null,null,null,null,null,"Amador"]
[null,null,null,null,null,null,null,null,null,null,null,null,null,null,null,null,null,null,null,null,null,null,null,null,null,null,null,null,null,null,null,null,null,null,null,null,null,null,"Butte"]
[null,null,null,null,null,null,null,null,null,null,null,null,null,null,null,null,null,null,null,null,null,null,null,null,null,null,null,null,null,null,null,null,null,null,null,null,null,null,"Calaveras"]
["§7754(c) Applicant has the authority to undertake the activities applied for, meets the eligibility requirements, will comply with all Program requirements, does not have any unresolved HCD audit findings nor pending lawsuits; and that if the application is for a construction project, Construction Work has not yet begun. If No, explain.",null,null,null,null,null,null,null,null,null,null,null,null,null,null,null,null,null,null,null,null,null,null,null,null,null,null,null,null,null,null,null,null,null,null,null,null,null,"Colusa"]
[null,null,null,null,null,null,null,null,null,null,null,null,null,null,null,null,null,null,null,null,null,null,null,null,null,null,null,null,null,null,null,null,null,null,null,null,null,null,"Contra Costa"]
["§7719(b) Applicant certifies CalHome funds will not be used for any ineligible costs?",null,null,null,null,null,null,null,null,null,null,null,null,null,null,null,null,null,null,null,null,null,null,null,null,null,null,null,null,null,null,null,null,null,null,null,null,null,"Del Norte"]
["§7720 Applicant certifies individual households who receive benefits of CalHome funds will meet the eligibility requirements. AB 101 modified Health & Safety Code (HSC) §50650.3 to allow the CalHome Program to provide assistance to households with incomes at or below 120% of AMI that are victims of a disaster.",null,null,null,null,null,null,null,null,null,null,null,null,null,null,null,null,null,null,null,null,null,null,null,null,null,null,null,null,null,null,null,null,null,null,null,null,null,"El Dorado"]
["§7721 Applicant certifies it will implement the proposed Local Programs or projects and also be responsible for the activity requirements.",null,null,null,null,null,null,null,null,null,null,null,null,null,null,null,null,null,null,null,null,null,null,null,null,null,null,null,null,null,null,null,null,null,null,null,null,null,"Fresno"]
["Applicant agrees to grant or loan 50% of awarded funds for households of up to 80% AMI levels, and 50% of awarded funds for households greater than 80% AMI up to 120% AMI levels. Applicant agrees to prioritize awards to the greatest extent possible to achieve these targets. Explain how you intend to achieve these targets. (NOFA page 2-3)",null,null,null,null,null,null,null,null,null,null,null,null,null,null,null,null,null,null,null,null,null,null,null,null,null,null,null,null,null,null,null,null,null,null,null,null,null,"Colusa"]
[null,null,null,null,null,null,null,null,null,null,null,null,null,null,null,null,null,null,null,null,null,null,null,null,null,null,null,null,null,null,null,null,null,null,null,null,null,null,"Contra Costa"]
["Eligible Activities §7718",null,null,null,null,null,null,null,null,null,null,null,null,null,null,null,null,null,null,null,null,null,null,null,null,null,null,null,null,null,null,null,null,null,null,null,null,null,"Glenn"]
["Applicants may include Project Activities or up to two Program Activities in an application, but cannot apply for both Project Activities and Program Activities in a single application. Applicants may apply to fund a Homeownership Development Project with or without a Self-Help Housing Project.",null,null,null,null,null,null,null,null,null,null,null,null,null,null,null,null,null,null,null,null,null,null,null,null,null,null,null,null,null,null,null,null,null,null,null,null,null,"Humboldt"]
["Program Activities:",null,null,null,null,null,null,null,null,null,null,null,null,null,null,null,null,null,null,null,null,null,null,null,null,null,null,null,null,null,null,null,null,null,null,null,null,null,"Imperial"]
["Project Activities:",null,null,null,null,null,null,null,null,null,null,null,null,null,null,null,null,null,null,null,null,null,null,null,null,null,null,null,null,null,null,null,null,null,null,null,null,null,"Inyo"]
["Activities must assist counties impacted by disasters outlined in the NOFA. Select the qualified FEMA disaster declaration(s) for your Activities:",null,null,null,null,null,null,null,null,null,null,null,null,null,null,null,null,null,null,null,null,null,null,null,null,null,null,null,null,null,null,null,null,null,null,null,null,null,"Kern"]
["Assisted County:",null,null,null,null,null,null,null,null,null,null,null,null,null,null,null,null,null,null,"Allocation:",null,null,null,null,null,{"$f":"IFERROR(VLOOKUP(G28,Allocations!A1:B28,2,FALSE),\"\")","v":""},null,null,null,null,null,null,null,null,null,null,null,null,"Kings"]
["Total Uses of Funds §7719",null,null,null,null,null,null,null,null,null,null,null,null,null,null,null,null,null,null,null,null,null,null,null,null,null,null,null,null,null,null,null,null,null,null,null,null,null,"Lake"]
["Activity Type:",null,null,null,null,null,null,null,null,null,null,null,null,null,null,"CalHome Funds Request",null,null,null,null,null,null,"CalHome Funds Eligible",null,null,null,null,null,null,"Remaining Allocation",null,null,null,null,null,null,null,null,"Lassen"]
["First-Time Homebuyer for Mortgage Assist. §7718(a)(1) Article 4",null,null,null,null,null,null,null,null,null,null,null,null,null,null,{"$f":"IF(ISNUMBER(SEARCH(4,ProgramActivities)),'Mortgage Asst MA - Article 4'!S9,0)","v":0},null,null,null,null,null,null,{"$f":"IF(ISNUMBER(SEARCH(4,ProgramActivities)),'Mortgage Asst MA - Article 4'!Z9,0)","v":0},null,null,null,null,null,null,null,null,null,null,null,null,null,null,null,"Los Angeles"]
["Owner-Occupied Rehabilitation §7718(a)(2) Article 5",null,null,null,null,null,null,null,null,null,null,null,null,null,null,{"$f":"IF(ISNUMBER(SEARCH(5,ProgramActivities)),'OOR - Article 5'!S10,0)","v":0},null,null,null,null,null,null,{"$f":"IF(ISNUMBER(SEARCH(5,ProgramActivities)),'OOR - Article 5'!Z10,0)","v":0},null,null,null,null,null,null,null,null,null,null,null,null,null,null,null,"Madera"]
["Technical Assist. for Shared Housing §7718(a)(4) Article 7",null,null,null,null,null,null,null,null,null,null,null,null,null,null,{"$f":"IF(ISNUMBER(SEARCH(7,ProgramActivities)),'Shared Hsng SHP - Article 7'!S6,0)","v":0},null,null,null,null,null,null,{"$f":"IF(ISNUMBER(SEARCH(7,ProgramActivities)),'Shared Hsng SHP - Article 7'!Z6,0)","v":0},null,null,null,null,null,null,null,null,null,null,null,null,null,null,null,"Marin"]
["Accessory Dwelling Units (ADU)/Junior ADU §7718(b) Article 8",null,null,null,null,null,null,null,null,null,null,null,null,null,null,{"$f":"IF(ISNUMBER(SEARCH(8,ProgramActivities)),'ADU-JADU - Article 8'!S7,0)","v":0},null,null,null,null,null,null,{"$f":"IF(ISNUMBER(SEARCH(8,ProgramActivities)),'ADU-JADU - Article 8'!Z7,0)","v":0},null,null,null,null,null,null,null,null,null,null,null,null,null,null,null,"Mariposa"]
["Program Activity Total:",null,null,null,null,null,null,null,null,null,null,null,null,null,null,{"$f":"SUM(P31:V34)","v":0},null,null,null,null,null,null,{"$f":"SUM(W31:AC34)","v":0},null,null,null,null,null,null,{"$f":"IF(G28=\"\",0,IF(AND(_xlfn.SINGLE(ProgramActivities)<>\"\",_xlfn.SINGLE(ProjectActivities)=\"\"),Z28-P35,0))","v":0},null,null,null,null,null,null,null,null,"Mendocino"]
["Technical Assistance for Self-Help Housing §7718(a)(3) Article 6",null,null,null,null,null,null,null,null,null,null,null,null,null,null,{"$f":"IF(ISNUMBER(SEARCH(6,ProjectActivities)),'Self-Help SHTA - Article 6'!S8,0)","v":0},null,null,null,null,null,null,{"$f":"IF(ISNUMBER(SEARCH(6,ProjectActivities)),'Self-Help SHTA - Article 6'!Z8,0)","v":0},null,null,null,null,null,null,null,null,null,null,null,null,null,null,null,"Merced"]
["Homeownership Development Project Loans §7718(b) Article 9",null,null,null,null,null,null,null,null,null,null,null,null,null,null,{"$f":"IF(ISNUMBER(SEARCH(9,ProjectActivities)),'Develop Project PDL - Article 9'!S8,0)","v":0},null,null,null,null,null,null,{"$f":"IF(ISNUMBER(SEARCH(9,ProjectActivities)),'Develop Project PDL - Article 9'!Z8,0)","v":0},null,null,null,null,null,null,null,null,null,null,null,null,null,null,null,"Modoc"]
["Project Activity Total:",null,null,null,null,null,null,null,null,null,null,null,null,null,null,{"$f":"SUM(P37:V37)","v":0},null,null,null,null,null,null,{"$f":"SUM(W37:AC37)","v":0},null,null,null,null,null,null,{"$f":"IF(G28=\"\",0,IF(AND(_xlfn.SINGLE(ProjectActivities)<>\"\",_xlfn.SINGLE(ProgramActivities)=\"\"),Z28-P38,0))","v":0},null,null,null,null,null,null,null,null,"Mono"]
["Total Request, Funds Eligible and Remaining:",null,null,null,null,null,null,null,null,null,null,null,null,null,null,{"$f":"SUM(P38,P35)","v":0},null,null,null,null,null,null,{"$f":"SUM(W35,W38)","v":0},null,null,null,null,null,null,{"$f":"SUM(AD38,AD35)","v":0},null,null,null,null,null,null,null,null,"Monterey"]
["Selection Criteria §7755",null,null,null,null,null,null,null,null,null,null,null,null,null,null,null,null,null,null,null,null,null,null,null,null,null,null,null,null,null,null,null,null,null,null,null,null,null,"Napa"]
["(minimum points required = 55; maximum points = 100)",null,null,null,null,null,null,null,null,null,null,null,null,null,null,null,null,null,null,null,null,null,null,null,null,null,null,null,null,null,null,null,null,null,null,null,null,null,"Nevada"]
["Rating Factors (red shading indicates minimum score has not been achieved)",null,null,null,null,null,null,null,null,null,null,null,null,null,null,null,null,"MA",null,null,"OOR",null,null,"SHP",null,null,"ADU/JADU",null,null,"PDL",null,null,"SHTA",null,null,"Self-Score",null,null,"Orange"]
["Capability §7755(b)(1) - 40 Points Max",null,null,null,null,null,null,null,null,null,null,null,null,null,null,null,null,{"$f":"IF(ISNUMBER(SEARCH(4,_xlfn.SINGLE(ProgramActivities))),'Mortgage Asst MA - Article 4'!AJ36,0)","v":0},null,null,{"$f":"IF(ISNUMBER(SEARCH(5,_xlfn.SINGLE(ProgramActivities))),'OOR - Article 5'!AJ39,0)","v":0},null,null,{"$f":"IF(ISNUMBER(SEARCH(7,_xlfn.SINGLE(ProgramActivities))),'Shared Hsng SHP - Article 7'!AJ23,0)","v":0},null,null,{"$f":"IF(ISNUMBER(SEARCH(8,_xlfn.SINGLE(ProgramActivities))),'ADU-JADU - Article 8'!AJ36,0)","v":0},null,null,{"$f":"IF(ISNUMBER(SEARCH(9,_xlfn.SINGLE(ProjectActivities))),'Develop Project PDL - Article 9'!AJ174,0)","v":0},null,null,{"$f":"IF(ISNUMBER(SEARCH(6,_xlfn.SINGLE(ProjectActivities))),'Self-Help SHTA - Article 6'!AJ34,0)","v":0},null,null,{"$f":"IFERROR(ROUND(AVERAGEIF($R$49:$AF$49,\">0\",R43:AI43),2),0)","v":0},null,null,"Placer"]
["Community Need §7755(b)(2) - 15 Points Max",null,null,null,null,null,null,null,null,null,null,null,null,null,null,null,null,{"$f":"IF(ISNUMBER(SEARCH(4,_xlfn.SINGLE(ProgramActivities))),'Mortgage Asst MA - Article 4'!AJ37,0)","v":0},null,null,{"$f":"IF(ISNUMBER(SEARCH(5,_xlfn.SINGLE(ProgramActivities))),'OOR - Article 5'!AJ40,0)","v":0},null,null,{"$f":"IF(ISNUMBER(SEARCH(7,_xlfn.SINGLE(ProgramActivities))),'Shared Hsng SHP - Article 7'!AJ24,0)","v":0},null,null,{"$f":"IF(ISNUMBER(SEARCH(8,_xlfn.SINGLE(ProgramActivities))),'ADU-JADU - Article 8'!AJ37,0)","v":0},null,null,{"$f":"IF(ISNUMBER(SEARCH(9,_xlfn.SINGLE(ProjectActivities))),'Develop Project PDL - Article 9'!AJ175,0)","v":0},null,null,{"$f":"IF(ISNUMBER(SEARCH(6,_xlfn.SINGLE(ProjectActivities))),'Self-Help SHTA - Article 6'!AJ35,0)","v":0},null,null,{"$f":"IFERROR(ROUND(AVERAGEIF($R$49:$AF$49,\">0\",R44:AI44),2),0)","v":0},null,null,"Plumas"]
["Feasibility §7755(b)(3) - 25 Points Max",null,null,null,null,null,null,null,null,null,null,null,null,null,null,null,null,{"$f":"IF(ISNUMBER(SEARCH(4,_xlfn.SINGLE(ProgramActivities))),'Mortgage Asst MA - Article 4'!AJ38,0)","v":0},null,null,{"$f":"IF(ISNUMBER(SEARCH(5,_xlfn.SINGLE(ProgramActivities))),'OOR - Article 5'!AJ41,0)","v":0},null,null,{"$f":"IF(ISNUMBER(SEARCH(7,_xlfn.SINGLE(ProgramActivities))),'Shared Hsng SHP - Article 7'!AJ25,0)","v":0},null,null,{"$f":"IF(ISNUMBER(SEARCH(8,_xlfn.SINGLE(ProgramActivities))),'ADU-JADU - Article 8'!AJ38,0)","v":0},null,null,{"$f":"IF(ISNUMBER(SEARCH(9,_xlfn.SINGLE(ProjectActivities))),'Develop Project PDL - Article 9'!AJ176,0)","v":0},null,null,{"$f":"IF(ISNUMBER(SEARCH(6,_xlfn.SINGLE(ProjectActivities))),'Self-Help SHTA - Article 6'!AJ36,0)","v":0},null,null,0,null,null,"Riverside"]
["Community Revitalization §7755(b)(4) - 10 Points Max",null,null,null,null,null,null,null,null,null,null,null,null,null,null,null,null,{"$f":"IF(ISNUMBER(SEARCH(4,_xlfn.SINGLE(ProgramActivities))),'Mortgage Asst MA - Article 4'!AJ42,0)","v":0},null,null,{"$f":"IF(ISNUMBER(SEARCH(5,_xlfn.SINGLE(ProgramActivities))),'OOR - Article 5'!AJ42,0)","v":0},null,null,{"$f":"IF(ISNUMBER(SEARCH(7,_xlfn.SINGLE(ProgramActivities))),'Shared Hsng SHP - Article 7'!AJ26,0)","v":0},null,null,{"$f":"IF(ISNUMBER(SEARCH(8,_xlfn.SINGLE(ProgramActivities))),'ADU-JADU - Article 8'!AJ39,0)","v":0},null,null,{"$f":"IF(ISNUMBER(SEARCH(9,_xlfn.SINGLE(ProjectActivities))),'Develop Project PDL - Article 9'!AJ177,0)","v":0},null,null,{"$f":"IF(ISNUMBER(SEARCH(6,_xlfn.SINGLE(ProjectActivities))),'Self-Help SHTA - Article 6'!AJ37,0)","v":0},null,null,0,null,null,"Sacramento"]
["Volunteer, Self-Help Labor or Youth Construction §7755(b)(5) - 10 Points  Max",null,null,null,null,null,null,null,null,null,null,null,null,null,null,null,null,{"$f":"IF(ISNUMBER(SEARCH(4,_xlfn.SINGLE(ProgramActivities))),'Mortgage Asst MA - Article 4'!AJ48,0)","v":0},null,null,{"$f":"IF(ISNUMBER(SEARCH(5,_xlfn.SINGLE(ProgramActivities))),'OOR - Article 5'!AJ43,0)","v":0},null,null,{"$f":"IF(ISNUMBER(SEARCH(7,_xlfn.SINGLE(ProgramActivities))),'Shared Hsng SHP - Article 7'!AJ32,0)","v":0},null,null,{"$f":"IF(ISNUMBER(SEARCH(8,_xlfn.SINGLE(ProgramActivities))),'ADU-JADU - Article 8'!AJ45,0)","v":0},null,null,{"$f":"IF(ISNUMBER(SEARCH(9,_xlfn.SINGLE(ProjectActivities))),'Develop Project PDL - Article 9'!AJ183,0)","v":0},null,null,{"$f":"IF(ISNUMBER(SEARCH(6,_xlfn.SINGLE(ProjectActivities))),'Self-Help SHTA - Article 6'!AJ43,0)","v":0},null,null,0,null,null,"San Benito"]
["Performance Penalty §7755(c) - Negative 5 Points",null,null,null,null,null,null,null,null,null,null,null,null,null,null,null,null,{"$f":"IF(ISNUMBER(SEARCH(4,_xlfn.SINGLE(ProgramActivities))),'Mortgage Asst MA - Article 4'!AJ63,0)","v":0},null,null,{"$f":"IF(ISNUMBER(SEARCH(5,_xlfn.SINGLE(ProgramActivities))),'OOR - Article 5'!AJ44,0)","v":0},null,null,{"$f":"IF(ISNUMBER(SEARCH(7,_xlfn.SINGLE(ProgramActivities))),'Shared Hsng SHP - Article 7'!AJ33,0)","v":0},null,null,{"$f":"IF(ISNUMBER(SEARCH(8,_xlfn.SINGLE(ProgramActivities))),'ADU-JADU - Article 8'!AJ46,0)","v":0},null,null,{"$f":"IF(ISNUMBER(SEARCH(9,_xlfn.SINGLE(ProjectActivities))),'Develop Project PDL - Article 9'!AJ198,0)","v":0},null,null,{"$f":"IF(ISNUMBER(SEARCH(6,_xlfn.SINGLE(ProjectActivities))),'Self-Help SHTA - Article 6'!AJ58,0)","v":0},null,null,{"$f":"IFERROR(ROUND(AVERAGEIF($R$49:$AF$49,\">0\",R48:AI48),2),0)","v":0},null,null,"San Bernardino"]
["Self-Scoring Total (Minimum 55 Points)",null,null,null,null,null,null,null,null,null,null,null,null,null,null,null,null,{"$f":"SUM(R43:T48)","v":0},null,null,{"$f":"SUM(U43:W48)","v":0},null,null,{"$f":"SUM(X43:Z48)","v":0},null,null,{"$f":"SUM(AA43:AC48)","v":0},null,null,{"$f":"SUM(AD43:AF48)","v":0},null,null,{"$f":"SUM(AG43:AI48)","v":0},null,null,{"$f":"IFERROR(ROUND(AVERAGEIF(R49:AI49,\">0\"),2),0)","v":0},null,null,"San Diego"]
["General Applicant Eligibility Requirements §7717",null,null,null,null,null,null,null,null,null,null,null,null,null,null,null,null,null,null,null,null,null,null,null,null,null,null,null,null,null,null,null,null,null,null,null,null,null,"San Francisco"]
["Locality Applicant",null,null,null,null,null,null,null,null,null,null,null,null,null,null,null,null,null,null,null,null,null,null,null,null,null,null,null,null,null,null,null,null,null,null,null,null,null,"San Joaquin"]
["(a)(1) Is locality applying for funds for a Local Program or project located within its jurisdictional boundaries? ",null,null,null,null,null,null,null,null,null,null,null,null,null,null,null,null,null,null,null,null,null,null,null,null,null,null,null,null,null,null,null,null,null,null,null,null,null,"San Luis Obispo"]
["File Name:",null,null,"Service Area Map",null,null,null,null,null,null,null,"Provide a Service Area Map showing the Project location and nearby services",null,null,null,null,null,null,null,null,null,null,null,null,null,null,null,null,null,null,null,"Uploaded to HCD?",null,null,null,null,null,null,"San Mateo"]
["(a)(1) Will Applicant hire nonprofit or for-profit consultants located and/or registered within or outside its jurisdictional boundaries?",null,null,null,null,null,null,null,null,null,null,null,null,null,null,null,null,null,null,null,null,null,null,null,null,null,null,null,null,null,null,null,null,null,null,null,null,null,"Santa Barbara"]
["File Name:",null,null,"Consult Agreement",null,null,null,null,null,null,null,"Copy of agreement(s) between the Applicant and its consultant",null,null,null,null,null,null,null,null,null,null,null,null,null,null,null,null,null,null,null,"Uploaded to HCD?",null,null,null,null,null,null,"Santa Clara"]
["(a)(1) Will the Applicant establish a consortium with a single administrator?",null,null,null,null,null,null,null,null,null,null,null,null,null,null,null,null,null,null,null,null,null,null,null,null,null,null,null,null,null,null,null,null,null,null,null,null,null,"Santa Cruz"]
["File Name:",null,null,"MOU",null,null,null,null,null,null,null,"MOU regarding a consortium with a single administrator",null,null,null,null,null,null,null,null,null,null,null,null,null,null,null,null,null,null,null,"Uploaded to HCD?",null,null,null,null,null,null,"Shasta"]
["(b)(1) Does Applicant have sufficient organizational stability and capacity to carry out the activity for which it is requesting funds? Describe stability and capacity below.",null,null,null,null,null,null,null,null,null,null,null,null,null,null,null,null,null,null,null,null,null,null,null,null,null,null,null,null,null,null,null,null,null,null,null,null,null,"Sierra"]
[null,null,null,null,null,null,null,null,null,null,null,null,null,null,null,null,null,null,null,null,null,null,null,null,null,null,null,null,null,null,null,null,null,null,null,null,null,null,"Siskiyou"]
["(b)(2) Has Applicant or its Administrative Subcontractor been operating as housing Developers or program administrators for a minimum of two years prior to the NOFA date?",null,null,null,null,null,null,null,null,null,null,null,null,null,null,null,null,null,null,null,null,null,null,null,null,null,null,null,null,null,null,null,null,null,null,null,null,null,"Solano"]
["(b)(2) Has Applicant contracted with an Administrative Subcontractor to qualify toward organizational stability and experience requirement? If yes, submit docs below.",null,null,null,null,null,null,null,null,null,null,null,null,null,null,null,null,null,null,null,null,null,null,null,null,null,null,null,null,null,null,null,null,null,null,null,null,null,"Sonoma"]
["File Name:",null,null,"Admin Subcontractor",null,null,null,null,null,null,null,"Copy of contract with Administrative Subcontractor (must include contact info)",null,null,null,null,null,null,null,null,null,null,null,null,null,null,null,null,null,null,null,"Uploaded to HCD?",null,null,null,null,null,null,"Stanislaus"]
["(c)(1) Did the Applicant submit outstanding reports from previous CalHome grants to HCD by the application date?",null,null,null,null,null,null,null,null,null,null,null,null,null,null,null,null,null,null,null,null,null,null,null,null,null,null,null,null,null,null,null,null,null,null,null,null,null,"Sutter"]
["Applicants may use their own resolution format as long as it contains ALL of the authorizations as in the sample.\nThe person attesting to the resolution signing cannot be the same person authorized to execute the documents in the name of the Applicant.\nIf more than one authorized signatory is identified, state whether both signatories are required or only one signatory is required to submit and execute Program docs.\nIf the application is being signed by a designee of the authorized signatory, the Applicant must also submit a designee letter or other proof of signing authority.",null,null,null,null,null,null,null,null,null,null,null,null,null,null,null,null,null,null,null,null,null,null,null,null,null,null,null,null,null,null,null,null,null,null,null,null,null,"Tehama"]
["File Name",null,null,"Resolution",null,null,null,null,null,null,null,"Copy of the County Resolution §7754(b) - sample on the CalHome webpage",null,null,null,null,null,null,null,null,null,null,null,null,null,null,null,null,null,null,null,"Attached?",null,null,null,null,null,null,"Trinity"]
["File Name:",null,null,"Signature Block",null,null,null,null,null,null,null,"Signature Block in MS Word. Will be used in HCD legal docs such as Standard Agreement",null,null,null,null,null,null,null,null,null,null,null,null,null,null,null,null,null,null,null,"Uploaded to HCD?",null,null,null,null,null,null,"Tulare"]
["File Name",null,null,"Payee Data Record",null,null,null,null,null,null,null,"Payee Data Record STD-204 on the CalHome webpage.",null,null,null,null,null,null,null,null,null,null,null,null,null,null,null,null,null,null,null,"Uploaded to HCD?",null,null,null,null,null,null,"Tuolumne"]
["File Name",null,null,"FISCAL TIN Form",null,null,null,null,null,null,null,"Taxpayer Identification Number (TIN) (public entities only) on the CalHome webpage",null,null,null,null,null,null,null,null,null,null,null,null,null,null,null,null,null,null,null,"Uploaded to HCD?",null,null,null,null,null,null,"Ventura"]
["File Name:",null,null,"Loan Servicing Plan",null,null,null,null,null,null,null,"Loan Servicing Plan that complies with §7723 requirements",null,null,null,null,null,null,null,null,null,null,null,null,null,null,null,null,null,null,null,"Uploaded to HCD?",null,null,null,null,null,null,"Yolo"]
["File Name:",null,null,"Reuse Acct Plan",null,null,null,null,null,null,null,"Reuse Account Plan that complies with §7724 requirements",null,null,null,null,null,null,null,null,null,null,null,null,null,null,null,null,null,null,null,"Uploaded to HCD?",null,null,null,null,null,null,"Yuba"]
["File Name",null,null,"Cert & Legal",null,null,null,null,null,null,null,"Reference 'Certifications & Legal' Worksheet.",null,null,null,null,null,null,null,null,null,null,null,null,null,null,null,null,null,null,null,"Uploaded to HCD?"]
["Nonprofit Corporation Applicant"]
["File Name:",null,null,"Service Area Map",null,null,null,null,null,null,null,"Provide a Service Area Map",null,null,null,null,null,null,null,null,null,null,null,null,null,null,null,null,null,null,null,"Uploaded to HCD?"]
["(a)(2) Has the Applicant developed a project or operated a housing program in California within the past two years? \n                                                                                                                                           OR"]
["(a)(2) Does the Applicant have an existing 523 Self-Help Technical Assistance Grant Agreement with United States Department of Agriculture (USDA)? "]
["File Name:",null,null,"Experience",null,null,null,null,null,null,null,"Provide copy of Grant's Agreement.",null,null,null,null,null,null,null,null,null,null,null,null,null,null,null,null,null,null,null,"Uploaded to HCD?"]
["(b)(1) Does Applicant have sufficient organizational stability and capacity to carry out the activity for which it is requesting funds? Describe stability and capacity below."]
[]
["(b)(2) Has the Applicant been operating as a housing Developer or housing program administrator for a minimum of two years prior to the date of application?"]
["(b)(3) Have the Applicant's tax exempt purposes for the two years prior to the date of application included the activity for which it is applying?"]
["File Name:",null,null,"IRS 501C3",null,null,null,null,null,null,null,"IRS Approval of 501(c)(3) Status",null,null,null,null,null,null,null,null,null,null,null,null,null,null,null,null,null,null,null,"Uploaded to HCD?"]
["(b)(4) Does the Applicant certify it is financially stable to administer funds for activities in which it is applying?"]
["File Name:",null,null,"Financial Stmnts",null,null,null,null,null,null,null,"Financial Statements (for last 2 fiscal years, one of which must be audited)",null,null,null,null,null,null,null,null,null,null,null,null,null,null,null,null,null,null,null,"Uploaded to HCD?"]
["(c)(1) Did the Applicant submit outstanding reports from previous CalHome grants to HCD by the application date?"]
["Applicants may use their own resolution format as long as it contains ALL of the authorizations as in the sample.\nThe person attesting to the resolution signing cannot be the same person authorized to execute the documents in the name of the Applicant.\nIf more than one authorized signatory is identified, state whether both signatories are required or only one signatory is required to submit and execute Program docs.\nIf the application is being signed by a designee of the authorized signatory, the Applicant must also submit a designee letter or other proof of signing authority."]
["File Name",null,null,"Resolution",null,null,null,null,null,null,null,"Copy of the County Resolution §7754(b) - sample on the CalHome webpage",null,null,null,null,null,null,null,null,null,null,null,null,null,null,null,null,null,null,null,"Attached?"]
["File Name",null,null,"Payee Data Record",null,null,null,null,null,null,null,"Payee Data Record STD-204 on the CalHome webpage.",null,null,null,null,null,null,null,null,null,null,null,null,null,null,null,null,null,null,null,"Uploaded to HCD?"]
["File Name:",null,null,"Loan Servicing Plan",null,null,null,null,null,null,null,"Loan Servicing Plan that complies with §7723 requirements",null,null,null,null,null,null,null,null,null,null,null,null,null,null,null,null,null,null,null,"Uploaded to HCD?"]
["File Name:",null,null,"Reuse Acct Plan",null,null,null,null,null,null,null,"Reuse Account Plan that complies with §7724 requirements",null,null,null,null,null,null,null,null,null,null,null,null,null,null,null,null,null,null,null,"Uploaded to HCD?"]
["File Name:",null,null,"Articles of Inc",null,null,null,null,null,null,null,"Articles of Inc. (Corp. Code §154, 200 & 202) as certified by CA Secretary of State.",null,null,null,null,null,null,null,null,null,null,null,null,null,null,null,null,null,null,null,"Uploaded to HCD?"]
["File Name:",null,null,"Cert of Amend Articles",null,null,null,null,null,null,null,"Corp. Code §5810-5820, §7810-7820, or §12500-12510.",null,null,null,null,null,null,null,null,null,null,null,null,null,null,null,null,null,null,null,"Uploaded to HCD?"]
["File Name:",null,null,"Restated Articles",null,null,null,null,null,null,null,"Corp. Code §5811, 5815, 5819; §7811, 7815 and 7819; and §12501, 12506 and 12510.",null,null,null,null,null,null,null,null,null,null,null,null,null,null,null,null,null,null,null,"Uploaded to HCD?"]
["File Name:",null,null,"Bylaws",null,null,null,null,null,null,null,"Corp. Code §207(b), 211 and 212",null,null,null,null,null,null,null,null,null,null,null,null,null,null,null,null,null,null,null,"Uploaded to HCD?"]
["File Name:",null,null,"SOS Letter",null,null,null,null,null,null,null,"Secretary of State Letter of Good Standing",null,null,null,null,null,null,null,null,null,null,null,null,null,null,null,null,null,null,null,"Uploaded to HCD?"]
["File Name:",null,null,"Board of Directors",null,null,null,null,null,null,null,"List of Name of Board of Directors",null,null,null,null,null,null,null,null,null,null,null,null,null,null,null,null,null,null,null,"Uploaded to HCD?"]
["File Name:",null,null,"Signature Block",null,null,null,null,null,null,null,"Signature Block in MS Word. Will be used in HCD legal docs such as Standard Agreement",null,null,null,null,null,null,null,null,null,null,null,null,null,null,null,null,null,null,null,"Uploaded to HCD?"]
["File Name",null,null,"Cert & Legal",null,null,null,null,null,null,null,"Reference 'Certifications & Legal' Worksheet.",null,null,null,null,null,null,null,null,null,null,null,null,null,null,null,null,null,null,null,"Uploaded to HCD?"]

{"sheet":"MAPPING","index":3,"n_rows":5,"n_cols":133,"rows_kept":5,"cut":false,"hidden":true,"merged":[[2,92,2,98],[2,99,2,105],[2,106,2,112],[2,68,3,68],[2,69,3,75],[2,76,3,76],[2,77,3,77],[2,78,2,84],[2,85,2,91],[2,67,3,67],[2,56,3,56],[2,57,3,57],[2,58,3,58],[2,59,3,59],[2,60,3,60],[2,61,3,61],[2,62,3,62],[2,63,3,63],[2,64,3,64],[2,65,3,65],[2,66,3,66],[2,55,3,55],[2,44,3,44],[2,45,3,45],[2,46,3,46],[2,47,3,47],[2,48,3,48],[2,49,3,49],[2,50,3,50],[2,51,3,51],[2,52,3,52],[2,53,3,53],[2,54,3,54],[2,43,3,43],[2,32,3,32],[2,33,3,33],[2,34,3,34],[2,35,3,35],[2,36,3,36],[2,37,3,37],[2,38,3,38],[2,39,3,39],[2,40,3,40],[2,41,3,41],[2,42,3,42],[0,127,1,132],[1,19,3,19],[1,20,3,20],[1,23,1,24],[1,25,1,26],[1,27,1,28],[1,29,1,30],[1,31,1,32],[1,33,1,34],[1,35,1,36],[0,44,1,51],[0,52,1,55],[0,56,1,59],[0,60,1,114],[0,115,1,120],[2,26,3,26],[0,121,1,126],[0,18,3,18],[0,19,0,20],[0,21,3,21],[0,22,3,22],[0,23,0,38],[0,39,1,43],[1,37,1,38],[2,23,3,23],[2,24,3,24],[2,25,3,25],[2,31,3,31],[2,27,3,27],[2,28,3,28],[2,29,3,29],[2,30,3,30],[0,17,3,17],[0,6,3,6],[0,7,3,7],[0,8,3,8],[0,9,3,9],[0,10,3,10],[0,11,3,11],[0,12,3,12],[0,13,3,13],[0,14,3,14],[0,15,3,15],[0,16,3,16],[0,5,3,5],[0,0,2,0],[0,1,2,1],[0,2,2,2],[0,3,2,3],[0,4,3,4]]}
["Count","HCD Contract #","CAPES App#","Received Date","Applicant Name","Applicant Type","Applicant Street Address","Applicant City","State","Applicant Zip Code","Applicant County","Authorized\nRep Name","Authorized\nRep Title","Authorized\nRep Email","Authorized\nRep Phone #","Contact Person\nName","Contact Person\nTitle","Contact Person\nEmail","Contact Person Phone Number","Eligible Activities §7718",null,"Assisted County","Approx. Allocation","Total Uses of Funds §7719: Activity Type",null,null,null,null,null,null,null,null,null,null,null,null,null,null,null,"MA - Article 4",null,null,null,null,"OOR - Article 5",null,null,null,null,null,null,null,"SHP - Article 7",null,null,null,"SHTA - Article 6",null,null,null,"PDL - Article 8",null,null,null,null,null,null,null,null,null,null,null,null,null,null,null,null,null,null,null,null,null,null,null,null,null,null,null,null,null,null,null,null,null,null,null,null,null,null,null,null,null,null,null,null,null,null,null,null,null,null,null,null,null,null,"State Assembly",null,null,null,null,null,"State Senate",null,null,null,null,null,"U.S. House of Representatives"]
[null,null,null,null,null,null,null,null,null,null,null,null,null,null,null,null,null,null,null,"Program Activities","Project Activities",null,null,"First-Time Homebuyer for Mortgage Assistance §7718(a)(1)",null,"Owner-Occupied Rehabilitation §7718(a)(2)",null,"Technical Assistance for Shared Housing Program §7718(a)(4)",null,"Program Activity Total",null,"Homeownership Project Development Loans §7718(b)",null,"Technical Assistance for Self-Help Housing Projects §7718(a)(3)",null,"Project Activity Total",null,"TOTAL FUNDS REQUEST"]
[null,null,null,null,null,null,null,null,null,null,null,null,null,null,null,null,null,null,null,null,null,null,null,"CalHome Funds Request","CalHome Funds Eligible","CalHome Funds Request","CalHome Funds Eligible","CalHome Funds Request","CalHome Funds Eligible","Total CalHome Funds Request","Total CalHome Funds Eligible","CalHome Funds Request","CalHome Funds Eligible","CalHome Funds Request","CalHome Funds Eligible","Total CalHome Funds Request","Total CalHome Funds Eligible","Total CalHome Funds Request","Total CalHome Funds Eligible","No. of Assisted units","MA Funds Requested","MA Activity Delivery Fee","Total MA Funds","QCT?","OOR Activity 1","OOR Activity 2","Proposed # of Assisted non-manufactured units","Proposed # of Assisted manufactured units","OOR Funds Requested","OOR Activity Delivery Fee","Total OOR Funds","QCT?","No. of Assisted units","SHP Funds Requested","Total SHP Funds","QCT?","No. of Assisted units","SHTA Funds Requested","Total SHTA Funds","QCT?","No. of Assisted units","PDL Funds Requested","Total PDL Funds","QCT?","Development Name","Address","City ","County","Zip","APN(s)",null,null,null,null,null,null,"Proposed Development total units","Unit Type","Unit Breakdown 1",null,null,null,null,null,null,"Unit Breakdown 2",null,null,null,null,null,null,"Unit Breakdown 3",null,null,null,null,null,null,"Unit Breakdown 4",null,null,null,null,null,null,"Unit Breakdown 5",null,null,null,null,null,null,null,null,"District No.","Name","District No.","Name","District No.","Name","District No.","Name","District No.","Name","District No.","Name","District No.","Name","District No.","Name","District No.","Name"]
[null,null,null,null,null,null,null,null,null,null,null,null,null,null,null,null,null,null,null,null,null,null,null,null,null,null,null,null,null,null,null,null,null,null,null,null,null,null,null,null,null,null,null,null,null,null,null,null,null,null,null,null,null,null,null,null,null,null,null,null,null,null,null,null,null,null,null,null,null,null,null,null,null,null,null,null,null,null,"Model No.","Number units","Sq footage","No. bedrooms","No. bathrooms","Total Liens","Proposed Sales Price*","Model No.","Number units","Sq footage","No. bedrooms","No. bathrooms","Total Liens","Proposed Sales Price*","Model No.","Number units","Sq footage","No. bedrooms","No. bathrooms","Total Liens","Proposed Sales Price*","Model No.","Number units","Sq footage","No. bedrooms","No. bathrooms","Total Liens","Proposed Sales Price*","Model No.","Number units","Sq footage","No. bedrooms","No. bathrooms","Total Liens","Proposed Sales Price*","Proposed annual household income","County Median Income"]
[null,null,null,null,{"$f":"'Applicant and Activity'!#REF!","v":{"$error":"#REF!"}},{"$f":"'Applicant and Activity'!$E$3","v":0},{"$f":"'Applicant and Activity'!$C$4","v":0},{"$f":"'Applicant and Activity'!$S$4","v":0},{"$f":"'Applicant and Activity'!$AH$4","v":0},{"$f":"'Applicant and Activity'!$AJ$4","v":0},{"$f":"'Applicant and Activity'!$AB$4","v":0},{"$f":"'Applicant and Activity'!$E$5","v":0},{"$f":"'Applicant and Activity'!$N$5","v":0},{"$f":"'Applicant and Activity'!$X$5","v":0},{"$f":"'Applicant and Activity'!$AI$5","v":0},{"$f":"'Applicant and Activity'!$E$6","v":0},{"$f":"'Applicant and Activity'!$N$6","v":0},{"$f":"'Applicant and Activity'!$X$6","v":0},{"$f":"'Applicant and Activity'!$AI$6","v":0},{"$f":"'Applicant and Activity'!$G$25","v":0},{"$f":"'Applicant and Activity'!$G$26","v":0},{"$f":"'Applicant and Activity'!#REF!","v":{"$error":"#REF!"}},{"$f":"'Applicant and Activity'!#REF!","v":{"$error":"#REF!"}},{"$f":"'Applicant and Activity'!#REF!","v":{"$error":"#REF!"}},{"$f":"'Applicant and Activity'!#REF!","v":{"$error":"#REF!"}},{"$f":"'Applicant and Activity'!#REF!","v":{"$error":"#REF!"}},{"$f":"'Applicant and Activity'!#REF!","v":{"$error":"#REF!"}},{"$f":"'Applicant and Activity'!#REF!","v":{"$error":"#REF!"}},{"$f":"'Applicant and Activity'!#REF!","v":{"$error":"#REF!"}},{"$f":"'Applicant and Activity'!#REF!","v":{"$error":"#REF!"}},{"$f":"'Applicant and Activity'!#REF!","v":{"$error":"#REF!"}},{"$f":"'Applicant and Activity'!#REF!","v":{"$error":"#REF!"}},{"$f":"'Applicant and Activity'!#REF!","v":{"$error":"#REF!"}},{"$f":"'Applicant and Activity'!#REF!","v":{"$error":"#REF!"}},{"$f":"'Applicant and Activity'!#REF!","v":{"$error":"#REF!"}},{"$f":"'Applicant and Activity'!#REF!","v":{"$error":"#REF!"}},{"$f":"'Applicant and Activity'!#REF!","v":{"$error":"#REF!"}},{"$f":"'Applicant and Activity'!#REF!","v":{"$error":"#REF!"}},{"$f":"'Applicant and Activity'!#REF!","v":{"$error":"#REF!"}},{"$f":"'Mortgage Asst MA - Article 4'!#REF!","v":{"$error":"#REF!"}},{"$f":"'Mortgage Asst MA - Article 4'!#REF!","v":{"$error":"#REF!"}},{"$f":"'Mortgage Asst MA - Article 4'!#REF!","v":{"$error":"#REF!"}},{"$f":"'Mortgage Asst MA - Article 4'!#REF!","v":{"$error":"#REF!"}},{"$f":"'Mortgage Asst MA - Article 4'!#REF!","v":{"$error":"#REF!"}},{"$f":"'OOR - Article 5'!#REF!","v":{"$error":"#REF!"}},{"$f":"'OOR - Article 5'!#REF!","v":{"$error":"#REF!"}},{"$f":"'OOR - Article 5'!#REF!","v":{"$error":"#REF!"}},{"$f":"'OOR - Article 5'!#REF!","v":{"$error":"#REF!"}},{"$f":"'OOR - Article 5'!#REF!","v":{"$error":"#REF!"}},{"$f":"'OOR - Article 5'!#REF!","v":{"$error":"#REF!"}},{"$f":"'OOR - Article 5'!#REF!","v":{"$error":"#REF!"}},{"$f":"'OOR - Article 5'!#REF!","v":{"$error":"#REF!"}},{"$f":"'Shared Hsng SHP - Article 7'!#REF!","v":{"$error":"#REF!"}},{"$f":"'Shared Hsng SHP - Article 7'!#REF!","v":{"$error":"#REF!"}},{"$f":"'Shared Hsng SHP - Article 7'!#REF!","v":{"$error":"#REF!"}},{"$f":"'Shared Hsng SHP - Article 7'!#REF!","v":{"$error":"#REF!"}},{"$f":"'Self-Help SHTA - Article 6'!#REF!","v":{"$error":"#REF!"}},{"$f":"'Self-Help SHTA - Article 6'!#REF!","v":{"$error":"#REF!"}},{"$f":"'Self-Help SHTA - Article 6'!#REF!","v":{"$error":"#REF!"}},{"$f":"'Self-Help SHTA - Article 6'!#REF!","v":{"$error":"#REF!"}},{"$f":"'Develop Project PDL - Article 9'!#REF!","v":{"$error":"#REF!"}},{"$f":"'Develop Project PDL - Article 9'!#REF!","v":{"$error":"#REF!"}},{"$f":"'Develop Project PDL - Article 9'!#REF!","v":{"$error":"#REF!"}},{"$f":"'Develop Project PDL - Article 9'!#REF!","v":{"$error":"#REF!"}},{"$f":"'Develop Project PDL - Article 9'!$F$10","v":0},{"$f":"'Develop Project PDL - Article 9'!$C$11","v":0},{"$f":"'Develop Project PDL - Article 9'!$W$11","v":0},{"$f":"'Develop Project PDL - Article 9'!$AF$11","v":0},{"$f":"'Develop Project PDL - Article 9'!$AJ$11","v":0},{"$f":"'Develop Project PDL - Article 9'!$C$18","v":0},{"$f":"'Develop Project PDL - Article 9'!$G$18","v":0},{"$f":"'Develop Project PDL - Article 9'!$L$18","v":0},{"$f":"'Develop Project PDL - Article 9'!$Q$18","v":0},{"$f":"'Develop Project PDL - Article 9'!$V$18","v":0},{"$f":"'Develop Project PDL - Article 9'!$AA$18","v":0},{"$f":"'Develop Project PDL - Article 9'!$AF$18","v":0},{"$f":"'Develop Project PDL - Article 9'!#REF!","v":{"$error":"#REF!"}},{"$f":"'Develop Project PDL - Article 9'!#REF!","v":{"$error":"#REF!"}},{"$f":"'Develop Project PDL - Article 9'!$A$80","v":0},{"$f":"'Develop Project PDL - Article 9'!$F$80","v":0},{"$f":"'Develop Project PDL - Article 9'!$H$80","v":0},{"$f":"'Develop Project PDL - Article 9'!$L$80","v":0},{"$f":"'Develop Project PDL - Article 9'!$O$80","v":0},{"$f":"'Develop Project PDL - Article 9'!$R$80","v":0},{"$f":"'Develop Project PDL - Article 9'!$V$80","v":0},{"$f":"'Develop Project PDL - Article 9'!$A$81","v":0},{"$f":"'Develop Project PDL - Article 9'!$F$81","v":0},{"$f":"'Develop Project PDL - Article 9'!$H$81","v":0},{"$f":"'Develop Project PDL - Article 9'!$L$81","v":0},{"$f":"'Develop Project PDL - Article 9'!$O$81","v":0},{"$f":"'Develop Project PDL - Article 9'!$R$81","v":0},{"$f":"'Develop Project PDL - Article 9'!$V$81","v":0},{"$f":"'Develop Project PDL - Article 9'!$A$82","v":0},{"$f":"'Develop Project PDL - Article 9'!$F$82","v":0},{"$f":"'Develop Project PDL - Article 9'!$H$82","v":0},{"$f":"'Develop Project PDL - Article 9'!$L$82","v":0},{"$f":"'Develop Project PDL - Article 9'!$O$82","v":0},{"$f":"'Develop Project PDL - Article 9'!$R$82","v":0},{"$f":"'Develop Project PDL - Article 9'!$V$82","v":0},{"$f":"'Develop Project PDL - Article 9'!$A$83","v":0},{"$f":"'Develop Project PDL - Article 9'!$F$83","v":0},{"$f":"'Develop Project PDL - Article 9'!$H$83","v":0},{"$f":"'Develop Project PDL - Article 9'!$L$83","v":0},{"$f":"'Develop Project PDL - Article 9'!$O$83","v":0},{"$f":"'Develop Project PDL - Article 9'!$R$83","v":0},{"$f":"'Develop Project PDL - Article 9'!$V$83","v":0},{"$f":"'Develop Project PDL - Article 9'!$A$84","v":0},{"$f":"'Develop Project PDL - Article 9'!$F$84","v":0},{"$f":"'Develop Project PDL - Article 9'!$H$84","v":0},{"$f":"'Develop Project PDL - Article 9'!$L$84","v":0},{"$f":"'Develop Project PDL - Article 9'!$O$84","v":0},{"$f":"'Develop Project PDL - Article 9'!$R$84","v":0},{"$f":"'Develop Project PDL - Article 9'!$V$84","v":0},{"$f":"'Develop Project PDL - Article 9'!#REF!","v":{"$error":"#REF!"}},{"$f":"'Develop Project PDL - Article 9'!#REF!","v":{"$error":"#REF!"}},{"$f":"'Applicant and Activity'!$A$10","v":0},{"$f":"'Applicant and Activity'!$C$10","v":0},{"$f":"'Applicant and Activity'!$A$14","v":0},{"$f":"'Applicant and Activity'!$C$14","v":0},{"$f":"'Applicant and Activity'!$A$15","v":0},{"$f":"'Applicant and Activity'!$C$15","v":0},{"$f":"'Applicant and Activity'!$M$10","v":0},{"$f":"'Applicant and Activity'!$O$10","v":0},{"$f":"'Applicant and Activity'!$M$14","v":0},{"$f":"'Applicant and Activity'!$O$14","v":0},{"$f":"'Applicant and Activity'!$M$15","v":0},{"$f":"'Applicant and Activity'!$O$15","v":0},{"$f":"'Applicant and Activity'!$Z$10","v":0},{"$f":"'Applicant and Activity'!$AB$10","v":0},{"$f":"'Applicant and Activity'!$Z$14","v":0},{"$f":"'Applicant and Activity'!$AB$14","v":0},{"$f":"'Applicant and Activity'!$Z$15","v":0},{"$f":"'Applicant and Activity'!$AB$15","v":0}]

{"sheet":"Mortgage Asst MA - Article 4","index":4,"n_rows":63,"n_cols":40,"rows_kept":63,"cut":false,"hidden":true,"merged":[[52,0,52,2],[52,3,52,10],[55,0,55,2],[55,3,55,10],[58,36,58,37],[53,3,53,10],[53,11,53,30],[53,31,53,35],[54,0,54,2],[54,3,54,10],[54,11,54,30],[54,31,54,35],[54,36,54,37],[57,0,57,35],[57,36,57,37],[55,11,55,30],[55,31,55,35],[55,36,55,37],[58,0,58,2],[58,3,58,10],[58,11,58,30],[58,31,58,35],[52,11,52,30],[52,31,52,35],[48,34,48,37],[49,34,49,37],[50,27,50,29],[50,30,50,33],[50,34,50,37],[51,27,51,29],[48,0,48,26],[49,0,49,26],[50,0,50,26],[51,0,51,26],[62,0,62,34],[62,35,62,37],[36,0,36,34],[36,35,36,37],[37,0,37,34],[41,35,41,37],[41,0,41,34],[47,0,47,34],[47,35,47,37],[37,35,39,37],[38,0,38,11],[38,12,38,23],[38,24,38,34],[39,0,39,11],[39,12,39,23],[39,24,39,34],[45,36,45,37],[56,0,56,2],[56,3,56,10],[56,11,56,30],[56,31,56,35],[56,36,56,37],[46,11,46,30],[49,27,49,29],[24,0,24,24],[25,0,25,24],[9,0,9,37],[19,0,19,37],[15,29,15,34],[17,1,17,28],[14,1,14,28],[14,35,14,37],[17,35,17,37],[18,35,18,37],[15,35,15,37],[16,1,16,28],[11,0,11,37],[16,29,16,34],[17,29,17,34],[18,1,18,28],[18,29,18,34],[22,28,22,33],[0,35,0,37],[0,0,0,34],[20,0,20,37],[22,25,22,27],[23,25,23,27],[21,0,21,35],[21,36,21,37],[10,0,10,37],[16,35,16,37],[13,35,13,37],[12,29,12,34],[13,1,13,28],[12,0,12,28],[13,29,13,34],[14,29,14,34],[15,1,15,28],[12,35,12,37],[2,21,2,31],[2,32,2,37],[4,18,4,24],[4,25,4,31],[5,0,5,17],[5,18,5,24],[5,25,5,31],[52,36,52,37],[53,0,53,2],[53,36,53,37],[28,25,28,27],[28,31,28,33],[49,30,49,33],[35,0,35,34],[34,35,34,37],[30,36,30,37],[29,0,29,35],[51,34,51,37],[35,35,35,37],[31,0,31,35],[31,36,31,37],[48,27,48,29],[48,30,48,33],[51,30,51,33],[28,28,28,30],[40,0,40,2],[40,3,40,10],[40,11,40,30],[46,0,46,2],[46,3,46,10],[46,31,46,35],[26,31,26,33],[26,34,26,37],[24,28,24,30],[24,31,24,33],[24,25,24,27],[24,34,24,37],[22,34,22,37],[27,0,27,24],[27,25,27,27],[25,34,25,37],[22,0,22,24],[23,0,23,24],[26,25,26,27],[27,28,27,30],[27,31,27,33],[26,28,26,30],[23,28,23,30],[23,31,23,33],[27,34,27,37],[25,28,25,30],[25,31,25,33],[26,0,26,24],[25,25,25,27],[23,34,23,37],[46,36,46,37],[42,0,42,35],[43,0,43,35],[44,0,44,35],[28,0,28,24],[40,31,40,35],[40,36,40,37],[45,0,45,35],[43,36,43,37],[44,36,44,37],[34,0,34,34],[32,0,32,37],[30,0,30,35],[33,35,33,37],[28,34,28,37],[29,36,29,37],[33,0,33,34],[42,36,42,37],[1,0,1,37],[6,0,6,17],[6,18,6,24],[6,25,6,31],[8,0,8,17],[8,18,8,24],[8,25,8,31],[3,0,3,35],[3,36,3,37],[7,0,7,17],[7,18,7,24],[7,25,7,31],[4,0,4,17],[4,32,4,37],[5,32,5,37],[6,32,6,37],[7,32,7,37],[8,32,8,37],[2,0,2,17],[2,18,2,20],[59,0,59,35],[59,36,59,37],[60,0,60,15],[60,16,60,20],[60,21,60,28],[60,29,60,37],[61,0,61,2],[61,3,61,10],[61,11,61,30],[61,31,61,35],[61,36,61,37]]}
["First Time Homebuyer Mortgage Assistance (MA) Program - Article 4",null,null,null,null,null,null,null,null,null,null,null,null,null,null,null,null,null,null,null,null,null,null,null,null,null,null,null,null,null,null,null,null,null,null,{"$f":"'CalHome Coverpage'!A5","v":"2021-08-06"}]
["Assisted units: gap loans to households at or below 120% of AMI who were either: 1. formerly renters physically or economically displaced by a disaster, as defined in Gov Code §8680.3, in need of mortgage assistance to purchase newly constructed homes that are ready for occupancy; or 2. owners of a dwelling unit out of compliance with building codes because of a disaster, as defined in Gov Code §8680.3, which cannot be brought into compliance for less than the cost of constructing a permanent structure."]
["Proposed # of Assisted units:",null,null,null,null,null,null,null,null,null,null,null,null,null,null,null,null,null,null,null,null,"Remaining Allocation:",null,null,null,null,null,null,null,null,null,null,{"$f":"IF('Applicant and Activity'!Z28=\"\",\"\",IF(ISNUMBER(SEARCH(4,_xlfn.SINGLE(ProgramActivities))),'Applicant and Activity'!Z28-'Applicant and Activity'!P35,0))","v":""}]
["Will the Applicant provide homebuyer education classes?"]
[null,null,null,null,null,null,null,null,null,null,null,null,null,null,null,null,null,null,"MA Funds Request",null,null,null,null,null,null,"MA Maximum Eligible",null,null,null,null,null,null,"Per Assist. Unit Request"]
["MA Funds - lesser of $100,000 or 40% of purchase price per unit, NOFA",null,null,null,null,null,null,null,null,null,null,null,null,null,null,null,null,null,null,null,null,null,null,null,null,{"$f":"S3*100000","v":0},null,null,null,null,null,null,{"$f":"IFERROR(S6/$S$3,0)","v":0}]
["MA Activity Delivery Fee - 10%, §7729(d) and NOFA ",null,null,null,null,null,null,null,null,null,null,null,null,null,null,null,null,null,null,null,null,null,null,null,null,{"$f":"IFERROR(IF(S6=\"\",Z6*0.1,MIN(S6,Z6)*0.1),0)","v":0},null,null,null,null,null,null,{"$f":"IFERROR(S7/$S$3,0)","v":0}]
["Homebuyer education - $250 per unit, §7729(b) and NOFA",null,null,null,null,null,null,null,null,null,null,null,null,null,null,null,null,null,null,null,null,null,null,null,null,{"$f":"IF(AK4=\"Yes\",S3*250,0)","v":0},null,null,null,null,null,null,{"$f":"IFERROR(S8/$S$3,0)","v":0}]
["Total MA Funds",null,null,null,null,null,null,null,null,null,null,null,null,null,null,null,null,null,{"$f":"SUM(S6:Y8)","v":0},null,null,null,null,null,null,{"$f":"SUM(Z6:AF8)","v":0},null,null,null,null,null,null,{"$f":"IFERROR(S9/$S$3,0)","v":0}]
["§7754(d) Describe the proposed program including: amount applied for, number of units or households to be assisted, income levels of households to be assisted, description of prior experience with type of program applied for, geographic location of the activities, financing sources and uses, and description of contributed labor."]
[]
["§7754(d) Include Non-CalHome MA funding sources, descriptions, proposed lien positions, and amounts in lines 1 through 6 below:"]
["Non-CalHome MA Funding Sources and Source/Description of contributed labor",null,null,null,null,null,null,null,null,null,null,null,null,null,null,null,null,null,null,null,null,null,null,null,null,null,null,null,null,"Proposed Lien Position",null,null,null,null,null,"Amount"]
[1]
[2]
[3]
[4]
[5]
[6]
["§7754(f) Provide a description of how you will comply with the requirements for Local Program Administration set forth in §7721."]
[]
["§7725(a)(1) Applicant certifies the CalHome Program loans to individual Borrowers when considered with other available financing and assistance will not exceed the minimum amount necessary to ensure affordable monthly housing costs as defined by the first Mortgage Lender?"]
["§7728 The Applicant or its Administrative Subcontractor must have successfully administered a homebuyer program for a minimum of two years within the four years from the application due date.",null,null,null,null,null,null,null,null,null,null,null,null,null,null,null,null,null,null,null,null,null,null,null,null,"Units Assisted",null,null,"Administration within last four years",null,null,null,null,null,"Admin Years",null,null,null,{"$f":"AN23-(4*365)","v":"2017-10-29"},{"$f":"'Applicant and Activity'!AK3","v":"2021-10-28"}]
["Describe the applicable program(s) you have successfully administered within the last four years",null,null,null,null,null,null,null,null,null,null,null,null,null,null,null,null,null,null,null,null,null,null,null,null,{"$f":"SUM(AM25:AM29)","v":0},null,null,"Begin Date",null,null,"End Date",null,null,{"$f":"IF(SUM(AN25:AN29)<=0,0,SUM(AN25:AN29))","v":0},null,null,null,"Units","Years"]
[null,null,null,null,null,null,null,null,null,null,null,null,null,null,null,null,null,null,null,null,null,null,null,null,null,null,null,null,null,null,null,null,null,null,{"$f":"(IF(AF25>=$AM$23,AN25,0))","v":0},null,null,null,{"$f":"IF(AF25>=$AM$23,Z25,0)","v":0},{"$f":"IF(AF25=\"\",0,IF(AC25=\"\",0,IF(AC25<$AM$23,(AF25-$AM$23)/365,(AF25-AC25)/365)))","v":0}]
[null,null,null,null,null,null,null,null,null,null,null,null,null,null,null,null,null,null,null,null,null,null,null,null,null,null,null,null,null,null,null,null,null,null,{"$f":"IF(AF26>=$AM$23,AN26,0)","v":0},null,null,null,{"$f":"IF(AF26>=$AM$23,Z26,0)","v":0},{"$f":"IF(AF26=\"\",0,IF(AC26=\"\",0,IF(AC26<$AM$23,(AF26-$AM$23)/365,(AF26-AC26)/365)))","v":0}]
[null,null,null,null,null,null,null,null,null,null,null,null,null,null,null,null,null,null,null,null,null,null,null,null,null,null,null,null,null,null,null,null,null,null,{"$f":"IF(AF27>=$AM$23,AN27,0)","v":0},null,null,null,{"$f":"IF(AF27>=$AM$23,Z27,0)","v":0},{"$f":"IF(AF27=\"\",0,IF(AC27=\"\",0,IF(AC27<$AM$23,(AF27-$AM$23)/365,(AF27-AC27)/365)))","v":0}]
[null,null,null,null,null,null,null,null,null,null,null,null,null,null,null,null,null,null,null,null,null,null,null,null,null,null,null,null,null,null,null,null,null,null,{"$f":"IF(AF28>=$AM$23,AN28,0)","v":0},null,null,null,{"$f":"IF(AF28>=$AM$23,Z28,0)","v":0},{"$f":"IF(AF28=\"\",0,IF(AC28=\"\",0,IF(AC28<$AM$23,(AF28-$AM$23)/365,(AF28-AC28)/365)))","v":0}]
[null,null,null,null,null,null,null,null,null,null,null,null,null,null,null,null,null,null,null,null,null,null,null,null,null,null,null,null,null,null,null,null,null,null,{"$f":"IF(AF29>=$AM$23,AN29,0)","v":0},null,null,null,{"$f":"IF(AF29>=$AM$23,Z29,0)","v":0},{"$f":"IF(AF29=\"\",0,IF(AC29=\"\",0,IF(AC29<$AM$23,(AF29-$AM$23)/365,(AF29-AC29)/365)))","v":0}]
["§7729 Applicant certifies the CalHome funds in support of an MA Program will be only be used for these eligible costs?"]
["§7730 Applicant certifies it will be comply with these MA administration requirements?"]
["§7731 Applicant certifies it will develop and employ MA Program underwriting guidelines as required in and will comply with these and any additional underwriting requirements as deemed necessary by HCD? The MA guidelines must be submitted to and approved by HCD prior to execution of the Standard Agreement."]
["Selection Criteria §7755"]
["Total Self Score (minimum points required = 55; maximum points = 100)",null,null,null,null,null,null,null,null,null,null,null,null,null,null,null,null,null,null,null,null,null,null,null,null,null,null,null,null,null,null,null,null,null,null,{"$f":"AJ36+AJ37+AJ38+AJ42+AJ48+AJ63","v":0}]
["Rating Factors per NOFA (red shading indicates minimum score has not been achieved)",null,null,null,null,null,null,null,null,null,null,null,null,null,null,null,null,null,null,null,null,null,null,null,null,null,null,null,null,null,null,null,null,null,null,"Points"]
["§7755(b)(1) Capability - 40 Points Max\nCapability to operate the proposed MA Programs:\nNumber of MA units assisted within the last four years:\n   1 – 5 = 20 points \n   6 – 10 = 30 points \n   11 or more = 40 points",null,null,null,null,null,null,null,null,null,null,null,null,null,null,null,null,null,null,null,null,null,null,null,null,null,null,null,null,null,null,null,null,null,null,{"$f":"IF(AI24>=2,AM36,0)","v":0},null,null,{"$f":"IF(Z24>=11,40,IF(Z24>=6,30,IF(Z24>=1,20,0)))","v":0}]
["§7755(b)(2) Community Need - 15 Points\nCommunity need in a geographic area of the proposed MA Program will be based on the following factors:\n• Housing affordability in the geographic area: The ratio of the current median sales price of a single-family home to the AMI for a 4-person Household, in the county in which the CalHome program or project is located. The current median sales price is the most recent available from the California Association of Realtors as of the NOFA date, and the AMI is updated on an annual basis by HCD;\n• Percent of renter Households that are Low Income: The percent of Households in renter-occupied housing with incomes below 80 percent of AMI, as reported in the most recent HUD Comprehensive Housing Affordability Strategy U.S. Census Bureau American Community Survey (HUD CHAS) data;\n• Percent of renter Households occupying overcrowded housing: The percent of renter-occupied housing units with more than 1.5 occupants\nper room, as reported in the most recent HUD CHAS data; and\n• Rental vacancy rate: The percent of rental housing units that are currently vacant, as reported in the most recent HUD CHAS data.",null,null,null,null,null,null,null,null,null,null,null,null,null,null,null,null,null,null,null,null,null,null,null,null,null,null,null,null,null,null,null,null,null,null,{"$f":"IFERROR(VLOOKUP('Applicant and Activity'!$G$28,CalHome2021scoring!$A$3:$AN$60,10,FALSE),0)","v":0}]
["§7755(b)(3) Feasibility - 25 Points\nFeasibility in a geographic area for the proposed MA Programs will be based on the following factors:\n• Affordability of Homeownership relative to renting: The ratio of median Monthly Housing Costs for owner-occupied housing units with a Mortgage, to median Monthly Housing Costs for renter-occupied housing units, as reported in the most recent ACS data;\n• Availability of homes for sale relative to the proposed lending activity: The ratio of the following:\no The number of home sales in the previous year priced below either the current median sales price of a single-family home in the county in which the CalHome program is located, or $500,000, whichever is less; to\no The number of Loans that the Applicant expects to provide in the program.\no The Applicant will provide home sales information based on publicly available real estate transactions data (e.g., Zillow.com, Redfin.com).\nNote: In order to receive full points for Feasibility, the Applicant is required to research and provide information on Area Home Sales and Proposed number of Loans below:",null,null,null,null,null,null,null,null,null,null,null,null,null,null,null,null,null,null,null,null,null,null,null,null,null,null,null,null,null,null,null,null,null,null,{"$f":"IFERROR(VLOOKUP('Applicant and Activity'!$G$28,CalHome2021scoring!$A$3:$AN$60,25,FALSE),0)","v":0}]
["(a) The Number of Home Sales",null,null,null,null,null,null,null,null,null,null,null,"(b) Proposed Number of Loans","Proposed # of Loans",null,null,null,null,null,null,null,null,null,null,"(a)/(b) Ratio"]
[3,null,null,null,null,null,null,null,null,null,null,null,1,null,null,null,null,null,null,null,null,null,null,null,{"$f":"IFERROR(A40/M40,0)","v":3}]
["File Name:",null,null,"MA Feasibility",null,null,null,null,null,null,null,"Provide documentation public info documentation on home sales in the county in which the program is located in. (eg., Zillow.com, Redfin, Local Association of Realtors)",null,null,null,null,null,null,null,null,null,null,null,null,null,null,null,null,null,null,null,"Uploaded to HCD?"]
["Community Revitalization §7755(b)(4), §7716(l) - 10 Points\nContributes to Community Revitalization (to qualify - all Assisted units are, or will be, located within a federal Promise Zone or a Choice Neighborhood Initiative Area or an Opportunity Zone).",null,null,null,null,null,null,null,null,null,null,null,null,null,null,null,null,null,null,null,null,null,null,null,null,null,null,null,null,null,null,null,null,null,null,{"$f":"IF(AM42=\"Yes\",10,0)","v":0},null,null,{"$f":"IF(AND(OR(AK43=\"Yes\",AK44=\"Yes\",AK45=\"Yes\"),AK46=\"Yes\"),\"Yes\",\"No\")","v":"No"}]
["Federal Promise Zone (https://www.hudexchange.info/programs/promise-zones/)\nPromise Zones in California: Sacramento Promise Zone, Los Angeles Promise Zone, and San Diego Promise Zone, or"]
["Choice Neighborhood Initiative Area (https://www.hud.gov/cn, see grantee report). \nChoice Neighborhood Initiative Areas in California: Sacramento, San Francisco, and Los Angeles, or"]
["Opportunity Zone (https://esrimedia.maps.arcgis.com/apps/View)"]
["Applicant certifies ALL CalHome MA Assisted units will be in the Promise Zone, Opportunity Zone, or Choice Neighborhood?"]
["File Name:",null,null,"MA Community Revitalization",null,null,null,null,null,null,null,"Provide a print screen file showing Promise Zone, Neighbor Initiative Area or Op. Zone",null,null,null,null,null,null,null,null,null,null,null,null,null,null,null,null,null,null,null,"Uploaded to HCD?"]
["§7755(b)(5) Volunteer Labor, Self-Help Labor or Youth Construction Skills Training Program - 10 Points\nApplications applying for Homeownership Development Projects (PDL), Self-Help Technical Assistance Homeownership projects (SHTA), or a Mortgage Assistance Local Program (MA) for new construction housing or acquisition with substantial rehabilitation when the Recipient is acquiring and substantially rehabilitating properties for sale to First-Time Homebuyers, will receive up to 10 points to the extent that they are utilizing:\n(A) Volunteer or Self-Help Construction labor, where a minimum of 500 hours of on-site construction labor per Assisted Unit is provided; or\n(B) Labor provided by youth participating in a Construction Skills Training Program, where a minimum of 500 hours of on-site construction labor per Assisted Unit is provided. The 500 hours of construction training labor must be provided by the 16- to 24-year-old program participants; or\n(C) Minimum 15 percent of units include an ADU or a JADU. \n(D) Homeownership development projects are located in a High Resource or Highest Resource area, as identified on the TCAC/HCD Opportunity Area Map. ",null,null,null,null,null,null,null,null,null,null,null,null,null,null,null,null,null,null,null,null,null,null,null,null,null,null,null,null,null,null,null,null,null,null,{"$f":"IF(SUM(AI50:AL51)>=500,10,IF(AI52>=500,10,IF(OR(AK58=\"Yes\",AK60=\"Yes\"),10,0)))","v":0}]
["Enter hours of Volunteer Labor, Self-Help Labor, Youth Construction Skills Training Program",null,null,null,null,null,null,null,null,null,null,null,null,null,null,null,null,null,null,null,null,null,null,null,null,null,null,"Total Hours",null,null,"# Assisted Units",null,null,null,"Hours per Unit"]
["(A) Volunteer Labor",null,null,null,null,null,null,null,null,null,null,null,null,null,null,null,null,null,null,null,null,null,null,null,null,null,null,null,null,null,null,null,null,null,{"$f":"IFERROR(AB50/AE50,0)","v":0}]
["(A) Self-Help Construction Labor",null,null,null,null,null,null,null,null,null,null,null,null,null,null,null,null,null,null,null,null,null,null,null,null,null,null,null,null,null,null,null,null,null,{"$f":"IFERROR(AB51/AE51,0)","v":0}]
["(B) Labor provided by Youth Participating in a Construction Skills Training Program (Ages 16-24 only)",null,null,null,null,null,null,null,null,null,null,null,null,null,null,null,null,null,null,null,null,null,null,null,null,null,null,null,null,null,null,null,null,null,{"$f":"IFERROR(AB52/AE52,0)","v":0}]
["File Name:",null,null,"MA Labor Program Criteria",null,null,null,null,null,null,null,"As an attachment, describe the criteria for participation in your contributed labor program.",null,null,null,null,null,null,null,null,null,null,null,null,null,null,null,null,null,null,null,"Uploaded to HCD?"]
["File Name:",null,null,"MA Labor Program Agreement",null,null,null,null,null,null,null,"Attach a copy of the agreement form used for the contributed labor program.",null,null,null,null,null,null,null,null,null,null,null,null,null,null,null,null,null,null,null,"Uploaded to HCD?"]
["File Name:",null,null,"MA Labor Program Activities",null,null,null,null,null,null,null,"As an attachment, provide a description of activities performed by contributed labor participants.",null,null,null,null,null,null,null,null,null,null,null,null,null,null,null,null,null,null,null,"Uploaded to HCD?"]
["File Name:",null,null,"MA Labor Program Contracted",null,null,null,null,null,null,null,"As an attachment, provide a description of activities normally contracted out.",null,null,null,null,null,null,null,null,null,null,null,null,null,null,null,null,null,null,null,"Uploaded to HCD?"]
["File Name:",null,null,"MA Contributed Labor Program",null,null,null,null,null,null,null,"Provide evidence of previous administration of the type of contributed labor program proposed in this application. This includes documentation of completed projects; a copy of the board resolution authorizing the program, supported by completed projects; or copies of contracts with contributed labor participants. ",null,null,null,null,null,null,null,null,null,null,null,null,null,null,null,null,null,null,null,"Uploaded to HCD?"]
["(C) At least 15% of units include an ADU or JADU"]
["File Name:",null,null,"MA 15 % ADU",null,null,null,null,null,null,null,"Documentation showing at least 15% of total units include an ADU or JADU.",null,null,null,null,null,null,null,null,null,null,null,null,null,null,null,null,null,null,null,"Uploaded to HCD?"]
["(D) Is Project located in a High or Highest Resource Area per TCAC/HCD Opportunity Area Map available at the time of application §7307(b)(2), 7320(b)(2)(A), §7320(b)(4)(C), & §7320(b)(6)? https://www.treasurer.ca.gov/ctcac/opportunity.asp"]
["If \"Yes\", enter the entire TCAC/HCD Opportunity Area Map Tract ID #:",null,null,null,null,null,null,null,null,null,null,null,null,null,null,null,null,null,null,null,null,"Opportunity Area Map Category: "]
["File Name:",null,null,"Opportunity Area ",null,null,null,null,null,null,null,"Documentation of TCAC/HCD Opportunity Area status at time of application.",null,null,null,null,null,null,null,null,null,null,null,null,null,null,null,null,null,null,null,"Uploaded to HCD?"]
["§7755(c) Performance Penalty - A deduction to the total score will be applied for failure to meet CalHome Program Performance Goals pursuant to §7759.",null,null,null,null,null,null,null,null,null,null,null,null,null,null,null,null,null,null,null,null,null,null,null,null,null,null,null,null,null,null,null,null,null,null,0]

{"sheet":"OOR - Article 5","index":5,"n_rows":51,"n_cols":40,"rows_kept":51,"cut":false,"hidden":true,"merged":[[10,0,10,37],[36,35,36,37],[43,0,43,35],[43,36,43,37],[2,8,2,34],[3,8,3,34],[4,8,4,34],[2,0,2,7],[3,0,3,7],[4,0,4,7],[34,0,34,2],[34,3,34,10],[34,11,34,30],[34,31,34,35],[25,28,25,30],[26,31,26,33],[24,0,24,24],[23,0,23,24],[27,31,27,33],[24,25,24,27],[25,0,25,24],[2,35,2,37],[11,0,11,37],[13,0,13,28],[48,31,48,35],[48,36,48,37],[47,0,47,35],[47,36,47,37],[26,25,26,27],[27,25,27,27],[30,0,30,35],[30,36,30,37],[45,0,45,35],[26,0,26,24],[45,36,45,37],[44,0,44,35],[44,36,44,37],[42,0,42,35],[42,36,42,37],[34,36,34,37],[46,31,46,35],[46,36,46,37],[36,0,36,34],[37,0,37,34],[37,35,37,37],[35,0,35,37],[50,0,50,34],[50,35,50,37],[41,0,41,34],[41,35,41,37],[32,0,32,35],[32,36,32,37],[31,0,31,35],[31,36,31,37],[49,0,49,34],[49,35,49,37],[38,0,38,34],[38,35,38,37],[39,0,39,34],[39,35,39,37],[40,0,40,34],[40,35,40,37],[46,0,46,2],[46,3,46,10],[46,11,46,30],[48,0,48,2],[48,3,48,10],[48,11,48,30],[33,0,33,35],[33,36,33,37],[0,0,0,34],[0,35,0,37],[29,34,29,37],[15,1,15,28],[15,29,15,34],[15,35,15,37],[16,1,16,28],[16,29,16,34],[16,35,16,37],[17,1,17,28],[17,29,17,34],[18,35,18,37],[19,1,19,28],[19,29,19,34],[19,35,19,37],[20,0,20,37],[21,0,21,37],[24,28,24,30],[24,31,24,33],[18,1,18,28],[28,31,28,33],[23,25,23,27],[25,25,25,27],[24,34,24,37],[13,29,13,34],[13,35,13,37],[14,29,14,34],[14,35,14,37],[22,0,22,35],[22,36,22,37],[17,35,17,37],[12,0,12,37],[14,1,14,28],[18,29,18,34],[23,34,23,37],[23,28,23,33],[25,34,25,37],[25,31,25,33],[26,28,26,30],[27,28,27,30],[26,34,26,37],[27,0,27,24],[29,31,29,33],[28,25,28,27],[29,25,29,27],[29,28,29,30],[28,28,28,30],[28,0,28,24],[29,0,29,24],[28,34,28,37],[27,34,27,37],[1,0,1,37],[8,0,8,17],[8,18,8,24],[8,25,8,31],[9,0,9,17],[9,18,9,24],[9,25,9,31],[6,0,6,17],[6,32,6,37],[7,32,7,37],[8,32,8,37],[9,32,9,37],[5,0,5,17],[5,18,5,20],[5,21,5,31],[5,32,5,37],[6,18,6,24],[6,25,6,31],[7,0,7,17],[7,18,7,24],[7,25,7,31],[3,35,3,37],[4,35,4,37]]}
["Owner-Occupied Rehabilitation (OOR) Program - Article 5",null,null,null,null,null,null,null,null,null,null,null,null,null,null,null,null,null,null,null,null,null,null,null,null,null,null,null,null,null,null,null,null,null,null,{"$f":"'CalHome Coverpage'!A5","v":"2021-08-06"}]
["Owner-occupied repair, full reconstruction, or the addition of an ADU or JADU.\nAssisted units: households at or below 120 percent of AMI who were owner-occupants of a dwelling unit whose structure was damaged or destroyed by a disaster, as defined in Gov Code §8680.3 and in the NOFA . Assisted units must have after-rehabilitation values at or below the current local median sales price of a single-family home (see NOFA)."]
["Activity #1 §7718(a)(2)",null,null,null,null,null,null,null,"Proposed # of Assisted units (at or below 120 percent of AMI) other than accessory dwelling units or manufactured housing units"]
["Activity #2 §7718(a)(2)",null,null,null,null,null,null,null,"Proposed # of Assisted manufactured units"]
["Activity #3 §7718(a)(2)",null,null,null,null,null,null,null,"Proposed # of Assisted accessory dwelling units and/or Assisted junior accessory dwelling units"]
["Proposed # of Assisted units from above:",null,null,null,null,null,null,null,null,null,null,null,null,null,null,null,null,null,{"$f":"SUM(AJ3:AL5)","v":0},null,null,"Remaining Allocation:",null,null,null,null,null,null,null,null,null,null,{"$f":"IF('Applicant and Activity'!Z28=\"\",\"\",IF(ISNUMBER(SEARCH(5,_xlfn.SINGLE(ProgramActivities))),'Applicant and Activity'!Z28-'Applicant and Activity'!P35,0))","v":""}]
[null,null,null,null,null,null,null,null,null,null,null,null,null,null,null,null,null,null,"OOR Funds Request",null,null,null,null,null,null,"OOR Maximum Eligible",null,null,null,null,null,null,"Per Assist. Unit Request"]
["OOR Funds - $200,000 per unit, NOFA",null,null,null,null,null,null,null,null,null,null,null,null,null,null,null,null,null,null,null,null,null,null,null,null,{"$f":"S6*200000","v":0},null,null,null,null,null,null,{"$f":"IFERROR(S8/$S$6,0)","v":0}]
["OOR Activity Delivery Fee - 20%, §7729(d) and NOFA ",null,null,null,null,null,null,null,null,null,null,null,null,null,null,null,null,null,null,null,null,null,null,null,null,{"$f":"IFERROR(IF(S8=\"\",Z8*0.2,MIN(S8,Z8)*0.2),0)","v":0},null,null,null,null,null,null,{"$f":"IFERROR(S9/$S$6,0)","v":0}]
["Total OOR Funds",null,null,null,null,null,null,null,null,null,null,null,null,null,null,null,null,null,{"$f":"SUM(S8:Y9)","v":0},null,null,null,null,null,null,{"$f":"SUM(Z8:AF9)","v":0},null,null,null,null,null,null,{"$f":"IFERROR(S10/$S$6,0)","v":0}]
["§7754(d) Describe the proposed program including: amount applied for, number of units or households to be assisted, income levels of households to be assisted, description of prior experience with type of program applied for, geographic location of the activities, financing sources and uses, and description of contributed labor."]
[]
["§7754(d) Include Non-CalHome OOR funding sources, descriptions, proposed lien positions, and amount in lines 1 through 6 below:"]
["Non-CalHome OOR Funding Sources and Source",null,null,null,null,null,null,null,null,null,null,null,null,null,null,null,null,null,null,null,null,null,null,null,null,null,null,null,null,"Proposed Lien Position",null,null,null,null,null,"Amount"]
[1]
[2]
[3]
[4]
[5]
[6]
["§7754(f) Provide a description of how you will comply with the requirements for Local Program Administration set forth in §7721."]
[]
["§7725(a)(2) Applicant certifies the CalHome Program loans to individual Borrowers when considered with other available financing and assistance will not exceed the minimum amount necessary to fund eligible Rehabilitation costs only, in accordance with program requirements?"]
["§7732 Applicant or its Administrative Subcontractor must have successfully administered a local OOR Program for a minimum of two years within the four years from the application due date.",null,null,null,null,null,null,null,null,null,null,null,null,null,null,null,null,null,null,null,null,null,null,null,null,"Rehabs Completed",null,null,"Administration within last four years",null,null,null,null,null,"Admin Years",null,null,null,{"$f":"AN24-(4*365)","v":"2017-10-29"},{"$f":"'Applicant and Activity'!AK3","v":"2021-10-28"}]
["Describe the applicable program(s) you have successfully administered within the last four years",null,null,null,null,null,null,null,null,null,null,null,null,null,null,null,null,null,null,null,null,null,null,null,null,{"$f":"SUM(AM26:AM30)","v":0},null,null,"Begin Date",null,null,"End Date",null,null,{"$f":"IF(SUM(AN26:AN30)<=0,0,SUM(AN26:AN30))","v":0},null,null,null,"Rehabs","Years"]
[null,null,null,null,null,null,null,null,null,null,null,null,null,null,null,null,null,null,null,null,null,null,null,null,null,null,null,null,null,null,null,null,null,null,{"$f":"IF(AF26>=$AM$24,AN26,0)","v":0},null,null,null,{"$f":"IF(AF26>=$AM$24,Z26,0)","v":0},{"$f":"IF(AF26=\"\",0,IF(AC26=\"\",0,IF(AC26<$AM$24,(AF26-$AM$24)/365,(AF26-AC26)/365)))","v":0}]
[null,null,null,null,null,null,null,null,null,null,null,null,null,null,null,null,null,null,null,null,null,null,null,null,null,null,null,null,null,null,null,null,null,null,{"$f":"IF(AF27>=$AM$24,AN27,0)","v":0},null,null,null,{"$f":"IF(AF27>=$AM$24,Z27,0)","v":0},{"$f":"IF(AF27=\"\",0,IF(AC27=\"\",0,IF(AC27<$AM$24,(AF27-$AM$24)/365,(AF27-AC27)/365)))","v":0}]
[null,null,null,null,null,null,null,null,null,null,null,null,null,null,null,null,null,null,null,null,null,null,null,null,null,null,null,null,null,null,null,null,null,null,{"$f":"IF(AF28>=$AM$24,AN28,0)","v":0},null,null,null,{"$f":"IF(AF28>=$AM$24,Z28,0)","v":0},{"$f":"IF(AF28=\"\",0,IF(AC28=\"\",0,IF(AC28<$AM$24,(AF28-$AM$24)/365,(AF28-AC28)/365)))","v":0}]
[null,null,null,null,null,null,null,null,null,null,null,null,null,null,null,null,null,null,null,null,null,null,null,null,null,null,null,null,null,null,null,null,null,null,{"$f":"IF(AF29>=$AM$24,AN29,0)","v":0},null,null,null,{"$f":"IF(AF29>=$AM$24,Z29,0)","v":0},{"$f":"IF(AF29=\"\",0,IF(AC29=\"\",0,IF(AC29<$AM$24,(AF29-$AM$24)/365,(AF29-AC29)/365)))","v":0}]
[null,null,null,null,null,null,null,null,null,null,null,null,null,null,null,null,null,null,null,null,null,null,null,null,null,null,null,null,null,null,null,null,null,null,{"$f":"IF(AF30>=$AM$24,AN30,0)","v":0},null,null,null,{"$f":"IF(AF30>=$AM$24,Z30,0)","v":0},{"$f":"IF(AF30=\"\",0,IF(AC30=\"\",0,IF(AC30<$AM$24,(AF30-$AM$24)/365,(AF30-AC30)/365)))","v":0}]
["§7733 Applicant certifies the CalHome funds in support of an OOR Program will be only be used for these eligible costs?"]
["§7734 Applicant certifies it will be comply with these OOR administration requirements?"]
["§7735 Applicant certifies it will develop and employ OOR underwriting guidelines and will comply with these and any additional underwriting and construction requirements as deemed necessary by HCD? The OOR guidelines must be submitted to and approved by HCD prior to execution of the Standard Agreement."]
["NOFA Appendix B - Applicant certifies it will meet near and long-term resiliency standards in rebuilding homes destroyed by the identified disasters?"]
["File Name:",null,null,"OOR Resiliency Commitment",null,null,null,null,null,null,null,"Provide a narrative of your commitment to meet near and long term resiliency standards in rebuilding homes destroyed by a qualified FEMA disaster declaration.",null,null,null,null,null,null,null,null,null,null,null,null,null,null,null,null,null,null,null,"Uploaded to HCD?"]
["Selection Criteria §7755"]
["Total Self Score (minimum points required = 55; maximum points = 100)",null,null,null,null,null,null,null,null,null,null,null,null,null,null,null,null,null,null,null,null,null,null,null,null,null,null,null,null,null,null,null,null,null,null,{"$f":"AJ39+AJ40+AJ41+AJ42+AJ50+AJ51","v":0}]
["Rating Factors per NOFA (red shading indicates minimum score has not been achieved)",null,null,null,null,null,null,null,null,null,null,null,null,null,null,null,null,null,null,null,null,null,null,null,null,null,null,null,null,null,null,null,null,null,null,"Points"]
["§7755(b)(1) Capability - 40 Points Max\nCapability to operate the proposed OOR Programs:\nNumber of Rehabilitation/Reconstructed units assisted within the last four years:\n   1 – 5 = 20 points \n   6 – 10 = 30 points \n   11 or more = 40 points",null,null,null,null,null,null,null,null,null,null,null,null,null,null,null,null,null,null,null,null,null,null,null,null,null,null,null,null,null,null,null,null,null,null,{"$f":"IF(AI25>=2,AM39,0)","v":0},null,null,{"$f":"IF(Z25>=11,40,IF(Z25>=6,30,IF(Z25>=1,20,0)))","v":0}]
["§7755(b)(2) Community Need - 15 Points\nCommunity need in a geographic area of the proposed OOR Programs will be based on the following factors:\n• Age of the housing stock: The percent of owner-occupied housing units over 30 years old, as reported in the most recent U.S. Census Bureau American Community Survey (ACS) data;\n• Percent of homeowner Households that are in poverty: The percent of families in owner-occupied housing with incomes below the federal poverty line, as reported in the most recent ACS data;\n• Percent of homeowner Households that are Low Income: The percent of Households in owner-occupied housing with incomes below 80 percent of AMI, as reported in the most recent HUD CHAS data; and the\n• Percent of homeowner Households occupying overcrowded housing: The percent of owner-occupied housing units with more than 1.5 occupants per room, as reported in the most recent HUD CHAS data. ",null,null,null,null,null,null,null,null,null,null,null,null,null,null,null,null,null,null,null,null,null,null,null,null,null,null,null,null,null,null,null,null,null,null,{"$f":"IFERROR(VLOOKUP('Applicant and Activity'!$G$28,CalHome2021scoring!$A$3:$AN$60,19,FALSE),0)","v":0}]
["§7755(b)(3) Feasibility - 25 Points\nFeasibility in a geographic area for the proposed OOR Programs will be based on the following factors:\n• Age of the housing stock: The percent of owner-occupied housing units over 30 years old, as reported in the most recent ACS data; and\n• Percent of homeowner Households occupying overcrowded housing: The percent of owner-occupied housing units with more than 1.5 occupants per room, as reported in the most recent HUD CHAS data. ",null,null,null,null,null,null,null,null,null,null,null,null,null,null,null,null,null,null,null,null,null,null,null,null,null,null,null,null,null,null,null,null,null,null,{"$f":"IFERROR(VLOOKUP('Applicant and Activity'!$G$28,CalHome2021scoring!$A$3:$AN$60,30,FALSE),0)","v":0}]
["Community Revitalization §7755(b)(4), §7716(l) - 10 Points\nContributes to Community Revitalization (to qualify - all Assisted units are, or will be, located within a federal Promise Zone or a Choice Neighborhood Initiative Area or an Opportunity Zone), or develops a Rehabilitation Program that addresses climate adaptation or resiliency consistent with the Hazard Mitigation Plan or the Safety Element of the General Plan adopted by the jurisdiction in which the program will be offered.",null,null,null,null,null,null,null,null,null,null,null,null,null,null,null,null,null,null,null,null,null,null,null,null,null,null,null,null,null,null,null,null,null,null,{"$f":"IF(OR(AM42=\"Yes\",AK48=\"Yes\"),10,0)","v":0},null,null,{"$f":"IF(AND(OR(AK43=\"Yes\",AK44=\"Yes\",AK45=\"Yes\"),AK46=\"Yes\"),\"Yes\",\"No\")","v":"No"}]
["Federal Promise Zone (https://www.hudexchange.info/programs/promise-zones/)\nPromise Zones in California: Sacramento Promise Zone, Los Angeles Promise Zone, and San Diego Promise Zone, or"]
["Choice Neighborhood Initiative Area (https://www.hud.gov/cn, see grantee report). \nChoice Neighborhood Initiative Areas in California: Sacramento, San Francisco, and Los Angeles, or"]
["Opportunity Zone (https://esrimedia.maps.arcgis.com/apps/View)"]
["Applicant certifies ALL CalHome OOR Assisted units will be in the Promise Zone, Opportunity Zone, or Choice Neighborhood?"]
["File Name:",null,null,"OOR Community Revitalization",null,null,null,null,null,null,null,"Provide a print screen file showing Promise Zone, Neighbor Initiative Area or Op. Zone",null,null,null,null,null,null,null,null,null,null,null,null,null,null,null,null,null,null,null,"Uploaded to HCD?"]
["Did the Applicant develop a Rehabilitation Program that addresses climate adaptation or resiliency consistent with the Hazard Mitigation Plan or the Safety Element of the General Plan adopted by the jurisdiction in which the program will be offered?"]
["File Name:",null,null,"OOR Climate Change",null,null,null,null,null,null,null,"Documentation that program addresses climate adaption or resiliency consistent with a plan",null,null,null,null,null,null,null,null,null,null,null,null,null,null,null,null,null,null,null,"Uploaded to HCD?"]
["§7755(b)(5) Volunteer Labor, Self-Help Labor or Youth Construction Skills Training Program - 10 Points (not applicable to OOR)\nApplications applying for Homeownership Development Projects (PDL), Self-Help Technical Assistance Homeownership projects (SHTA), or a Mortgage Assistance Local Program (MA) for new construction housing or acquisition with substantial rehabilitation when the Recipient is acquiring and substantially rehabilitating properties for sale to First-Time Homebuyers, will receive up to 10 points to the extent that they are utilizing:\n(A) Volunteer or Self-Help Construction labor, where a minimum of 500 hours of on-site construction labor per Assisted Unit is provided; or\n(B) Labor provided by youth participating in a Construction Skills Training Program, where a minimum of 500 hours of on-site construction labor per Assisted Unit is provided. The 500 hours of construction training labor must be provided by the 16- to 24-year-old program participants; or\n(C) Minimum 15 percent of units include an ADU or a JADU. \n(D) Homeownership development projects are located in a High Resource or Highest Resource area, as identified on the TCAC/HCD Opportunity Area Map. ",null,null,null,null,null,null,null,null,null,null,null,null,null,null,null,null,null,null,null,null,null,null,null,null,null,null,null,null,null,null,null,null,null,null,0]
["§7755(c) Performance Penalty - A deduction to the total score will be applied for failure to meet CalHome Program Performance Goals pursuant to §7759.",null,null,null,null,null,null,null,null,null,null,null,null,null,null,null,null,null,null,null,null,null,null,null,null,null,null,null,null,null,null,null,null,null,null,0]

{"sheet":"Shared Hsng SHP - Article 7","index":6,"n_rows":33,"n_cols":40,"rows_kept":33,"cut":false,"hidden":true,"merged":[[23,0,23,34],[23,35,23,37],[18,36,18,37],[13,34,13,37],[16,34,16,37],[14,31,14,33],[14,25,14,27],[15,31,15,33],[16,28,16,30],[15,34,15,37],[14,34,14,37],[14,28,14,30],[19,0,19,37],[17,36,17,37],[22,0,22,34],[22,35,22,37],[21,0,21,34],[21,35,21,37],[20,35,20,37],[20,0,20,34],[18,0,18,35],[17,0,17,35],[12,0,12,24],[15,0,15,24],[16,0,16,24],[16,31,16,33],[12,25,12,27],[13,25,13,27],[14,0,14,24],[16,25,16,27],[15,28,15,30],[15,25,15,27],[12,28,12,30],[12,31,12,33],[13,28,13,30],[13,31,13,33],[13,0,13,24],[9,0,9,37],[11,28,11,30],[11,31,11,33],[10,28,10,33],[10,25,10,27],[11,25,11,27],[10,0,10,24],[11,0,11,24],[11,34,11,37],[10,34,10,37],[5,32,5,37],[1,0,1,37],[2,21,2,31],[2,32,2,37],[8,0,8,37],[4,32,4,37],[12,34,12,37],[0,0,0,34],[0,35,0,37],[6,0,6,37],[7,0,7,37],[5,0,5,17],[5,18,5,24],[5,25,5,31],[3,18,3,24],[3,25,3,31],[4,0,4,17],[4,18,4,24],[4,25,4,31],[2,0,2,20],[3,0,3,17],[3,32,3,37],[32,0,32,34],[32,35,32,37],[24,0,24,34],[24,35,24,37],[25,35,25,37],[25,0,25,34],[31,0,31,34],[31,35,31,37],[30,0,30,2],[30,3,30,10],[30,11,30,30],[30,31,30,35],[30,36,30,37],[29,0,29,35],[29,36,29,37],[27,36,27,37],[28,36,28,37],[26,0,26,35],[27,0,27,35],[28,0,28,35],[26,36,26,37]]}
["Technical Assistance (TA) for Shared Housing Program (SHP) - Article 7",null,null,null,null,null,null,null,null,null,null,null,null,null,null,null,null,null,null,null,null,null,null,null,null,null,null,null,null,null,null,null,null,null,null,{"$f":"'CalHome Coverpage'!A5","v":"2021-08-06"}]
["Operators of Shared Housing Programs who will directly provide match services where the providers are homeowners who occupy their homes as their principal residence.\nAssisted units: homebuyers including any households at or below 80% of AMI or households between 80 and 120% of AMI, as applicable, who were either:\n1. formerly renters physically or economically displaced by a disaster, as defined in Gov Code §8680.3, in need of mortgage assistance to purchase newly constructed homes that are ready for occupancy; or\n2. owners of a dwelling unit out of compliance with building codes because of a disaster, as defined in Gov Code §8680.3, which cannot be brought into compliance for less than the cost of constructing a permanent structure; or\n3. owner-occupants of a dwelling unit whose structure was damaged or destroyed by a disaster, as defined in Gov Code §8680.3."]
[null,null,null,null,null,null,null,null,null,null,null,null,null,null,null,null,null,null,null,null,null,"Remaining Allocation:",null,null,null,null,null,null,null,null,null,null,{"$f":"IF('Applicant and Activity'!Z28=\"\",\"\",IF(ISNUMBER(SEARCH(7,_xlfn.SINGLE(ProgramActivities))),'Applicant and Activity'!Z28-'Applicant and Activity'!P35,0))","v":""}]
[null,null,null,null,null,null,null,null,null,null,null,null,null,null,null,null,null,null,"SHP Funds Request",null,null,null,null,null,null,"SHP Maximum Eligible"]
["SHP Funds - $300,000 NOFA",null,null,null,null,null,null,null,null,null,null,null,null,null,null,null,null,null,null,null,null,null,null,null,null,300000]
["Total SHP Funds",null,null,null,null,null,null,null,null,null,null,null,null,null,null,null,null,null,{"$f":"S5","v":0},null,null,null,null,null,null,{"$f":"Z5","v":300000}]
["§7754(d) Describe the proposed program including: amount applied for, number of units or households to be assisted, income levels of households to be assisted, description of prior experience with the type of program applied for, geographic location of the activities, financing sources and uses, and description of any contributed labor."]
[]
["§7754(f) Provide a description of how you will comply with the requirements for Local Program Administration set forth in §7721."]
[null,null,null,null,null,null,null,null,null,null,null,null,null,null,null,null,null,null,null,null,null,null,null,null,null,null,null,null,null,null,null,null,null,null,null,null,null,null,null,{"$f":"AN11-(1*365)","v":"2020-10-28"}]
["§7739 The Applicant or its Administrative Subcontractor must have successfully administered a shared housing program for renters or Homeowners for a minimum of two years from the application due date. ",null,null,null,null,null,null,null,null,null,null,null,null,null,null,null,null,null,null,null,null,null,null,null,null,"Units Assisted",null,null,"Administration\n(within the last year)",null,null,null,null,null,"Admin Years",null,null,null,{"$f":"AN11-(4*365)","v":"2017-10-29"},{"$f":"'Applicant and Activity'!AK3","v":"2021-10-28"}]
["Describe the applicable program(s) you have successfully administered within the last year",null,null,null,null,null,null,null,null,null,null,null,null,null,null,null,null,null,null,null,null,null,null,null,null,{"$f":"SUM(AM13:AM17)","v":0},null,null,"Begin Date",null,null,"End Date",null,null,{"$f":"SUM(AI13:AL17)","v":0},null,null,null,"Units","Years"]
[null,null,null,null,null,null,null,null,null,null,null,null,null,null,null,null,null,null,null,null,null,null,null,null,null,null,null,null,null,null,null,null,null,null,{"$f":"IF(OR(AC13=\"\",AF13=\"\"),0,AF13-AC13)/365","v":0},null,null,null,{"$f":"IF(AF13>=$AM$11,Z13,0)","v":0},{"$f":"IF(AF13=\"\",0,IF(AC13=\"\",0,IF(AC13<$AM$11,(AF13-$AM$11)/365,(AF13-AC13)/365)))","v":0}]
[null,null,null,null,null,null,null,null,null,null,null,null,null,null,null,null,null,null,null,null,null,null,null,null,null,null,null,null,null,null,null,null,null,null,{"$f":"IF(OR(AC14=\"\",AF14=\"\"),0,AF14-AC14)/365","v":0},null,null,null,{"$f":"IF(AF14>=$AM$11,Z14,0)","v":0},{"$f":"IF(AF14=\"\",0,IF(AC14=\"\",0,IF(AC14<$AM$11,(AF14-$AM$11)/365,(AF14-AC14)/365)))","v":0}]
[null,null,null,null,null,null,null,null,null,null,null,null,null,null,null,null,null,null,null,null,null,null,null,null,null,null,null,null,null,null,null,null,null,null,{"$f":"IF(OR(AC15=\"\",AF15=\"\"),0,AF15-AC15)/365","v":0},null,null,null,{"$f":"IF(AF15>=$AM$11,Z15,0)","v":0},{"$f":"IF(AF15=\"\",0,IF(AC15=\"\",0,IF(AC15<$AM$11,(AF15-$AM$11)/365,(AF15-AC15)/365)))","v":0}]
[null,null,null,null,null,null,null,null,null,null,null,null,null,null,null,null,null,null,null,null,null,null,null,null,null,null,null,null,null,null,null,null,null,null,0,null,null,null,{"$f":"IF(AF16>=$AM$11,Z16,0)","v":0},{"$f":"IF(AF16=\"\",0,IF(AC16=\"\",0,IF(AC16<$AM$11,(AF16-$AM$11)/365,(AF16-AC16)/365)))","v":0}]
[null,null,null,null,null,null,null,null,null,null,null,null,null,null,null,null,null,null,null,null,null,null,null,null,null,null,null,null,null,null,null,null,null,null,0,null,null,null,{"$f":"IF(AF17>=$AM$11,Z17,0)","v":0},{"$f":"IF(AF17=\"\",0,IF(AC17=\"\",0,IF(AC17<$AM$11,(AF17-$AM$11)/365,(AF17-AC17)/365)))","v":0}]
["§7740 Applicant certifies the CalHome funds in support of a SHP will be only be used for these eligible costs?"]
["§7741 Applicant certifies it will comply with these administration requirements and any additional administration requirements as deemed necessary by HCD?"]
["Selection Criteria §7755"]
["Total Self Score (minimum points required = 55; maximum points = 100)",null,null,null,null,null,null,null,null,null,null,null,null,null,null,null,null,null,null,null,null,null,null,null,null,null,null,null,null,null,null,null,null,null,null,{"$f":"AJ23+AJ24+AJ25+AJ26+AJ32+AJ33","v":0}]
["Rating Factors (red shading indicates minimum score has not been achieved)",null,null,null,null,null,null,null,null,null,null,null,null,null,null,null,null,null,null,null,null,null,null,null,null,null,null,null,null,null,null,null,null,null,null,"Points"]
["§7755(b)(1) Capability - 40 Points Max\nCapability to operate the proposed SHP:\nNumber of Shared Housing units assisted within the last two years:\n   1 – 2 = 20 points \n   3 – 4 = 30 points \n   5 or more = 40 points",null,null,null,null,null,null,null,null,null,null,null,null,null,null,null,null,null,null,null,null,null,null,null,null,null,null,null,null,null,null,null,null,null,null,{"$f":"IF(AI12>=2,AM23,0)","v":0},null,null,{"$f":"IF(Z12>=5,40,IF(Z12>=3,30,IF(Z12>=1,20,0)))","v":0}]
["§7755(b)(2) Community Need - 15 Points\nCommunity need in a geographic area of the proposed TA Program for Shared Housing (SHP) will be based on the following factors:\n• Housing affordability in the geographic area: The ratio of the current median sales price of a single-family home to the AMI for a 4-person Household, in the county in which the CalHome program or project is located. The current median sales price is the most recent available from the California Association of Realtors as of the NOFA date, and the AMI is updated on an annual basis by HCD;\n• Percent of renter Households that are Low Income: The percent of Households in renter-occupied housing with incomes below 80 percent of AMI, as reported in the most recent HUD Comprehensive Housing Affordability Strategy U.S. Census Bureau American Community Survey (HUD CHAS) data;\n• Percent of renter Households occupying overcrowded housing: The percent of renter-occupied housing units with more than 1.5 occupants\nper room, as reported in the most recent HUD CHAS data; and\n• Rental vacancy rate: The percent of rental housing units that are currently vacant, as reported in the most recent HUD CHAS data.",null,null,null,null,null,null,null,null,null,null,null,null,null,null,null,null,null,null,null,null,null,null,null,null,null,null,null,null,null,null,null,null,null,null,{"$f":"IFERROR(VLOOKUP('Applicant and Activity'!$G$28,CalHome2021scoring!$A$3:$AN$60,10,FALSE),0)","v":0}]
["§7755(b)(3) Feasibility - 25 Points\nFeasibility in a geographic area for the proposed TA Program for Shared Housing (SHP) will be based on the following factors:\n• Incidence of severe cost burden for low-income renters: The percent of Households in renter-occupied housing units spending 50 percent or more of income on housing expenses, as reported in the most recent HUD CHAS data; and the\n• Rental vacancy rate: The percent of rental housing units that are currently vacant, as reported in the most recent HUD CHAS data.",null,null,null,null,null,null,null,null,null,null,null,null,null,null,null,null,null,null,null,null,null,null,null,null,null,null,null,null,null,null,null,null,null,null,{"$f":"IFERROR(VLOOKUP('Applicant and Activity'!$G$28,CalHome2021scoring!$A$3:$AN$60,35,FALSE),0)","v":0}]
["Community Revitalization §7755(b)(4), §7716(l) - 10 Points\nContributes to Community Revitalization (to qualify - all Assisted units are, or will be, located within a federal Promise Zone or a Choice Neighborhood Initiative Area or an Opportunity Zone).",null,null,null,null,null,null,null,null,null,null,null,null,null,null,null,null,null,null,null,null,null,null,null,null,null,null,null,null,null,null,null,null,null,null,{"$f":"IF(AM26=\"Yes\",10,0)","v":0},null,null,{"$f":"IF(AND(OR(AK27=\"Yes\",AK28=\"Yes\",AK29=\"Yes\"),AK30=\"Yes\"),\"Yes\",\"No\")","v":"No"}]
["Federal Promise Zone (https://www.hudexchange.info/programs/promise-zones/)\nPromise Zones in California: Sacramento Promise Zone, Los Angeles Promise Zone, and San Diego Promise Zone, or"]
["Choice Neighborhood Initiative Area (https://www.hud.gov/cn, see grantee report). \nChoice Neighborhood Initiative Areas in California: Sacramento, San Francisco, and Los Angeles, or"]
["Opportunity Zone (https://esrimedia.maps.arcgis.com/apps/View)"]
["Applicant certifies ALL CalHome SHP Assisted units will be in the Promise Zone, Opportunity Zone, or Choice Neighborhood?"]
["File Name:",null,null,"SHP Community Revitalization",null,null,null,null,null,null,null,"Provide a print screen file showing Promise Zone, Neighbor Initiative Area or Op. Zone",null,null,null,null,null,null,null,null,null,null,null,null,null,null,null,null,null,null,null,"Uploaded to HCD?"]
["§7755(b)(5) Volunteer Labor, Self-Help Labor or Youth Construction Skills Training Program - 10 Points (not applicable to Shared Housing SHP)\nApplications applying for Homeownership Development Projects (PDL), Self-Help Technical Assistance Homeownership projects (SHTA), or a Mortgage Assistance Local Program (MA) for new construction housing or acquisition with substantial rehabilitation when the Recipient is acquiring and substantially rehabilitating properties for sale to First-Time Homebuyers, will receive up to 10 points to the extent that they are utilizing:\n(A) Volunteer or Self-Help Construction labor, where a minimum of 500 hours of on-site construction labor per Assisted Unit is provided; or\n(B) Labor provided by youth participating in a Construction Skills Training Program, where a minimum of 500 hours of on-site construction labor per Assisted Unit is provided. The 500 hours of construction training labor must be provided by the 16- to 24-year-old program participants; or\n(C) Minimum 15 percent of units include an ADU or a JADU. \n(D) Homeownership development projects are located in a High Resource or Highest Resource area, as identified on the TCAC/HCD Opportunity Area Map. ",null,null,null,null,null,null,null,null,null,null,null,null,null,null,null,null,null,null,null,null,null,null,null,null,null,null,null,null,null,null,null,null,null,null,0]
["§7755(c) Performance Penalty - A deduction to the total score will be applied for failure to meet CalHome Program Performance Goals pursuant to §7759."]

{"sheet":"ADU-JADU - Article 8","index":7,"n_rows":46,"n_cols":40,"rows_kept":46,"cut":false,"hidden":true,"merged":[[24,0,24,24],[25,0,25,24],[26,0,26,24],[40,36,40,37],[41,36,41,37],[39,36,39,37],[32,0,32,37],[33,0,33,34],[33,35,33,37],[34,0,34,34],[34,35,34,37],[35,0,35,34],[35,35,35,37],[30,0,30,35],[30,36,30,37],[31,0,31,2],[31,3,31,10],[31,11,31,30],[31,31,31,35],[31,36,31,37],[44,0,44,34],[44,35,44,37],[45,0,45,34],[45,35,45,37],[36,0,36,34],[36,35,36,37],[37,0,37,34],[37,35,37,37],[38,0,38,34],[38,35,38,37],[43,3,43,10],[43,11,43,30],[43,31,43,35],[43,36,43,37],[40,0,40,35],[41,0,41,35],[43,0,43,2],[42,0,42,35],[42,36,42,37],[22,0,22,24],[29,36,29,37],[29,0,29,35],[28,36,28,37],[28,0,28,35],[27,36,27,37],[27,0,27,35],[23,25,23,27],[23,28,23,30],[23,31,23,33],[23,34,23,37],[23,0,23,24],[24,25,24,27],[24,28,24,30],[24,31,24,33],[24,34,24,37],[26,25,26,27],[26,28,26,30],[26,31,26,33],[26,34,26,37],[25,25,25,27],[25,28,25,30],[25,31,25,33],[25,34,25,37],[21,34,21,37],[22,25,22,27],[22,28,22,30],[22,31,22,33],[22,34,22,37],[20,25,20,27],[20,28,20,33],[20,34,20,37],[21,25,21,27],[21,28,21,30],[21,31,21,33],[13,29,13,34],[13,35,13,37],[15,29,15,34],[15,35,15,37],[19,0,19,35],[19,36,19,37],[17,0,17,37],[18,0,18,37],[14,1,14,28],[14,29,14,34],[14,35,14,37],[0,0,0,34],[0,35,0,37],[6,32,6,37],[1,0,1,37],[2,0,2,17],[2,18,2,20],[2,21,2,31],[2,32,2,37],[3,18,3,24],[3,25,3,31],[4,0,4,17],[4,18,4,24],[4,25,4,31],[6,0,6,17],[6,18,6,24],[5,0,5,17],[5,18,5,24],[5,25,5,31],[5,32,5,37],[20,0,20,24],[21,0,21,24],[6,25,6,31],[3,0,3,17],[3,32,3,37],[4,32,4,37],[39,0,39,35],[16,1,16,28],[16,29,16,34],[16,35,16,37],[9,0,9,37],[10,0,10,28],[10,29,10,34],[10,35,10,37],[11,1,11,28],[15,1,15,28],[7,0,7,37],[8,0,8,37],[11,29,11,34],[11,35,11,37],[12,1,12,28],[12,29,12,34],[12,35,12,37],[13,1,13,28]]}
["Accessory Dwelling Units/Junior Accessory Dwelling Units (ADU/JADU) Programs - Article 8",null,null,null,null,null,null,null,null,null,null,null,null,null,null,null,null,null,null,null,null,null,null,null,null,null,null,null,null,null,null,null,null,null,null,{"$f":"'CalHome Coverpage'!A5","v":"2021-08-06"}]
["ADU/JADU construction, reconstruction, repair, or rehabilitation\nAssisted units: households at or below 80 percent of AMI HSC §50052.5(b) or at or below 120 percent of AMI for household who were victims of a disaster HSC §50650.3(a)."]
["Proposed # of Assisted units:",null,null,null,null,null,null,null,null,null,null,null,null,null,null,null,null,null,null,null,null,"Remaining Allocation:",null,null,null,null,null,null,null,null,null,null,{"$f":"IF('Applicant and Activity'!Z28=\"\",\"\",IF(ISNUMBER(SEARCH(8,_xlfn.SINGLE(ProgramActivities))),'Applicant and Activity'!Z28-'Applicant and Activity'!P35,0))","v":""}]
[null,null,null,null,null,null,null,null,null,null,null,null,null,null,null,null,null,null,"ADU/JADU Funds Request",null,null,null,null,null,null,"ADU/JADU Maximum Eligible",null,null,null,null,null,null,"Per Assist. Unit Request"]
["ADU/JADU Funds - $100,000 per unit, NOFA",null,null,null,null,null,null,null,null,null,null,null,null,null,null,null,null,null,null,null,null,null,null,null,null,{"$f":"ROUND(S3*100000,0)","v":0},null,null,null,null,null,null,{"$f":"IFERROR(S5/$S$3,0)","v":0}]
["ADU/JADU Activity Delivery Fee - up to 20%, §7729(d) and NOFA ",null,null,null,null,null,null,null,null,null,null,null,null,null,null,null,null,null,null,null,null,null,null,null,null,{"$f":"IFERROR(IF(S5=\"\",Z5*0.2,MIN(S5,Z5)*0.2),0)","v":0},null,null,null,null,null,null,{"$f":"IFERROR(S6/$S$3,0)","v":0}]
["Total ADU/JADU Funds",null,null,null,null,null,null,null,null,null,null,null,null,null,null,null,null,null,{"$f":"SUM(S5:Y6)","v":0},null,null,null,null,null,null,{"$f":"SUM(Z5:AF6)","v":0},null,null,null,null,null,null,{"$f":"IFERROR(S7/$S$3,0)","v":0}]
["§7754(d) Describe the proposed program including: amount applied for, number of units or households to be assisted, income levels of households to be assisted, description of prior experience with the type of program applied for, geographic location of the activities, financing sources and uses, and description of any contributed labor."]
[]
["§7754(d) Include Non-CalHome ADU/JADU funding sources, descriptions, proposed lien positions, and amount in lines 1 through 6 below:"]
["Non-CalHome ADU/JADU Funding Sources and Source/Description of contributed labor",null,null,null,null,null,null,null,null,null,null,null,null,null,null,null,null,null,null,null,null,null,null,null,null,null,null,null,null,"Proposed Lien Position",null,null,null,null,null,"Amount"]
[1]
[2]
[3]
[4]
[5]
[6]
["§7754(f) Provide a description of how you will comply with the requirements for Local Program Administration set forth in §7721."]
[]
["§7725(a)(3) Applicant certifies the CalHome Program Loans to individual Borrowers when considered with other available financing and assistance will fund eligible costs only, in accordance with program requirements?"]
["§7742 Applicant or its Administrative Subcontractor must have successfully administered  a local Owner-Occupied Rehabilitation Program, new construction development involving multiple Homeownership units (including single-family subdivisions), or an ADU/JADU Program for a minimum of two years within the four years from the application due date.",null,null,null,null,null,null,null,null,null,null,null,null,null,null,null,null,null,null,null,null,null,null,null,null,"Units Assisted",null,null,"Administration within last four years",null,null,null,null,null,"Admin Years",null,null,null,{"$f":"AN21-(4*365)","v":"2017-10-29"},{"$f":"'Applicant and Activity'!AK3","v":"2021-10-28"}]
["Describe the applicable program(s) you have successfully administered within the last four years",null,null,null,null,null,null,null,null,null,null,null,null,null,null,null,null,null,null,null,null,null,null,null,null,{"$f":"SUM(AM23:AM27)","v":0},null,null,"Begin Date",null,null,"End Date",null,null,{"$f":"IF(SUM(AN23:AN27)<=0,0,SUM(AN23:AN27))","v":0},null,null,null,"Units","Years"]
[null,null,null,null,null,null,null,null,null,null,null,null,null,null,null,null,null,null,null,null,null,null,null,null,null,null,null,null,null,null,null,null,null,null,{"$f":"IF(AF23>=$AM$21,AN23,0)","v":0},null,null,null,{"$f":"IF(AF23>=$AM$21,Z23,0)","v":0},{"$f":"IF(AF23=\"\",0,IF(AC23=\"\",0,IF(AC23<$AM$21,(AF23-$AM$21)/365,(AF23-AC23)/365)))","v":0}]
[null,null,null,null,null,null,null,null,null,null,null,null,null,null,null,null,null,null,null,null,null,null,null,null,null,null,null,null,null,null,null,null,null,null,{"$f":"IF(AF24>=$AM$21,AN24,0)","v":0},null,null,null,{"$f":"IF(AF24>=$AM$21,Z24,0)","v":0},{"$f":"IF(AF24=\"\",0,IF(AC24=\"\",0,IF(AC24<$AM$21,(AF24-$AM$21)/365,(AF24-AC24)/365)))","v":0}]
[null,null,null,null,null,null,null,null,null,null,null,null,null,null,null,null,null,null,null,null,null,null,null,null,null,null,null,null,null,null,null,null,null,null,{"$f":"IF(AF25>=$AM$21,AN25,0)","v":0},null,null,null,{"$f":"IF(AF25>=$AM$21,Z25,0)","v":0},{"$f":"IF(AF25=\"\",0,IF(AC25=\"\",0,IF(AC25<$AM$21,(AF25-$AM$21)/365,(AF25-AC25)/365)))","v":0}]
[null,null,null,null,null,null,null,null,null,null,null,null,null,null,null,null,null,null,null,null,null,null,null,null,null,null,null,null,null,null,null,null,null,null,{"$f":"IF(AF26>=$AM$21,AN26,0)","v":0},null,null,null,{"$f":"IF(AF26>=$AM$21,Z26,0)","v":0},{"$f":"IF(AF26=\"\",0,IF(AC26=\"\",0,IF(AC26<$AM$21,(AF26-$AM$21)/365,(AF26-AC26)/365)))","v":0}]
[null,null,null,null,null,null,null,null,null,null,null,null,null,null,null,null,null,null,null,null,null,null,null,null,null,null,null,null,null,null,null,null,null,null,{"$f":"IF(AF27>=$AM$21,AN27,0)","v":0},null,null,null,{"$f":"IF(AF27>=$AM$21,Z27,0)","v":0},{"$f":"IF(AF27=\"\",0,IF(AC27=\"\",0,IF(AC27<$AM$21,(AF27-$AM$21)/365,(AF27-AC27)/365)))","v":0}]
["§7743 Applicant certifies the CalHome funds in support of an ADU/JADU Program will be only be used for these eligible costs?"]
["§7744 Applicant certifies it will comply with these ADU/JADU administration requirements?"]
["§7745 Applicant certifies it will develop and employ ADU/JADU Program underwriting guidelines and will comply with these and any additional underwriting requirements as deemed necessary by HCD? The ADU/JADU guidelines must be submitted to and approved by HCD prior to execution of the Standard Agreement."]
["NOFA Appendix B - Applicant certifies it will meet near and long-term resiliency standards in rebuilding homes destroyed by the identified disasters?"]
["File Name:",null,null,"ADU Resiliency Commitment",null,null,null,null,null,null,null,"Provide a narrative of your commitment to meet near and long term resiliency standards in rebuilding homes destroyed by a qualified FEMA disaster declaration.",null,null,null,null,null,null,null,null,null,null,null,null,null,null,null,null,null,null,null,"Uploaded to HCD?"]
["Selection Criteria §7755"]
["Total Self Score (minimum points required = 55; maximum points = 100)",null,null,null,null,null,null,null,null,null,null,null,null,null,null,null,null,null,null,null,null,null,null,null,null,null,null,null,null,null,null,null,null,null,null,{"$f":"AJ36+AJ37+AJ38+AJ39+AJ45+AJ46","v":0}]
["Rating Factors (red shading indicates minimum score has not been achieved)",null,null,null,null,null,null,null,null,null,null,null,null,null,null,null,null,null,null,null,null,null,null,null,null,null,null,null,null,null,null,null,null,null,null,"Points"]
["§7755(b)(1) Capability - 40 Points Max\nCapability to operate the proposed ADU/JADU Programs:\nNumber of Rehabilitation/Reconstructed units assisted within the last four years:\n   1 – 5 = 20 points \n   6 – 10 = 30 points \n   11 or more = 40 points",null,null,null,null,null,null,null,null,null,null,null,null,null,null,null,null,null,null,null,null,null,null,null,null,null,null,null,null,null,null,null,null,null,null,{"$f":"IF(AI22>=2,AM36,0)","v":0},null,null,{"$f":"IF(Z22>=11,40,IF(Z22>=6,30,IF(Z22>=1,20,0)))","v":0}]
["§7755(b)(2) Community Need - 15 Points\nCommunity need in a geographic area of the proposed ADU/JADU Program will be based on the following factors:\n• Housing affordability in the geographic area: The ratio of the current median sales price of a single-family home to the AMI for a 4-person Household, in the county in which the CalHome program or project is located. The current median sales price is the most recent available from the California Association of Realtors as of the NOFA date, and the AMI is updated on an annual basis by HCD;\n• Percent of renter Households that are Low Income: The percent of Households in renter-occupied housing with incomes below 80 percent of AMI, as reported in the most recent HUD Comprehensive Housing Affordability Strategy U.S. Census Bureau American Community Survey (HUD CHAS) data;\n• Percent of renter Households occupying overcrowded housing: The percent of renter-occupied housing units with more than 1.5 occupants\nper room, as reported in the most recent HUD CHAS data; and\n• Rental vacancy rate: The percent of rental housing units that are currently vacant, as reported in the most recent HUD CHAS data.",null,null,null,null,null,null,null,null,null,null,null,null,null,null,null,null,null,null,null,null,null,null,null,null,null,null,null,null,null,null,null,null,null,null,{"$f":"IFERROR(VLOOKUP('Applicant and Activity'!$G$28,CalHome2021scoring!$A$3:$AN$60,10,FALSE),0)","v":0}]
["§7755(b)(3) Feasibility - 25 Points\nFeasibility in a geographic area for the proposed ADU/JADU Programs will be based on the following factors:\n• The readiness of the project development to proceed as evidenced by the status of local government approvals, project financing commitments, and resolution to impediments to development;\n• Evidence of ability to serve Low- and Very Low-Income Households pursuant to the Mortgage Assistance underwriting requirements stated in §7731, as evidenced by the development budget and proposed unit sales prices; and\n• Affordability of Homeownership relative to renting: The ratio of median Monthly Housing Costs for owner-occupied housing units with a Mortgage, to median Monthly Housing Costs for renter-occupied housing units, as reported in the most recent ACS data.",null,null,null,null,null,null,null,null,null,null,null,null,null,null,null,null,null,null,null,null,null,null,null,null,null,null,null,null,null,null,null,null,null,null,{"$f":"IFERROR(VLOOKUP('Applicant and Activity'!$G$28,CalHome2021scoring!$A$3:$AN$60,30,FALSE),0)","v":0}]
["Community Revitalization §7755(b)(4), §7716(l) - 10 Points\nContributes to Community Revitalization (to qualify - all Assisted units are, or will be, located within a federal Promise Zone or a Choice Neighborhood Initiative Area or an Opportunity Zone).",null,null,null,null,null,null,null,null,null,null,null,null,null,null,null,null,null,null,null,null,null,null,null,null,null,null,null,null,null,null,null,null,null,null,{"$f":"IF(AM39=\"Yes\",10,0)","v":0},null,null,{"$f":"IF(AND(OR(AK40=\"Yes\",AK41=\"Yes\",AK42=\"Yes\"),AK43=\"Yes\"),\"Yes\",\"No\")","v":"No"}]
["Federal Promise Zone (https://www.hudexchange.info/programs/promise-zones/)\nPromise Zones in California: Sacramento Promise Zone, Los Angeles Promise Zone, and San Diego Promise Zone, or"]
["Choice Neighborhood Initiative Area (https://www.hud.gov/cn, see grantee report). \nChoice Neighborhood Initiative Areas in California: Sacramento, San Francisco, and Los Angeles, or"]
["Opportunity Zone (https://esrimedia.maps.arcgis.com/apps/View)"]
["Applicant certifies ALL CalHome ADU/JADU Assisted units will be in the Promise Zone, Opportunity Zone, or Choice Neighborhood?"]
["File Name:",null,null,"ADU Community Revitalization",null,null,null,null,null,null,null,"Provide a print screen file showing Promise Zone, Neighbor Initiative Area or Op. Zone",null,null,null,null,null,null,null,null,null,null,null,null,null,null,null,null,null,null,null,"Uploaded to HCD?"]
["§7755(b)(5) Volunteer Labor, Self-Help Labor or Youth Construction Skills Training Program - 10 Points (not applicable to ADU/JADU)\nApplications applying for Homeownership Development Projects (PDL), Self-Help Technical Assistance Homeownership projects (SHTA), or a Mortgage Assistance Local Program (MA) for new construction housing or acquisition with substantial rehabilitation when the Recipient is acquiring and substantially rehabilitating properties for sale to First-Time Homebuyers, will receive up to 10 points to the extent that they are utilizing:\n(A) Volunteer or Self-Help Construction labor, where a minimum of 500 hours of on-site construction labor per Assisted Unit is provided; or\n(B) Labor provided by youth participating in a Construction Skills Training Program, where a minimum of 500 hours of on-site construction labor per Assisted Unit is provided. The 500 hours of construction training labor must be provided by the 16- to 24-year-old program participants; or\n(C) Minimum 15 percent of units include an ADU or a JADU. \n(D) Homeownership development projects are located in a High Resource or Highest Resource area, as identified on the TCAC/HCD Opportunity Area Map. ",null,null,null,null,null,null,null,null,null,null,null,null,null,null,null,null,null,null,null,null,null,null,null,null,null,null,null,null,null,null,null,null,null,null,0]
["§7755(c) Performance Penalty - A deduction to the total score will be applied for failure to meet CalHome Program Performance Goals pursuant to §7759."]

{"sheet":"Self-Help SHTA - Article 6","index":8,"n_rows":58,"n_cols":40,"rows_kept":58,"cut":false,"hidden":true,"merged":[[44,24,44,33],[45,24,45,33],[46,24,46,33],[43,0,43,20],[44,0,44,20],[45,0,45,20],[46,0,46,20],[45,21,45,23],[46,21,46,23],[35,0,35,34],[21,0,21,24],[27,0,27,2],[27,3,27,10],[26,31,26,33],[25,25,25,27],[29,36,29,37],[27,31,27,35],[33,0,33,34],[33,35,33,37],[30,0,30,37],[28,0,28,35],[28,36,28,37],[35,35,35,37],[53,0,53,2],[53,3,53,10],[53,11,53,30],[53,31,53,35],[53,36,53,37],[43,34,43,37],[47,36,47,37],[48,0,48,2],[48,3,48,10],[48,11,48,30],[48,31,48,35],[48,36,48,37],[50,0,50,2],[50,3,50,10],[50,11,50,30],[50,31,50,35],[50,36,50,37],[47,0,47,2],[47,3,47,10],[47,11,47,30],[47,31,47,35],[43,21,43,23],[44,21,44,23],[43,24,43,33],[14,1,14,28],[13,35,13,37],[16,1,16,28],[13,1,13,28],[13,29,13,34],[14,29,14,34],[14,35,14,37],[26,34,26,37],[26,25,26,27],[21,34,21,37],[25,34,25,37],[22,31,22,33],[23,31,23,33],[24,31,24,33],[25,31,25,33],[22,34,22,37],[15,1,15,28],[24,34,24,37],[20,0,20,24],[15,29,15,34],[23,34,23,37],[20,28,20,33],[21,31,21,33],[22,28,22,30],[37,36,37,37],[38,36,38,37],[39,36,39,37],[38,0,38,35],[39,0,39,35],[41,0,41,2],[41,3,41,10],[41,11,41,30],[41,31,41,35],[41,36,41,37],[40,0,40,35],[40,36,40,37],[37,0,37,35],[12,1,12,28],[12,29,12,34],[57,0,57,34],[57,35,57,37],[31,35,31,37],[34,0,34,34],[34,35,34,37],[36,35,36,37],[36,0,36,34],[42,0,42,34],[42,35,42,37],[31,0,31,34],[32,0,32,34],[32,35,32,37],[44,34,44,37],[45,34,45,37],[46,34,46,37],[21,28,21,30],[20,25,20,27],[23,28,23,30],[24,28,24,30],[25,28,25,30],[26,28,26,30],[29,0,29,35],[0,0,0,34],[0,35,0,37],[19,0,19,35],[19,36,19,37],[17,0,17,37],[18,0,18,37],[16,29,16,34],[16,35,16,37],[11,29,11,34],[11,35,11,37],[10,0,10,28],[10,29,10,34],[10,35,10,37],[8,0,8,37],[9,0,9,37],[11,1,11,28],[12,35,12,37],[15,35,15,37],[1,0,1,37],[7,0,7,17],[7,18,7,24],[7,25,7,31],[3,0,3,35],[3,36,3,37],[20,34,20,37],[21,25,21,27],[22,25,22,27],[23,25,23,27],[27,36,27,37],[24,25,24,27],[27,11,27,30],[22,1,22,24],[23,1,23,24],[24,1,24,24],[25,1,25,24],[26,1,26,24],[6,0,6,17],[6,18,6,24],[6,25,6,31],[4,0,4,17],[4,32,4,37],[5,32,5,37],[6,32,6,37],[7,32,7,37],[2,0,2,17],[2,18,2,20],[2,21,2,31],[2,32,2,37],[4,18,4,24],[4,25,4,31],[5,0,5,17],[5,18,5,24],[5,25,5,31],[52,0,52,35],[52,36,52,37],[51,0,51,2],[51,3,51,10],[51,11,51,30],[51,31,51,35],[51,36,51,37],[49,0,49,2],[49,3,49,10],[49,11,49,30],[49,31,49,35],[49,36,49,37],[54,0,54,35],[54,36,54,37],[55,0,55,15],[55,16,55,20],[55,21,55,28],[55,29,55,37],[56,0,56,2],[56,3,56,10],[56,11,56,30],[56,31,56,35],[56,36,56,37]]}
["Self-Help Technical Assistance Project (SHTA) - Article 6",null,null,null,null,null,null,null,null,null,null,null,null,null,null,null,null,null,null,null,null,null,null,null,null,null,null,null,null,null,null,null,null,null,null,{"$f":"'CalHome Coverpage'!A5","v":"2021-08-06"}]
["Applicant organization will be directly providing the services required in §7738.\nAssisted units: homebuyers including any households at or below 80% of AMI or households between 80 and 120% of AMI, as applicable, who were either:\n1. formerly renters physically or economically displaced by a disaster, as defined in Gov Code §8680.3, in need of mortgage assistance to purchase newly constructed homes that are ready for occupancy; or\n2. owners of a dwelling unit out of compliance with building codes because of a disaster, as defined in Gov Code §8680.3, which cannot be brought into compliance for less than the cost of constructing a permanent structure; or\n3. owner-occupants of a dwelling unit whose structure was damaged or destroyed by a disaster, as defined in Gov Code §8680.3."]
["Proposed # of Assisted units:",null,null,null,null,null,null,null,null,null,null,null,null,null,null,null,null,null,null,null,null,"Remaining Allocation:",null,null,null,null,null,null,null,null,null,null,{"$f":"IF('Applicant and Activity'!Z28=\"\",\"\",IF(ISNUMBER(SEARCH(6,_xlfn.SINGLE(ProjectActivities))),'Applicant and Activity'!Z28-'Applicant and Activity'!P38,0))","v":""}]
["Will the Applicant provide homebuyer education classes?"]
[null,null,null,null,null,null,null,null,null,null,null,null,null,null,null,null,null,null,"SHTA Funds Request",null,null,null,null,null,null,"SHTA Maximum Eligible",null,null,null,null,null,null,"Per Assist. Unit Request"]
["SHTA Funds - $15,000 per unit, NOFA",null,null,null,null,null,null,null,null,null,null,null,null,null,null,null,null,null,null,null,null,null,null,null,null,{"$f":"ROUND(S3*15000,0)","v":0},null,null,null,null,null,null,{"$f":"IFERROR(S6/$S$3,0)","v":0}]
["Homebuyer education - $250 per unit, §7729(b), NOFA",null,null,null,null,null,null,null,null,null,null,null,null,null,null,null,null,null,null,null,null,null,null,null,null,{"$f":"IF(AK4=\"Yes\",S3*250,0)","v":0},null,null,null,null,null,null,{"$f":"IFERROR(S7/$S$3,0)","v":0}]
["Total SHTA Funds",null,null,null,null,null,null,null,null,null,null,null,null,null,null,null,null,null,{"$f":"SUM(S6:Y7)","v":0},null,null,null,null,null,null,{"$f":"SUM(Z6:AF7)","v":0},null,null,null,null,null,null,0]
["§7754(d) Describe the proposed project including: amount applied for, number of units or households to be assisted, income levels of households to be assisted, description of prior experience with the type of program applied for, geographic location of the activities, financing sources and uses, and description of any contributed labor."]
[]
["§7754(d) Non-CalHome SHTA Funding Sources and Source/Description of contributed labor",null,null,null,null,null,null,null,null,null,null,null,null,null,null,null,null,null,null,null,null,null,null,null,null,null,null,null,null,"Proposed Lien Position",null,null,null,null,null,"Amount"]
[1]
[2]
[3]
[4]
[5]
[6]
["§7754(f) Provide a description of how you will comply with the requirements for Local Program Administration set forth in §7721."]
[]
["§7736 Applicant certifies the applying entity meets the criteria set forth in CCR, Title 25, Division 1, Chapter 7, Subchapter 6.5, Article 1, §7532 \"Eligible Sponsors\"?"]
["§7736 Applicant must have successfully completed a minimum of two self-help, new construction projects within the four years from the application due date.",null,null,null,null,null,null,null,null,null,null,null,null,null,null,null,null,null,null,null,null,null,null,null,null,"Units Assisted",null,null,"Completion within last four years",null,null,null,null,null,"Admin Years",null,null,null,{"$f":"AN21-(4*365)","v":"2017-10-29"},{"$f":"'Applicant and Activity'!AK3","v":"2021-10-28"}]
["Describe the applicable projects you have successfully completed within the last four years",null,null,null,null,null,null,null,null,null,null,null,null,null,null,null,null,null,null,null,null,null,null,null,null,{"$f":"SUM(AM23:AM27)","v":0},null,null,"Begin Date",null,null,"End Date",null,null,{"$f":"SUM(AN23:AN27)","v":0},null,null,null,"Units","Years"]
[1,null,null,null,null,null,null,null,null,null,null,null,null,null,null,null,null,null,null,null,null,null,null,null,null,null,null,null,null,null,null,null,null,null,{"$f":"IF(AF23>=$AM$21,AN23,0)","v":0},null,null,null,{"$f":"IF(AF23>=$AM$21,Z23,0)","v":0},{"$f":"IF(AF23=\"\",0,IF(AC23=\"\",0,IF(AC23<$AM$21,(AF23-$AM$21)/365,(AF23-AC23)/365)))","v":0}]
[2,null,null,null,null,null,null,null,null,null,null,null,null,null,null,null,null,null,null,null,null,null,null,null,null,null,null,null,null,null,null,null,null,null,{"$f":"IF(AF24>=$AM$21,AN24,0)","v":0},null,null,null,{"$f":"IF(AF24>=$AM$21,Z24,0)","v":0},{"$f":"IF(AF24=\"\",0,IF(AC24=\"\",0,IF(AC24<$AM$21,(AF24-$AM$21)/365,(AF24-AC24)/365)))","v":0}]
[3,null,null,null,null,null,null,null,null,null,null,null,null,null,null,null,null,null,null,null,null,null,null,null,null,null,null,null,null,null,null,null,null,null,{"$f":"IF(AF25>=$AM$21,AN25,0)","v":0},null,null,null,{"$f":"IF(AF25>=$AM$21,Z25,0)","v":0},{"$f":"IF(AF25=\"\",0,IF(AC25=\"\",0,IF(AC25<$AM$21,(AF25-$AM$21)/365,(AF25-AC25)/365)))","v":0}]
[4,null,null,null,null,null,null,null,null,null,null,null,null,null,null,null,null,null,null,null,null,null,null,null,null,null,null,null,null,null,null,null,null,null,{"$f":"IF(AF26>=$AM$21,AN26,0)","v":0},null,null,null,{"$f":"IF(AF26>=$AM$21,Z26,0)","v":0},{"$f":"IF(AF26=\"\",0,IF(AC26=\"\",0,IF(AC26<$AM$21,(AF26-$AM$21)/365,(AF26-AC26)/365)))","v":0}]
[5,null,null,null,null,null,null,null,null,null,null,null,null,null,null,null,null,null,null,null,null,null,null,null,null,null,null,null,null,null,null,null,null,null,{"$f":"IF(AF27>=$AM$21,AN27,0)","v":0},null,null,null,{"$f":"IF(AF27>=$AM$21,Z27,0)","v":0},{"$f":"IF(AF27=\"\",0,IF(AC27=\"\",0,IF(AC27<$AM$21,(AF27-$AM$21)/365,(AF27-AC27)/365)))","v":0}]
["File Name:",null,null,"SHTA Dev Compl. 1, 2, 3, etc",null,null,null,null,null,null,null,"Notice of Completion, Placed in Service, Certificate of Occupancy or equivalent",null,null,null,null,null,null,null,null,null,null,null,null,null,null,null,null,null,null,null,"Uploaded to HCD?"]
["§7737 Applicant certifies the CalHome funds in support of a SHTA project will be only be used for these eligible costs?"]
["§7738 Applicant certifies it will develop and employ SHTA guidelines and will comply with these and any additional administration requirements as deemed necessary by HCD? The SHTA guidelines must be submitted to and approved by HCD prior to execution of the Standard Agreement."]
["Selection Criteria §7755"]
["Total Self Score (minimum points required = 55; maximum points = 100)",null,null,null,null,null,null,null,null,null,null,null,null,null,null,null,null,null,null,null,null,null,null,null,null,null,null,null,null,null,null,null,null,null,null,{"$f":"AJ34+AJ35+AJ36+AJ37+AJ43+AJ58","v":0}]
["Rating Factors per NOFA (red shading indicates minimum score has not been achieved)",null,null,null,null,null,null,null,null,null,null,null,null,null,null,null,null,null,null,null,null,null,null,null,null,null,null,null,null,null,null,null,null,null,null,"Points"]
["§7755(b)(1) Capability - 40 Points Max\nCapability to administer and conduct the SHTA Project:\nNumber of Self-Help, new construction units within the last four years:\n   1 – 10 = 20 points \n   11 – 20 = 30 points \n   21 or more = 40 points",null,null,null,null,null,null,null,null,null,null,null,null,null,null,null,null,null,null,null,null,null,null,null,null,null,null,null,null,null,null,null,null,null,null,{"$f":"IF(AI22>=2,AM34,0)","v":0},null,null,{"$f":"IF(Z22>=21,40,IF(Z22>=11,30,IF(Z22>=1,20,0)))","v":0}]
["§7755(b)(2) Community Need - 15 Points\nCommunity need in a geographic area of the proposed SHTA Project will be based on the following factors:\n• Housing affordability in the geographic area: The ratio of the current median sales price of a single-family home to the AMI for a 4-person Household, in the county in which the CalHome program or project is located. The current median sales price is the most recent available from the California Association of Realtors as of the NOFA date, and the AMI is updated on an annual basis by HCD;\n• Percent of renter Households that are Low Income: The percent of Households in renter-occupied housing with incomes below 80 percent of AMI, as reported in the most recent HUD Comprehensive Housing Affordability Strategy U.S. Census Bureau American Community Survey (HUD CHAS) data;\n• Percent of renter Households occupying overcrowded housing: The percent of renter-occupied housing units with more than 1.5 occupants\nper room, as reported in the most recent HUD CHAS data; and\n• Rental vacancy rate: The percent of rental housing units that are currently vacant, as reported in the most recent HUD CHAS data.",null,null,null,null,null,null,null,null,null,null,null,null,null,null,null,null,null,null,null,null,null,null,null,null,null,null,null,null,null,null,null,null,null,null,{"$f":"IFERROR(VLOOKUP('Applicant and Activity'!$G$28,CalHome2021scoring!$A$3:$AN$60,10,FALSE),0)","v":0}]
["§7755(b)(3) Feasibility - 25 Points\nFeasibility in a geographic area for the proposed SHTA Programs will be based on the following factors:\n• Affordability of Homeownership relative to renting: The ratio of median Monthly Housing Costs for owner-occupied housing units with a Mortgage, to median Monthly Housing Costs for renter-occupied housing units, as reported in the most recent ACS data.",null,null,null,null,null,null,null,null,null,null,null,null,null,null,null,null,null,null,null,null,null,null,null,null,null,null,null,null,null,null,null,null,null,null,{"$f":"IFERROR(VLOOKUP('Applicant and Activity'!$G$28,CalHome2021scoring!$A$3:$AN$60,38,FALSE),0)","v":0}]
["Community Revitalization §7755(b)(4), §7716(l) - 10 Points\nContributes to Community Revitalization (to qualify - all Assisted units are, or will be, located within a federal Promise Zone or a Choice Neighborhood Initiative Area or an Opportunity Zone).",null,null,null,null,null,null,null,null,null,null,null,null,null,null,null,null,null,null,null,null,null,null,null,null,null,null,null,null,null,null,null,null,null,null,{"$f":"IF(AM37=\"Yes\",10,0)","v":0},null,null,{"$f":"IF(AND(OR(AK38=\"Yes\",AK39=\"Yes\",AK40=\"Yes\"),AK41=\"Yes\"),\"Yes\",\"No\")","v":"No"}]
["Federal Promise Zone (https://www.hudexchange.info/programs/promise-zones/)\nPromise Zones in California: Sacramento Promise Zone, Los Angeles Promise Zone, and San Diego Promise Zone, or"]
["Choice Neighborhood Initiative Area (https://www.hud.gov/cn, see grantee report). \nChoice Neighborhood Initiative Areas in California: Sacramento, San Francisco, and Los Angeles, or"]
["Opportunity Zone (https://esrimedia.maps.arcgis.com/apps/View)"]
["Applicant certifies ALL CalHome SHTA Assisted units will be in the Promise Zone, Opportunity Zone, or Choice Neighborhood?"]
["File Name:",null,null,"SHTA Community Revitalization",null,null,null,null,null,null,null,"Provide a print screen file showing Promise Zone, Neighbor Initiative Area or Op. Zone",null,null,null,null,null,null,null,null,null,null,null,null,null,null,null,null,null,null,null,"Uploaded to HCD?"]
["§7755(b)(5) Volunteer Labor, Self-Help Labor or Youth Construction Skills Training Program - 10 Points\nApplications applying for Homeownership Development Projects (PDL), Self-Help Technical Assistance Homeownership projects (SHTA), or a Mortgage Assistance Local Program (MA) for new construction housing or acquisition with substantial rehabilitation when the Recipient is acquiring and substantially rehabilitating properties for sale to First-Time Homebuyers, will receive up to 10 points to the extent that they are utilizing:\n(A) Volunteer or Self-Help Construction labor, where a minimum of 500 hours of on-site construction labor per Assisted Unit is provided; or\n(B) Labor provided by youth participating in a Construction Skills Training Program, where a minimum of 500 hours of on-site construction labor per Assisted Unit is provided. The 500 hours of construction training labor must be provided by the 16- to 24-year-old program participants; or\n(C) Minimum 15 percent of units include an ADU or a JADU. \n(D) Homeownership development projects are located in a High Resource or Highest Resource area, as identified on the TCAC/HCD Opportunity Area Map. ",null,null,null,null,null,null,null,null,null,null,null,null,null,null,null,null,null,null,null,null,null,null,null,null,null,null,null,null,null,null,null,null,null,null,{"$f":"IF(SUM(AI45:AL46)>=500,10,IF(AI47>=500,10,IF(OR(AK53=\"Yes\",AK55=\"Yes\"),10,0)))","v":0}]
["Enter hours of Volunteer Labor, Self-Help Labor, Youth Construction Skills Training Program",null,null,null,null,null,null,null,null,null,null,null,null,null,null,null,null,null,null,null,null,"Total Hours",null,null,"# Assisted Units utilizing this type of construction",null,null,null,null,null,null,null,null,null,"Hours per Unit"]
["(A) Volunteer Labor",null,null,null,null,null,null,null,null,null,null,null,null,null,null,null,null,null,null,null,null,null,null,null,null,null,null,null,null,null,null,null,null,null,{"$f":"IFERROR(V45/Y45,0)","v":0}]
["(A) Self-Help Construction Labor",null,null,null,null,null,null,null,null,null,null,null,null,null,null,null,null,null,null,null,null,null,null,null,null,null,null,null,null,null,null,null,null,null,{"$f":"IFERROR(V46/Y46,0)","v":0}]
["(B) Labor provided by Youth Participating in a Construction Skills Training Program (Ages 16-24 only)",null,null,null,null,null,null,null,null,null,null,null,null,null,null,null,null,null,null,null,null,null,null,null,null,null,null,null,null,null,null,null,null,null,{"$f":"IFERROR(V47/Y47,0)","v":0}]
["File Name:",null,null,"SHTA Labor Program Criteria",null,null,null,null,null,null,null,"As an attachment, describe the criteria for participation in your contributed labor program.",null,null,null,null,null,null,null,null,null,null,null,null,null,null,null,null,null,null,null,"Uploaded to HCD?"]
["File Name:",null,null,"SHTA Labor Program Agreement",null,null,null,null,null,null,null,"Attach a copy of the agreement form used for the contributed labor program.",null,null,null,null,null,null,null,null,null,null,null,null,null,null,null,null,null,null,null,"Uploaded to HCD?"]
["File Name:",null,null,"SHTA Labor Program Activities",null,null,null,null,null,null,null,"As an attachment, provide a description of activities performed by contributed labor participants.",null,null,null,null,null,null,null,null,null,null,null,null,null,null,null,null,null,null,null,"Uploaded to HCD?"]
["File Name:",null,null,"SHTA Labor Program Contracted",null,null,null,null,null,null,null,"As an attachment, provide a description of activities normally contracted out.",null,null,null,null,null,null,null,null,null,null,null,null,null,null,null,null,null,null,null,"Uploaded to HCD?"]
["File Name:",null,null,"SHTA Contributed Labor Program",null,null,null,null,null,null,null,"Provide evidence of previous administration of the type of contributed labor program proposed in this application.  This includes documentation of completed projects; a copy of the board resolution authorizing the program, supported by completed projects; or copies of contracts with contributed labor participants. ",null,null,null,null,null,null,null,null,null,null,null,null,null,null,null,null,null,null,null,"Uploaded to HCD?"]
["(C) At least 15% of units include an ADU or JADU"]
["File Name:",null,null,"SHTA 15 % ADU",null,null,null,null,null,null,null,"Documentation showing at least 15% of total units include an ADU or JADU.",null,null,null,null,null,null,null,null,null,null,null,null,null,null,null,null,null,null,null,"Uploaded to HCD?"]
["(D) Is Project located in a High or Highest Resource Area per TCAC/HCD Opportunity Area Map available at the time of application §7307(b)(2), 7320(b)(2)(A), §7320(b)(4)(C), & §7320(b)(6)? https://www.treasurer.ca.gov/ctcac/opportunity.asp"]
["If \"Yes\", enter the entire TCAC/HCD Opportunity Area Map Tract ID #:",null,null,null,null,null,null,null,null,null,null,null,null,null,null,null,null,null,null,null,null,"Opportunity Area Map Category: "]
["File Name:",null,null,"Opportunity Area ",null,null,null,null,null,null,null,"Documentation of TCAC/HCD Opportunity Area status at time of application.",null,null,null,null,null,null,null,null,null,null,null,null,null,null,null,null,null,null,null,"Uploaded to HCD?"]
["§7755(c) Performance Penalty - A deduction to the total score will be applied for failure to meet CalHome Program Performance Goals pursuant to §7759.",null,null,null,null,null,null,null,null,null,null,null,null,null,null,null,null,null,null,null,null,null,null,null,null,null,null,null,null,null,null,null,null,null,null,0]

{"sheet":"Develop Project PDL - Article 9","index":9,"n_rows":207,"n_cols":40,"rows_kept":207,"cut":false,"hidden":true,"merged":[[163,0,163,9],[163,10,163,13],[163,14,163,17],[163,18,163,21],[163,22,163,25],[163,26,163,29],[163,30,163,33],[163,34,163,37],[135,0,135,9],[135,10,135,13],[135,14,135,17],[135,18,135,21],[135,22,135,25],[135,26,135,29],[135,30,135,33],[135,34,135,37],[162,0,162,9],[162,10,162,13],[162,14,162,17],[162,18,162,21],[162,22,162,25],[162,26,162,29],[162,30,162,33],[162,34,162,37],[158,0,158,9],[158,10,158,13],[158,14,158,17],[158,18,158,21],[158,22,158,25],[158,26,158,29],[158,30,158,33],[158,34,158,37],[167,0,167,9],[167,10,167,13],[167,14,167,17],[167,18,167,21],[167,22,167,25],[167,26,167,29],[167,30,167,33],[167,34,167,37],[106,0,106,9],[106,10,106,13],[106,14,106,17],[106,18,106,21],[106,22,106,25],[106,26,106,29],[106,30,106,33],[106,34,106,37],[107,0,107,9],[107,10,107,13],[107,14,107,17],[107,18,107,21],[107,22,107,25],[107,26,107,29],[107,30,107,33],[107,34,107,37],[166,0,166,9],[166,10,166,13],[166,14,166,17],[166,18,166,21],[166,22,166,25],[166,26,166,29],[166,30,166,33],[166,34,166,37],[164,0,164,9],[164,10,164,13],[164,14,164,17],[164,18,164,21],[164,22,164,25],[164,26,164,29],[164,30,164,33],[164,34,164,37],[165,0,165,9],[165,10,165,13],[165,14,165,17],[165,18,165,21],[165,22,165,25],[165,26,165,29],[165,30,165,33],[165,34,165,37],[160,0,160,9],[160,10,160,13],[160,14,160,17],[160,18,160,21],[160,22,160,25],[160,26,160,29],[160,30,160,33],[160,34,160,37],[161,0,161,9],[161,10,161,13],[161,14,161,17],[161,18,161,21],[161,22,161,25],[161,26,161,29],[161,30,161,33],[161,34,161,37],[159,0,159,9],[159,10,159,13],[159,14,159,17],[159,18,159,21],[159,22,159,25],[159,26,159,29],[159,30,159,33],[159,34,159,37],[156,0,156,9],[156,10,156,13],[156,14,156,17],[156,18,156,21],[156,22,156,25],[156,26,156,29],[156,30,156,33],[156,34,156,37],[157,0,157,9],[157,10,157,13],[157,14,157,17],[157,18,157,21],[157,22,157,25],[157,26,157,29],[157,30,157,33],[157,34,157,37],[154,0,154,9],[154,10,154,13],[154,14,154,17],[154,18,154,21],[154,22,154,25],[154,26,154,29],[154,30,154,33],[154,34,154,37],[155,0,155,9],[155,10,155,13],[155,14,155,17],[155,18,155,21],[155,22,155,25],[155,26,155,29],[155,30,155,33],[155,34,155,37],[151,34,151,37],[152,0,152,9],[152,10,152,13],[152,14,152,17],[152,18,152,21],[152,22,152,25],[153,0,153,9],[153,10,153,13],[153,14,153,17],[153,18,153,21],[153,22,153,25],[153,26,153,29],[153,30,153,33],[153,34,153,37],[152,26,152,29],[152,30,152,33],[138,0,138,9],[138,10,138,13],[138,14,138,17],[138,18,138,21],[138,22,138,25],[138,26,138,29],[138,30,138,33],[138,34,138,37],[139,0,139,9],[139,10,139,13],[139,14,139,17],[139,18,139,21],[139,22,139,25],[139,26,139,29],[139,30,139,33],[139,34,139,37],[137,0,137,9],[137,10,137,13],[137,14,137,17],[137,18,137,21],[137,22,137,25],[137,26,137,29],[137,30,137,33],[137,34,137,37],[133,0,133,9],[133,10,133,13],[133,14,133,17],[133,18,133,21],[133,22,133,25],[133,26,133,29],[133,30,133,33],[133,34,133,37],[136,0,136,9],[136,10,136,13],[136,14,136,17],[136,18,136,21],[136,22,136,25],[136,26,136,29],[136,30,136,33],[136,34,136,37],[134,0,134,9],[134,10,134,13],[134,14,134,17],[134,18,134,21],[134,22,134,25],[134,26,134,29],[134,30,134,33],[134,34,134,37],[131,0,131,9],[131,10,131,13],[131,14,131,17],[131,18,131,21],[131,22,131,25],[131,26,131,29],[131,30,131,33],[131,34,131,37],[132,0,132,9],[132,10,132,13],[132,14,132,17],[132,18,132,21],[132,22,132,25],[132,26,132,29],[132,30,132,33],[132,34,132,37],[129,0,129,9],[129,10,129,13],[129,14,129,17],[129,18,129,21],[129,22,129,25],[129,26,129,29],[129,30,129,33],[129,34,129,37],[130,0,130,9],[130,10,130,13],[130,14,130,17],[130,18,130,21],[130,22,130,25],[130,26,130,29],[130,30,130,33],[130,34,130,37],[128,0,128,9],[128,10,128,13],[128,14,128,17],[128,18,128,21],[128,22,128,25],[128,26,128,29],[128,30,128,33],[128,34,128,37],[125,34,125,37],[126,0,126,9],[126,10,126,13],[126,14,126,17],[126,18,126,21],[126,22,126,25],[126,26,126,29],[126,30,126,33],[126,34,126,37],[125,22,125,25],[125,26,125,29],[125,30,125,33],[127,0,127,9],[127,10,127,13],[127,14,127,17],[127,18,127,21],[127,22,127,25],[127,26,127,29],[127,30,127,33],[127,34,127,37],[104,22,104,25],[104,26,104,29],[104,30,104,33],[104,34,104,37],[110,0,110,9],[110,10,110,13],[110,14,110,17],[110,18,110,21],[110,22,110,25],[110,26,110,29],[110,30,110,33],[110,34,110,37],[111,0,111,9],[111,10,111,13],[111,14,111,17],[111,18,111,21],[111,22,111,25],[111,26,111,29],[111,30,111,33],[111,34,111,37],[109,0,109,9],[109,10,109,13],[109,14,109,17],[109,18,109,21],[109,22,109,25],[109,26,109,29],[109,30,109,33],[109,34,109,37],[100,18,100,21],[100,22,100,25],[100,26,100,29],[100,30,100,33],[100,34,100,37],[105,10,105,13],[105,14,105,17],[105,18,105,21],[105,22,105,25],[105,26,105,29],[105,30,105,33],[105,34,105,37],[108,0,108,9],[108,10,108,13],[108,14,108,17],[108,18,108,21],[108,22,108,25],[108,26,108,29],[108,30,108,33],[108,34,108,37],[103,0,103,9],[103,10,103,13],[103,14,103,17],[103,18,103,21],[103,22,103,25],[103,26,103,29],[103,30,103,33],[103,34,103,37],[104,0,104,9],[104,10,104,13],[104,14,104,17],[104,18,104,21],[95,26,95,29],[95,30,95,33],[95,34,95,37],[96,0,96,9],[96,10,96,13],[96,14,96,17],[96,18,96,21],[96,22,96,25],[96,26,96,29],[96,30,96,33],[96,34,96,37],[101,30,101,33],[101,34,101,37],[102,0,102,9],[102,10,102,13],[102,14,102,17],[102,18,102,21],[102,22,102,25],[102,26,102,29],[102,30,102,33],[102,34,102,37],[99,0,99,9],[99,10,99,13],[99,14,99,17],[99,18,99,21],[99,22,99,25],[99,26,99,29],[99,30,99,33],[99,34,99,37],[100,0,100,9],[100,10,100,13],[100,14,100,17],[90,5,90,15],[90,16,90,18],[90,19,90,20],[90,21,90,26],[90,27,90,29],[93,0,93,9],[87,27,87,29],[87,30,87,37],[82,30,82,37],[83,30,83,37],[89,30,89,37],[87,0,87,2],[87,3,87,4],[87,5,87,15],[87,16,87,18],[87,19,87,20],[83,7,83,10],[83,11,83,13],[83,14,83,16],[83,17,83,20],[82,5,82,6],[83,5,83,6],[83,0,83,4],[82,17,82,20],[76,0,76,8],[76,9,76,15],[75,0,75,2],[178,36,178,37],[179,36,179,37],[81,14,81,16],[66,20,66,21],[67,36,67,37],[93,10,93,13],[93,14,93,17],[93,18,93,21],[93,22,93,25],[93,26,93,29],[93,30,93,33],[93,34,93,37],[94,0,94,9],[94,10,94,13],[94,14,94,17],[94,18,94,21],[94,22,94,25],[94,26,94,29],[94,30,94,33],[81,0,81,4],[82,0,82,4],[88,0,88,2],[88,3,88,4],[88,5,88,15],[88,16,88,18],[88,19,88,20],[88,21,88,26],[88,27,88,29],[88,30,88,37],[80,0,80,4],[26,29,26,33],[68,11,68,30],[68,31,68,35],[68,36,68,37],[42,0,42,7],[45,0,45,17],[45,18,45,20],[68,0,68,2],[46,0,46,37],[49,0,49,37],[59,0,59,11],[59,25,59,37],[60,0,60,11],[60,25,60,37],[68,3,68,10],[36,11,36,30],[36,31,36,35],[65,0,65,37],[59,12,59,15],[59,16,59,24],[53,36,53,37],[77,0,77,37],[41,0,41,10],[41,11,41,24],[29,36,29,37],[54,3,54,10],[42,8,42,14],[42,15,42,16],[61,0,61,11],[66,22,66,24],[66,10,66,11],[9,32,9,37],[9,5,9,20],[78,5,78,6],[79,5,79,6],[27,25,27,28],[50,11,50,23],[51,36,51,37],[41,34,41,37],[43,27,43,35],[43,17,43,24],[47,0,47,37],[54,11,54,30],[48,0,48,37],[53,3,53,10],[53,11,53,30],[55,0,55,2],[55,3,55,10],[55,11,55,30],[55,31,55,35],[15,22,15,28],[15,29,15,30],[14,29,14,30],[15,35,15,37],[14,0,14,1],[14,2,14,20],[14,22,14,28],[15,31,15,33],[78,0,78,4],[79,0,79,4],[66,12,66,14],[66,15,66,16],[76,16,76,37],[206,34,206,37],[201,34,201,37],[202,34,202,37],[203,34,203,37],[204,34,204,37],[205,34,205,37],[199,0,199,33],[199,34,199,37],[200,0,200,33],[201,0,201,33],[206,0,206,33],[205,0,205,33],[204,0,204,33],[200,34,200,37],[203,0,203,33],[50,9,50,10],[51,0,51,8],[51,9,51,10],[51,24,51,26],[197,0,197,34],[197,35,197,37],[171,35,171,37],[174,0,174,34],[174,35,174,37],[176,35,176,37],[172,0,172,34],[172,35,172,37],[182,0,182,34],[182,35,182,37],[173,0,173,34],[51,11,51,23],[53,0,53,2],[188,11,188,30],[170,0,170,37],[192,36,192,37],[16,0,16,37],[17,0,17,1],[17,2,17,5],[17,6,17,10],[17,11,17,15],[17,21,17,25],[19,0,19,37],[23,29,23,33],[24,25,24,28],[25,25,25,28],[36,36,36,37],[190,36,190,37],[187,31,187,35],[187,36,187,37],[177,0,177,35],[178,0,178,35],[179,0,179,35],[60,12,60,15],[60,16,60,24],[80,17,80,20],[44,0,44,6],[45,36,45,37],[74,0,74,2],[56,0,56,37],[57,0,57,11],[57,25,57,37],[58,0,58,11],[58,25,58,37],[81,30,81,37],[0,0,0,34],[0,35,0,37],[8,0,8,37],[10,0,10,1],[10,2,10,20],[10,22,10,28],[10,29,10,30],[10,31,10,33],[10,35,10,37],[2,0,2,6],[2,10,2,17],[2,18,2,20],[9,21,9,31],[24,34,24,37],[25,34,25,37],[30,36,30,37],[29,0,29,2],[30,0,30,35],[26,25,26,28],[25,29,25,33],[21,36,21,37],[12,22,12,28],[12,29,12,30],[9,0,9,4],[12,35,12,37],[12,31,12,33],[13,35,13,37],[13,22,13,28],[13,29,13,30],[13,31,13,33],[15,0,15,1],[15,2,15,20],[11,0,11,8],[11,9,11,10],[11,11,11,37],[12,0,12,1],[12,2,12,20],[14,31,14,33],[14,35,14,37],[13,0,13,1],[13,2,13,20],[44,36,44,37],[44,22,44,35],[52,0,52,2],[52,3,52,10],[52,11,52,30],[20,0,20,37],[18,0,18,37],[24,1,24,24],[25,1,25,24],[26,1,26,24],[27,1,27,24],[28,1,28,24],[31,0,31,35],[24,29,24,33],[33,0,33,37],[34,0,34,37],[42,36,42,37],[43,15,43,16],[43,25,43,26],[22,0,22,24],[23,0,23,24],[26,34,26,37],[27,34,27,37],[81,11,81,13],[67,0,67,35],[78,17,78,20],[81,17,81,20],[55,36,55,37],[66,17,66,19],[78,11,78,13],[78,14,78,16],[61,25,61,37],[62,0,62,11],[62,25,62,37],[63,0,63,11],[63,25,63,37],[64,0,64,37],[63,12,63,15],[63,16,63,24],[74,3,74,10],[74,11,74,30],[74,31,74,35],[69,0,69,35],[69,36,69,37],[70,0,70,37],[81,7,81,10],[79,7,79,10],[79,11,79,13],[79,14,79,16],[79,17,79,20],[80,5,80,6],[81,5,81,6],[66,7,66,9],[62,16,62,24],[78,7,78,10],[187,11,187,30],[189,0,189,2],[189,3,189,10],[189,11,189,30],[186,27,186,29],[181,36,181,37],[188,0,188,2],[188,3,188,10],[181,3,181,10],[181,11,181,30],[181,31,181,35],[181,0,181,2],[37,0,37,37],[38,0,38,37],[22,34,22,37],[23,34,23,37],[17,26,17,30],[17,31,17,37],[35,36,35,37],[44,7,44,10],[44,11,44,17],[32,0,32,37],[21,0,21,35],[22,29,22,33],[31,36,31,37],[36,0,36,2],[36,3,36,10],[17,16,17,20],[39,0,39,37],[28,34,28,37],[28,25,28,28],[22,25,22,28],[202,0,202,33],[186,34,186,37],[185,34,185,37],[194,0,194,35],[194,36,194,37],[189,31,189,35],[189,36,189,37],[198,0,198,37],[193,0,193,2],[193,3,193,10],[193,11,193,30],[193,31,193,35],[193,36,193,37],[192,0,192,35],[188,31,188,35],[188,36,188,37],[190,0,190,2],[190,3,190,10],[190,11,190,30],[190,31,190,35],[185,30,185,33],[186,30,186,33],[185,27,185,29],[185,0,185,26],[186,0,186,26],[191,0,191,2],[191,3,191,10],[191,11,191,30],[191,31,191,35],[191,36,191,37],[187,0,187,2],[187,3,187,10],[61,12,61,15],[61,16,61,24],[62,12,62,15],[23,25,23,28],[27,29,27,33],[28,29,28,33],[42,25,42,26],[75,3,75,10],[75,11,75,30],[75,31,75,35],[66,0,66,6],[66,27,66,28],[66,29,66,37],[71,31,71,35],[72,0,72,2],[72,3,72,10],[72,11,72,30],[72,31,72,35],[40,36,40,37],[41,25,41,33],[45,21,45,35],[44,18,44,21],[50,0,50,8],[42,17,42,24],[43,36,43,37],[29,3,29,10],[29,11,29,30],[29,31,29,35],[51,27,51,35],[50,36,50,37],[50,27,50,35],[50,24,50,26],[80,7,80,10],[80,11,80,13],[80,14,80,16],[1,0,1,37],[7,0,7,17],[7,18,7,24],[7,25,7,31],[3,0,3,35],[3,36,3,37],[6,0,6,17],[6,18,6,24],[6,25,6,31],[6,32,6,37],[4,0,4,17],[4,32,4,37],[5,32,5,37],[7,32,7,37],[2,7,2,9],[2,21,2,31],[2,32,2,37],[4,18,4,24],[4,25,4,31],[5,0,5,17],[5,18,5,24],[5,25,5,31],[42,27,42,35],[35,0,35,35],[43,0,43,14],[52,31,52,35],[52,36,52,37],[53,31,53,35],[40,0,40,35],[143,35,143,37],[144,19,144,20],[180,0,180,35],[180,36,180,37],[146,16,146,18],[146,19,146,20],[146,21,146,25],[184,30,184,33],[184,34,184,37],[183,30,183,33],[183,34,183,37],[184,27,184,29],[177,36,177,37],[183,27,183,29],[183,0,183,26],[184,0,184,26],[144,26,144,31],[144,32,144,34],[144,35,144,37],[145,0,145,2],[145,16,145,18],[173,35,173,37],[171,0,171,34],[145,21,145,25],[145,26,145,31],[145,32,145,34],[145,35,145,37],[144,0,144,2],[176,0,176,34],[168,0,168,35],[168,36,168,37],[175,0,175,34],[82,14,82,16],[82,7,82,10],[82,11,82,13],[54,0,54,2],[125,18,125,21],[72,36,72,37],[73,0,73,2],[73,3,73,10],[73,11,73,30],[73,31,73,35],[73,36,73,37],[71,0,71,2],[71,3,71,10],[71,11,71,30],[71,36,71,37],[75,36,75,37],[74,36,74,37],[66,25,66,26],[57,12,57,15],[57,16,57,24],[58,16,58,24],[58,12,58,15],[54,31,54,35],[54,36,54,37],[105,0,105,9],[113,30,113,37],[115,19,115,20],[115,0,115,2],[115,3,115,4],[115,5,115,15],[115,27,115,29],[117,5,117,15],[114,16,114,18],[114,19,114,20],[113,0,113,2],[113,3,113,4],[113,5,113,15],[114,0,114,2],[114,3,114,4],[114,5,114,15],[113,27,113,29],[114,27,114,29],[113,21,113,26],[115,21,115,26],[116,21,116,26],[125,0,125,9],[125,10,125,13],[125,14,125,17],[118,27,118,29],[116,16,116,18],[116,19,116,20],[116,0,116,2],[116,3,116,4],[116,5,116,15],[116,27,116,29],[115,16,115,18],[120,16,120,18],[120,27,120,29],[120,0,120,15],[114,21,114,26],[117,16,117,18],[117,19,117,20],[117,0,117,2],[117,3,117,4],[89,0,89,2],[89,3,89,4],[89,5,89,15],[89,16,89,18],[89,19,89,20],[89,21,89,26],[89,27,89,29],[90,0,90,2],[90,3,90,4],[113,16,113,18],[113,19,113,20],[101,0,101,9],[101,10,101,13],[101,14,101,17],[101,18,101,21],[101,22,101,25],[101,26,101,29],[112,0,112,37],[97,34,97,37],[98,0,98,9],[98,10,98,13],[98,14,98,17],[98,18,98,21],[98,22,98,25],[98,26,98,29],[98,30,98,33],[98,34,98,37],[95,0,95,9],[95,10,95,13],[95,14,95,17],[95,18,95,21],[95,22,95,25],[94,34,94,37],[97,0,97,9],[97,10,97,13],[97,14,97,17],[97,18,97,21],[97,22,97,25],[97,26,97,29],[97,30,97,33],[91,16,91,18],[91,19,91,20],[91,21,91,26],[91,27,91,29],[91,30,91,37],[120,30,120,37],[120,19,120,26],[92,0,92,15],[92,16,92,18],[92,19,92,26],[92,27,92,29],[92,30,92,37],[119,16,119,18],[119,19,119,20],[119,0,119,2],[119,3,119,4],[119,5,119,15],[119,27,119,29],[118,16,118,18],[118,19,118,20],[118,0,118,2],[118,3,118,4],[118,5,118,15],[117,27,117,29],[141,0,141,2],[141,16,141,18],[144,16,144,18],[143,3,143,4],[144,3,144,4],[145,3,145,4],[143,5,143,15],[144,5,144,15],[145,5,145,15],[144,21,144,25],[152,34,152,37],[141,35,141,37],[142,0,142,2],[142,16,142,18],[142,19,142,20],[142,21,142,25],[142,26,142,31],[142,32,142,34],[142,35,142,37],[142,3,142,4],[141,5,141,15],[142,5,142,15],[141,26,141,31],[141,32,141,34],[149,18,149,21],[149,22,149,25],[149,26,149,29],[149,30,149,33],[149,34,149,37],[150,0,150,9],[150,10,150,13],[150,14,150,17],[151,14,151,17],[151,18,151,21],[151,22,151,25],[151,26,151,29],[151,30,151,33],[146,26,146,31],[146,32,146,34],[146,35,146,37],[147,0,147,2],[147,16,147,18],[147,19,147,20],[147,21,147,25],[147,26,147,31],[147,32,147,34],[147,35,147,37],[146,3,146,4],[147,3,147,4],[146,5,146,15],[147,5,147,15],[150,18,150,21],[150,22,150,25],[148,0,148,15],[148,16,148,18],[148,19,148,34],[148,35,148,37],[84,0,84,37],[85,0,85,2],[85,3,85,4],[85,5,85,15],[85,16,85,18],[85,19,85,20],[85,21,85,26],[85,27,85,29],[85,30,85,37],[86,0,86,2],[86,3,86,4],[86,5,86,15],[86,16,86,18],[86,19,86,20],[86,21,86,26],[86,27,86,29],[86,30,86,37],[78,21,78,24],[79,21,79,24],[80,21,80,24],[81,21,81,24],[82,21,82,24],[83,21,83,24]],"merged_total":1090,"flags":["merged_cut"]}
["Homeownership Development Project Loan (PDL)",null,null,null,null,null,null,null,null,null,null,null,null,null,null,null,null,null,null,null,null,null,null,null,null,null,null,null,null,null,null,null,null,null,null,{"$f":"'CalHome Coverpage'!A5","v":"2021-08-06"}]
["Conditional awards of development loans to be used for land acquisition, predevelopment costs and on-site improvements (unit construction is not an eligible expense).\nAssisted units: homebuyers including any households at or below 80% of AMI or households between 80 and 120% of AMI, as applicable, who were either:\n1. formerly renters physically or economically displaced by a disaster, as defined in Gov Code §8680.3, in need of mortgage assistance to purchase newly constructed homes that are ready for occupancy; or\n2. owners of a dwelling unit out of compliance with building codes because of a disaster, as defined in Gov Code §8680.3 which cannot be brought into compliance for less than the cost of constructing a permanent structure; or\n3. owner-occupants of a dwelling unit whose structure was damaged or destroyed by a disaster, as defined in Gov Code §8680.3."]
["Proposed # of Assisted units:",null,null,null,null,null,null,null,null,null,"Proposed # of Total units:",null,null,null,null,null,null,null,null,null,null,"Remaining Allocation:",null,null,null,null,null,null,null,null,null,null,{"$f":"IF('Applicant and Activity'!Z28=\"\",\"\",IF(ISNUMBER(SEARCH(9,_xlfn.SINGLE(ProjectActivities))),'Applicant and Activity'!Z28-'Applicant and Activity'!P38,0))","v":""}]
["Will the Applicant provide homebuyer education classes?"]
[null,null,null,null,null,null,null,null,null,null,null,null,null,null,null,null,null,null,"PDL Funds Request",null,null,null,null,null,null,"PDL Max Eligible Funds",null,null,null,null,null,null,"Per unit request"]
["PDL Funds - $100,000 per unit, NOFA",null,null,null,null,null,null,null,null,null,null,null,null,null,null,null,null,null,null,null,null,null,null,null,null,{"$f":"ROUND(H3*100000,0)","v":0},null,null,null,null,null,null,{"$f":"IFERROR(S6/$H$3,0)","v":0}]
["Homebuyer education - $250 per unit, §7729(b), NOFA",null,null,null,null,null,null,null,null,null,null,null,null,null,null,null,null,null,null,null,null,null,null,null,null,{"$f":"IF(AK4=\"Yes\",H3*250,0)","v":0},null,null,null,null,null,null,{"$f":"IFERROR(S7/$H$3,0)","v":0}]
["Total PDL Funds:",null,null,null,null,null,null,null,null,null,null,null,null,null,null,null,null,null,{"$f":"SUM(S6:Y7)","v":0},null,null,null,null,null,null,{"$f":"SUM(Z6:AF7)","v":0},null,null,null,null,null,null,{"$f":"IFERROR(S8/$H$3,0)","v":0}]
["Proposed Homeownership Development Project"]
["Development Name",null,null,null,null,null,null,null,null,null,null,null,null,null,null,null,null,null,null,null,null,"What type of building are the proposed units:"]
["Address",null,null,null,null,null,null,null,null,null,null,null,null,null,null,null,null,null,null,null,null,"City",null,null,null,null,null,null,null,"County",null,null,null,null,"Zip"]
["Does the project include multiple parcels?",null,null,null,null,null,null,null,null,null,null,"If the project includes multiple parcels please include additional addresses below:"]
["Address",null,null,null,null,null,null,null,null,null,null,null,null,null,null,null,null,null,null,null,null,"City",null,null,null,null,null,null,null,"County",null,null,null,null,"Zip"]
["Address",null,null,null,null,null,null,null,null,null,null,null,null,null,null,null,null,null,null,null,null,"City",null,null,null,null,null,null,null,"County",null,null,null,null,"Zip"]
["Address",null,null,null,null,null,null,null,null,null,null,null,null,null,null,null,null,null,null,null,null,"City",null,null,null,null,null,null,null,"County",null,null,null,null,"Zip"]
["Address",null,null,null,null,null,null,null,null,null,null,null,null,null,null,null,null,null,null,null,null,"City",null,null,null,null,null,null,null,"County",null,null,null,null,"Zip"]
["Please include the APN(s) of all parcels below."]
["APN(s)"]
["Summarize the local area market data which demonstrates the need for the development of additional affordable housing matching the proposed Project. Include details of the targeted households and their willingness and ability to pay the proposed housing costs."]
[]
["Project Financing & Affordability"]
["§7746 Applicant certifies it has staff that will be committed to the proposed project that possesses the knowledge, skills and ability to perform the tasks required in a homeownership development project."]
["§7746 Applicant must have successfully developed a minimum of two similar projects within the four years from the application due date.",null,null,null,null,null,null,null,null,null,null,null,null,null,null,null,null,null,null,null,null,null,null,null,null,"Completed Developments",null,null,null,"Developed within last four years",null,null,null,null,"Qualified Developments",null,null,null,{"$f":"AN23-(4*365)","v":"2017-10-29"},{"$f":"'Applicant and Activity'!AK3","v":"2021-10-28"}]
["Describe the applicable projects you have successfully completeded within the last four years",null,null,null,null,null,null,null,null,null,null,null,null,null,null,null,null,null,null,null,null,null,null,null,null,{"$f":"SUM(AM25:AM29)","v":0},null,null,null,"Occupancy Date",null,null,null,null,{"$f":"SUM(AN25:AN173)","v":0},null,null,null,"Developments","Qualified Dev"]
[1,null,null,null,null,null,null,null,null,null,null,null,null,null,null,null,null,null,null,null,null,null,null,null,null,null,null,null,null,null,null,null,null,null,{"$f":"IF(AD25>=$AM$23,AN25,0)","v":0},null,null,null,{"$f":"IF(AD25>=$AM$23,Z25,0)","v":0},{"$f":"IF(AD25=\"\",0,IF(AD25>=$AM$23,Z25,0))","v":0}]
[2,null,null,null,null,null,null,null,null,null,null,null,null,null,null,null,null,null,null,null,null,null,null,null,null,null,null,null,null,null,null,null,null,null,{"$f":"IF(AD26>=$AM$23,AN26,0)","v":0},null,null,null,{"$f":"IF(AD26>=$AM$23,Z26,0)","v":0},{"$f":"IF(AD26=\"\",0,IF(AD26>=$AM$23,Z26,0))","v":0}]
[3,null,null,null,null,null,null,null,null,null,null,null,null,null,null,null,null,null,null,null,null,null,null,null,null,null,null,null,null,null,null,null,null,null,{"$f":"IF(AD27>=$AM$23,AN27,0)","v":0},null,null,null,{"$f":"IF(AD27>=$AM$23,Z27,0)","v":0},{"$f":"IF(AD27=\"\",0,IF(AD27>=$AM$23,Z27,0))","v":0}]
[4,null,null,null,null,null,null,null,null,null,null,null,null,null,null,null,null,null,null,null,null,null,null,null,null,null,null,null,null,null,null,null,null,null,{"$f":"IF(AD28>=$AM$23,AN28,0)","v":0},null,null,null,{"$f":"IF(AD28>=$AM$23,Z28,0)","v":0},{"$f":"IF(AD28=\"\",0,IF(AD28>=$AM$23,Z28,0))","v":0}]
[5,null,null,null,null,null,null,null,null,null,null,null,null,null,null,null,null,null,null,null,null,null,null,null,null,null,null,null,null,null,null,null,null,null,{"$f":"IF(AD29>=$AM$23,AN29,0)","v":0},null,null,null,{"$f":"IF(AD29>=$AM$23,Z29,0)","v":0},{"$f":"IF(AD29=\"\",0,IF(AD29>=$AM$23,Z29,0))","v":0}]
["File Name:",null,null,"PDL Dev Compl. 1, 2, 3, etc",null,null,null,null,null,null,null,"Notice of Completion, Placed in Service, Certificate of Occupancy or equivalent",null,null,null,null,null,null,null,null,null,null,null,null,null,null,null,null,null,null,null,"Uploaded to HCD?"]
["§7747 Applicant certifies the CalHome funds in support of a PDL project will be only be used for these eligible costs?"]
["§7754(c) We certify that Construction Work has not begun as of the application deadline set forth in the NOFA. If construction has started, explain below."]
[]
["§7754(d) Describe the proposed project including feasibility and how will you overcome feasibility obstacles."]
[]
["Will you plan to implement resale or recapture restrictions?"]
["File Name:",null,null,"PDL Resale Restrictions",null,null,null,null,null,null,null,"Summarize relevant features of these covenants and indicate if there are other sources of financing in addition to CalHome. ",null,null,null,null,null,null,null,null,null,null,null,null,null,null,null,null,null,null,null,"Uploaded to HCD?"]
["§7754(f) Provide a description of how you will comply with the requirements for Local Program Administration set forth in §7721."]
[]
["Additional Application Requirements §7754(e)"]
["§7748 Site Control: Does the Applicant of the Project have Site Control for the PDL Project?  If yes, enter form of site control and most recent execution date below."]
["Form of site control (See Site Control §7748):",null,null,null,null,null,null,null,null,null,null,null,null,null,null,null,null,null,null,null,null,null,null,null,null,"Most recent document execution date:"]
["If leasehold estate, answer the following:",null,null,null,null,null,null,null,"Is rent based on restricted land value?",null,null,null,null,null,null,null,null,"Is acquisition cost $0 in Development Budget?",null,null,null,null,null,null,null,null,null,"Prepaid lease loan used?  If so answer below (a-c)"]
["(a) Funding amount based on the Present Value of lease payments?",null,null,null,null,null,null,null,null,null,null,null,null,null,null,null,null,"(b) Lender requesting Res. Receipts (not permissible)",null,null,null,null,null,null,null,null,null,"(c) Has loan amount been entered as a finance cost?"]
["Purchase price of the site(s):",null,null,null,null,null,null,null,null,null,null,"Appraised value of the site(s):",null,null,null,null,null,null,null,null,null,null,"Has Applicant completed any other units in this subdivision?"]
["If Applicant has completed other units in this subdivision, provide date completed:",null,null,null,null,null,null,null,null,null,null,null,null,null,null,null,null,null,null,null,null,"If Applicant completed other units, how many units were completed?"]
["Describe any special circumstances regarding site control:"]
[]
["Describe any Project special circumstances or describe additional site information below including lot numbers if applicable.",null,null,null,null,null,null,null,null,null,null,null,null,null,null,null,null,null,null,null,null,null,null,null,null,null,null,null,null,null,null,null,null,null,null,null,null,null,{"$f":"IF(AE41>=$AM$23,X41,\"\")","v":""}]
[]
["Has the Tentative Map been approved?",null,null,null,null,null,null,null,null,null,null,"Provide approval date or estimated date of approval:",null,null,null,null,null,null,null,null,null,null,null,null,null,null,null,"Is the development being phased?"]
["Has the Final Map been recorded?",null,null,null,null,null,null,null,null,null,null,"Provide recorded date or estimated date of recordation:",null,null,null,null,null,null,null,null,null,null,null,null,null,null,null,"If Yes, what phase are subject lots in?"]
["File Name:",null,null,"PDL Site Control",null,null,null,null,null,null,null,"Provide appropriate documentation to demonstrate the form of site control indicated above.",null,null,null,null,null,null,null,null,null,null,null,null,null,null,null,null,null,null,null,"Uploaded to HCD?"]
["File Name:",null,null,"PDL Prelim",null,null,null,null,null,null,null,"Provide the Preliminary Title Report to verify the accuracy of the site control document.",null,null,null,null,null,null,null,null,null,null,null,null,null,null,null,null,null,null,null,"Uploaded to HCD?"]
["File Name:",null,null,"PDL Appraisal",null,null,null,null,null,null,null,"If available, provide a current appraisal of the site(s).",null,null,null,null,null,null,null,null,null,null,null,null,null,null,null,null,null,null,null,"Uploaded to HCD?"]
["File Name:",null,null,"PDL Site Map",null,null,null,null,null,null,null,"Provide a site map of proposed site.",null,null,null,null,null,null,null,null,null,null,null,null,null,null,null,null,null,null,null,"Uploaded to HCD?"]
["Status of all discretionary local land use approvals: Provide a listing and status of all discretionary local land use approvals, excluding design review, required to complete the Project that have been granted, submitted or to be applied for to the appropriate local agencies, or consistent with local planning documents. This information must match the information provided on the Verification of the Status of Environmental Review and Land Use Entitlements worksheet.\n\n"]
["Agency / Issuer",null,null,null,null,null,null,null,null,null,null,null,"Land Use Approval Date ",null,null,null,"Approval Type",null,null,null,null,null,null,null,null,"Type and Comments"]
[null,null,null,null,null,null,null,null,null,null,null,null,null,null,null,null,null,null,null,null,null,null,null,null,null,"Site Plan Review"]
[null,null,null,null,null,null,null,null,null,null,null,null,null,null,null,null,null,null,null,null,null,null,null,null,null,"Conditional Use Permits"]
[null,null,null,null,null,null,null,null,null,null,null,null,null,null,null,null,null,null,null,null,null,null,null,null,null,"Zoning Approval"]
[]
[]
[]
["On-site and off-site improvements: if on-site or off-site improvements are needed or exist, provide details below including expected completion dates."]
[]
["Utilities available to the site?",null,null,null,null,null,null,"Water:",null,null,null,null,"Gas:",null,null,null,null,"Sewer:",null,null,null,null,"Electric:",null,null,null,null,"Other:",null,"(describe utility)"]
["Soils/engineering/geotechnical: has a site report been prepared?"]
["File Name:",null,null,"PDL Soils-Engineering-Geo",null,null,null,null,null,null,null,"Attach the Soils, Engineering, or Geotechnical report.",null,null,null,null,null,null,null,null,null,null,null,null,null,null,null,null,null,null,null,"Uploaded to HCD?"]
["Environmental: Is the Project free from severe adverse environmental conditions that are economically infeasible to remove and cannot be mitigated? "]
["Attach all available Phase I and Phase II Environmental Site Assessments (ESA). Include any follow-up analysis, (e.g., asbestos or lead-based paint analysis), or information on mitigation completed. It is NOT necessary to include a copy of the Database Records Search section of the ESA. If no Phase I or Phase II has been done for new construction projects, HCD highly recommends submission of a Phase I and Phase II, if recommended by the Phase I, and any follow-up reports with your Application so that environmental remediation costs can be properly assessed and budgeted for. Evidence of completion of all necessary environmental remediation will be required prior to award of funds."]
["File Name",null,null,"Env Report 1",null,null,null,null,null,null,null,null,null,null,null,null,null,null,null,null,null,null,null,null,null,null,null,null,null,null,null,"Uploaded to HCD?"]
["File Name",null,null,"Env Report 2",null,null,null,null,null,null,null,null,null,null,null,null,null,null,null,null,null,null,null,null,null,null,null,null,null,null,null,"Uploaded to HCD?"]
["File Name",null,null,"Env Report 3",null,null,null,null,null,null,null,null,null,null,null,null,null,null,null,null,null,null,null,null,null,null,null,null,null,null,null,"Uploaded to HCD?"]
["File Name",null,null,"Env Report 4",null,null,null,null,null,null,null,null,null,null,null,null,null,null,null,null,null,null,null,null,null,null,null,null,null,null,null,"Uploaded to HCD?"]
["File Name",null,null,"Env Report 5",null,null,null,null,null,null,null,null,null,null,null,null,null,null,null,null,null,null,null,null,null,null,null,null,null,null,null,"Uploaded to HCD?"]
["Proposed unit permanent financing:"]
["Unit breakdown and descriptions of units to be available to CalHome eligible buyers:"]
["Estimated per unit construction costs",null,null,null,null,"Number of Units",null,"Square Footage (Living Space)",null,null,null,"Number of Bedrooms",null,null,"Number of Bathrooms",null,null,"Total Amount of Permanent Liens",null,null,null,"Est. Sales Price (less than appraised value)",null,null,null,"Houshehold Income Level",null,null,null,null,"Provide the data source used to set sales prices:"]
[]
[]
[]
[]
[]
["Predevelopment Financing"]
["Committed",null,null,"Lien Position",null,"Predevelopment Source of Financing",null,null,null,null,null,null,null,null,null,null,"Amount",null,null,"Interest Rate",null,"Repayment Term (Months)",null,null,null,null,null,"Required Debt Service"]
[null,null,null,null,null,"CalHome Disaster Funds"]
[]
[]
[]
[]
[]
["Totals",null,null,null,null,null,null,null,null,null,null,null,null,null,null,null,{"$f":"SUM(Q87:AB92)","v":0},null,null,null,null,null,null,null,null,null,null,{"$f":"SUM(AB87:AD92)","v":0}]
["§7747 Predevelopment Sources/Uses",null,null,null,null,null,null,null,null,null,{"$f":"F87","v":"CalHome Disaster Funds"},null,null,null,{"$f":"IF(F88=\"\",\"\",F88)","v":""},null,null,null,{"$f":"IF(F89=\"\",\"\",F89)","v":""},null,null,null,{"$f":"IF(F90=\"\",\"\",F90)","v":""},null,null,null,{"$f":"IF(F91=\"\",\"\",F91)","v":""},null,null,null,{"$f":"IF(F92=\"\",\"\",F92)","v":""},null,null,null,"Total"]
["(a) Land acquisition",null,null,null,null,null,null,null,null,null,null,null,null,null,null,null,null,null,null,null,null,null,null,null,null,null,null,null,null,null,null,null,null,null,{"$f":"SUM(K95:AH95)","v":0}]
["(b) Building permits",null,null,null,null,null,null,null,null,null,null,null,null,null,null,null,null,null,null,null,null,null,null,null,null,null,null,null,null,null,null,null,null,null,{"$f":"SUM(K96:AH96)","v":0}]
["(b) State and local fees",null,null,null,null,null,null,null,null,null,null,null,null,null,null,null,null,null,null,null,null,null,null,null,null,null,null,null,null,null,null,null,null,null,0]
["(c) Architectural",null,null,null,null,null,null,null,null,null,null,null,null,null,null,null,null,null,null,null,null,null,null,null,null,null,null,null,null,null,null,null,null,null,0]
["(c) Engineering",null,null,null,null,null,null,null,null,null,null,null,null,null,null,null,null,null,null,null,null,null,null,null,null,null,null,null,null,null,null,null,null,null,0]
["(d) On-site improvements",null,null,null,null,null,null,null,null,null,null,null,null,null,null,null,null,null,null,null,null,null,null,null,null,null,null,null,null,null,null,null,null,null,0]
["(e) Insurance",null,null,null,null,null,null,null,null,null,null,null,null,null,null,null,null,null,null,null,null,null,null,null,null,null,null,null,null,null,null,null,null,null,0]
["(e) Financing fees and interest",null,null,null,null,null,null,null,null,null,null,null,null,null,null,null,null,null,null,null,null,null,null,null,null,null,null,null,null,null,null,null,null,null,0]
["(e) Taxes",null,null,null,null,null,null,null,null,null,null,null,null,null,null,null,null,null,null,null,null,null,null,null,null,null,null,null,null,null,null,null,null,null,0]
["(f) Escrow, title insurance, recording",null,null,null,null,null,null,null,null,null,null,null,null,null,null,null,null,null,null,null,null,null,null,null,null,null,null,null,null,null,null,null,null,null,0]
["(g) Contractor bond premiums",null,null,null,null,null,null,null,null,null,null,null,null,null,null,null,null,null,null,null,null,null,null,null,null,null,null,null,null,null,null,null,null,null,0]
["(h) Environmental reports, surveys, investigations",null,null,null,null,null,null,null,null,null,null,null,null,null,null,null,null,null,null,null,null,null,null,null,null,null,null,null,null,null,null,null,null,null,{"$f":"SUM(K106:AH106)","v":0}]
["(i) Bridge loan payoff",null,null,null,null,null,null,null,null,null,null,null,null,null,null,null,null,null,null,null,null,null,null,null,null,null,null,null,null,null,null,null,null,null,{"$f":"SUM(K107:AH107)","v":0}]
["(j) Legal fees related to CalHome funding",null,null,null,null,null,null,null,null,null,null,null,null,null,null,null,null,null,null,null,null,null,null,null,null,null,null,null,null,null,null,null,null,null,{"$f":"SUM(K108:AH108)","v":0}]
["Other: (specify)",null,null,null,null,null,null,null,null,null,null,null,null,null,null,null,null,null,null,null,null,null,null,null,null,null,null,null,null,null,null,null,null,null,{"$f":"SUM(K109:AH109)","v":0}]
["Other: (specify)",null,null,null,null,null,null,null,null,null,null,null,null,null,null,null,null,null,null,null,null,null,null,null,null,null,null,null,null,null,null,null,null,null,0]
["Other: (specify)",null,null,null,null,null,null,null,null,null,null,null,null,null,null,null,null,null,null,null,null,null,null,null,null,null,null,null,null,null,null,null,null,null,{"$f":"SUM(K111:AH111)","v":0}]
["Total",null,null,null,null,null,null,null,null,null,{"$f":"SUM(K95:N111)","v":0},null,null,null,{"$f":"SUM(O95:R111)","v":0},null,null,null,{"$f":"SUM(S95:V111)","v":0},null,null,null,{"$f":"SUM(W95:Z111)","v":0},null,null,null,{"$f":"SUM(AA95:AD111)","v":0},null,null,null,{"$f":"SUM(AE95:AH111)","v":0},null,null,null,{"$f":"SUM(AI95:AL111)","v":0}]
["Construction Financing"]
["Committed",null,null,"Lien Position",null,"Construction Source of Financing",null,null,null,null,null,null,null,null,null,null,"Amount",null,null,"Interest Rate",null,"Repayment Term (Months)",null,null,null,null,null,"Required Debt Service"]
[null,null,null,null,null,"CalHome Disaster Funds"]
[]
[]
[]
[]
[]
["Totals",null,null,null,null,null,null,null,null,null,null,null,null,null,null,null,{"$f":"SUM(Q115:AB120)","v":0},null,null,null,null,null,null,null,null,null,null,{"$f":"SUM(AB115:AD120)","v":0}]
["§7747 Construction Sources/Uses",null,null,null,null,null,null,null,null,null,{"$f":"F115","v":"CalHome Disaster Funds"},null,null,null,{"$f":"IF(F116=\"\",\"\",F116)","v":""},null,null,null,{"$f":"IF(F117=\"\",\"\",F117)","v":""},null,null,null,{"$f":"IF(F118=\"\",\"\",F118)","v":""},null,null,null,{"$f":"IF(F119=\"\",\"\",F119)","v":""},null,null,null,{"$f":"IF(F120=\"\",\"\",F120)","v":""},null,null,null,"Total"]
["(a) Land acquisition",null,null,null,null,null,null,null,null,null,null,null,null,null,null,null,null,null,null,null,null,null,null,null,null,null,null,null,null,null,null,null,null,null,{"$f":"SUM(K123:AH123)","v":0}]
["(b) Building permits",null,null,null,null,null,null,null,null,null,null,null,null,null,null,null,null,null,null,null,null,null,null,null,null,null,null,null,null,null,null,null,null,null,{"$f":"SUM(K124:AH124)","v":0}]
["(b) State and local fees",null,null,null,null,null,null,null,null,null,null,null,null,null,null,null,null,null,null,null,null,null,null,null,null,null,null,null,null,null,null,null,null,null,0]
["(c) Architectural",null,null,null,null,null,null,null,null,null,null,null,null,null,null,null,null,null,null,null,null,null,null,null,null,null,null,null,null,null,null,null,null,null,0]
["(c) Engineering",null,null,null,null,null,null,null,null,null,null,null,null,null,null,null,null,null,null,null,null,null,null,null,null,null,null,null,null,null,null,null,null,null,0]
["(d) On-site improvements",null,null,null,null,null,null,null,null,null,null,null,null,null,null,null,null,null,null,null,null,null,null,null,null,null,null,null,null,null,null,null,null,null,0]
["(e) Insurance",null,null,null,null,null,null,null,null,null,null,null,null,null,null,null,null,null,null,null,null,null,null,null,null,null,null,null,null,null,null,null,null,null,0]
["(e) Financing fees and interest",null,null,null,null,null,null,null,null,null,null,null,null,null,null,null,null,null,null,null,null,null,null,null,null,null,null,null,null,null,null,null,null,null,0]
["(e) Taxes",null,null,null,null,null,null,null,null,null,null,null,null,null,null,null,null,null,null,null,null,null,null,null,null,null,null,null,null,null,null,null,null,null,0]
["(f) Escrow, title insurance, recording",null,null,null,null,null,null,null,null,null,null,null,null,null,null,null,null,null,null,null,null,null,null,null,null,null,null,null,null,null,null,null,null,null,0]
["(g) Contractor bond premiums",null,null,null,null,null,null,null,null,null,null,null,null,null,null,null,null,null,null,null,null,null,null,null,null,null,null,null,null,null,null,null,null,null,0]
["(h) Environmental reports, surveys, investigations",null,null,null,null,null,null,null,null,null,null,null,null,null,null,null,null,null,null,null,null,null,null,null,null,null,null,null,null,null,null,null,null,null,{"$f":"SUM(K134:AH134)","v":0}]
["(i) Bridge loan payoff",null,null,null,null,null,null,null,null,null,null,null,null,null,null,null,null,null,null,null,null,null,null,null,null,null,null,null,null,null,null,null,null,null,{"$f":"SUM(K135:AH135)","v":0}]
["(j) Legal fees related to CalHome funding",null,null,null,null,null,null,null,null,null,null,null,null,null,null,null,null,null,null,null,null,null,null,null,null,null,null,null,null,null,null,null,null,null,{"$f":"SUM(K136:AH136)","v":0}]
["Other: (specify)",null,null,null,null,null,null,null,null,null,null,null,null,null,null,null,null,null,null,null,null,null,null,null,null,null,null,null,null,null,null,null,null,null,{"$f":"SUM(K137:AH137)","v":0}]
["Other: (specify)",null,null,null,null,null,null,null,null,null,null,null,null,null,null,null,null,null,null,null,null,null,null,null,null,null,null,null,null,null,null,null,null,null,0]
["Other: (specify)",null,null,null,null,null,null,null,null,null,null,null,null,null,null,null,null,null,null,null,null,null,null,null,null,null,null,null,null,null,null,null,null,null,{"$f":"SUM(K139:AH139)","v":0}]
["Total",null,null,null,null,null,null,null,null,null,{"$f":"SUM(K123:N139)","v":0},null,null,null,{"$f":"SUM(O123:R139)","v":0},null,null,null,{"$f":"SUM(S123:V139)","v":0},null,null,null,{"$f":"SUM(W123:Z139)","v":0},null,null,null,{"$f":"SUM(AA123:AD139)","v":0},null,null,null,{"$f":"SUM(AE123:AH139)","v":0},null,null,null,{"$f":"SUM(AI123:AL139)","v":0}]
["Permanent Financing"]
["Committed",null,null,"Lien Position",null,"Permanent Source of Financing",null,null,null,null,null,null,null,null,null,null,"Amount",null,null,"Interest Rate",null,"Interest Rate Type",null,null,null,null,"Repayment Type",null,null,null,null,null,"Repayment Due in (yrs)",null,null,"Required Debt Service",null,null,"Fully Amortized"]
[null,null,null,null,null,"CalHome Disaster Funds",null,null,null,null,null,null,null,null,null,null,null,null,null,null,null,null,null,null,null,null,null,null,null,null,null,null,null,null,null,null,null,null,"Amortized with Call"]
[null,null,null,null,null,null,null,null,null,null,null,null,null,null,null,null,null,null,null,null,null,null,null,null,null,null,null,null,null,null,null,null,null,null,null,null,null,null,"Residual Receipts"]
[null,null,null,null,null,null,null,null,null,null,null,null,null,null,null,null,null,null,null,null,null,null,null,null,null,null,null,null,null,null,null,null,null,null,null,null,null,null,"Deferred"]
[null,null,null,null,null,null,null,null,null,null,null,null,null,null,null,null,null,null,null,null,null,null,null,null,null,null,null,null,null,null,null,null,null,null,null,null,null,null,"Interest Only"]
[null,null,null,null,null,null,null,null,null,null,null,null,null,null,null,null,null,null,null,null,null,null,null,null,null,null,null,null,null,null,null,null,null,null,null,null,null,null,"Fixed to Float"]
[null,null,null,null,null,null,null,null,null,null,null,null,null,null,null,null,null,null,null,null,null,null,null,null,null,null,null,null,null,null,null,null,null,null,null,null,null,null,"Partial Interest Only"]
["Totals",null,null,null,null,null,null,null,null,null,null,null,null,null,null,null,{"$f":"SUM(Q143:AB148)","v":0},null,null,null,null,null,null,null,null,null,null,null,null,null,null,null,null,null,null,{"$f":"SUM(AJ143:AL148)","v":0}]
["§7747 Permanent Sources/Uses",null,null,null,null,null,null,null,null,null,{"$f":"F143","v":"CalHome Disaster Funds"},null,null,null,{"$f":"IF(F144=\"\",\"\",F144)","v":""},null,null,null,{"$f":"IF(F145=\"\",\"\",F145)","v":""},null,null,null,{"$f":"IF(F146=\"\",\"\",F146)","v":""},null,null,null,{"$f":"IF(F147=\"\",\"\",F147)","v":""},null,null,null,{"$f":"IF(F148=\"\",\"\",F148)","v":""},null,null,null,"Total"]
["(a) Land acquisition",null,null,null,null,null,null,null,null,null,null,null,null,null,null,null,null,null,null,null,null,null,null,null,null,null,null,null,null,null,null,null,null,null,{"$f":"SUM(K151:AH151)","v":0}]
["(b) Building permits",null,null,null,null,null,null,null,null,null,null,null,null,null,null,null,null,null,null,null,null,null,null,null,null,null,null,null,null,null,null,null,null,null,{"$f":"SUM(K152:AH152)","v":0}]
["(b) State and local fees",null,null,null,null,null,null,null,null,null,null,null,null,null,null,null,null,null,null,null,null,null,null,null,null,null,null,null,null,null,null,null,null,null,0]
["(c) Architectural",null,null,null,null,null,null,null,null,null,null,null,null,null,null,null,null,null,null,null,null,null,null,null,null,null,null,null,null,null,null,null,null,null,0]
["(c) Engineering",null,null,null,null,null,null,null,null,null,null,null,null,null,null,null,null,null,null,null,null,null,null,null,null,null,null,null,null,null,null,null,null,null,0]
["(d) On-site improvements",null,null,null,null,null,null,null,null,null,null,null,null,null,null,null,null,null,null,null,null,null,null,null,null,null,null,null,null,null,null,null,null,null,0]
["(e) Insurance",null,null,null,null,null,null,null,null,null,null,null,null,null,null,null,null,null,null,null,null,null,null,null,null,null,null,null,null,null,null,null,null,null,0]
["(e) Financing fees and interest",null,null,null,null,null,null,null,null,null,null,null,null,null,null,null,null,null,null,null,null,null,null,null,null,null,null,null,null,null,null,null,null,null,0]
["(e) Taxes",null,null,null,null,null,null,null,null,null,null,null,null,null,null,null,null,null,null,null,null,null,null,null,null,null,null,null,null,null,null,null,null,null,0]
["(f) Escrow, title insurance, recording",null,null,null,null,null,null,null,null,null,null,null,null,null,null,null,null,null,null,null,null,null,null,null,null,null,null,null,null,null,null,null,null,null,0]
["(g) Contractor bond premiums",null,null,null,null,null,null,null,null,null,null,null,null,null,null,null,null,null,null,null,null,null,null,null,null,null,null,null,null,null,null,null,null,null,0]
["(h) Environmental reports, surveys, investigations",null,null,null,null,null,null,null,null,null,null,null,null,null,null,null,null,null,null,null,null,null,null,null,null,null,null,null,null,null,null,null,null,null,{"$f":"SUM(K162:AH162)","v":0}]
["(i) Bridge loan payoff",null,null,null,null,null,null,null,null,null,null,null,null,null,null,null,null,null,null,null,null,null,null,null,null,null,null,null,null,null,null,null,null,null,{"$f":"SUM(K163:AH163)","v":0}]
["(j) Legal fees related to CalHome funding",null,null,null,null,null,null,null,null,null,null,null,null,null,null,null,null,null,null,null,null,null,null,null,null,null,null,null,null,null,null,null,null,null,{"$f":"SUM(K164:AH164)","v":0}]
["Other: (specify)",null,null,null,null,null,null,null,null,null,null,null,null,null,null,null,null,null,null,null,null,null,null,null,null,null,null,null,null,null,null,null,null,null,{"$f":"SUM(K165:AH165)","v":0}]
["Other: (specify)",null,null,null,null,null,null,null,null,null,null,null,null,null,null,null,null,null,null,null,null,null,null,null,null,null,null,null,null,null,null,null,null,null,0]
["Other: (specify)",null,null,null,null,null,null,null,null,null,null,null,null,null,null,null,null,null,null,null,null,null,null,null,null,null,null,null,null,null,null,null,null,null,{"$f":"SUM(K167:AH167)","v":0}]
["Total",null,null,null,null,null,null,null,null,null,{"$f":"SUM(K151:N167)","v":0},null,null,null,{"$f":"SUM(O151:R167)","v":0},null,null,null,{"$f":"SUM(S151:V167)","v":0},null,null,null,{"$f":"SUM(W151:Z167)","v":0},null,null,null,{"$f":"SUM(AA151:AD167)","v":0},null,null,null,{"$f":"SUM(AE151:AH167)","v":0},null,null,null,{"$f":"SUM(AI151:AL167)","v":0}]
["NOFA Appendix A - Applicant certifies it will meet near and long-term resiliency standards in rebuilding homes destroyed by the identified disasters?"]
["File Name:",null,null,"PDL Resiliency Commitment",null,null,null,null,null,null,null,"Provide a narrative of your commitment to meet near and long term resiliency standards in rebuilding homes destroyed by a qualified FEMA disaster declaration.",null,null,null,null,null,null,null,null,null,null,null,null,null,null,null,null,null,null,null,"Uploaded to HCD?"]
["Selection Criteria §7755"]
["Total Self Score (minimum points required = 55; maximum points = 100)",null,null,null,null,null,null,null,null,null,null,null,null,null,null,null,null,null,null,null,null,null,null,null,null,null,null,null,null,null,null,null,null,null,null,{"$f":"AJ174+AJ175+AJ176+AJ177+AJ183+AJ198","v":0}]
["Rating Factors (red shading indicates minimum score has not been achieved)",null,null,null,null,null,null,null,null,null,null,null,null,null,null,null,null,null,null,null,null,null,null,null,null,null,null,null,null,null,null,null,null,null,null,"Points"]
["§7755(b)(1) Capability - 40 Points Max\nCapability to operate the proposed PDL:\nNumber of Homeownership Development Projects within the last four years:\n   1 – 2 = 20 points \n   3 – 4 = 30 points \n   5 or more = 40 points",null,null,null,null,null,null,null,null,null,null,null,null,null,null,null,null,null,null,null,null,null,null,null,null,null,null,null,null,null,null,null,null,null,null,{"$f":"IF(AI24>=2,AM174,0)","v":0},null,null,{"$f":"IF(AI24>=5,40,IF(AI24>=3,30,IF(AI24>=1,20,0)))","v":0}]
["§7755(b)(2) Community Need - 15 Points\nCommunity need in a geographic area of the proposed Homeownership Development Project (PDL) will be based on the following factors:\n• Housing affordability in the geographic area: The ratio of the current median sales price of a single-family home to the AMI for a 4-person Household, in the county in which the CalHome program or project is located. The current median sales price is the most recent available from the California Association of Realtors as of the NOFA date, and the AMI is updated on an annual basis by HCD;\n• Percent of renter Households that are Low Income: The percent of Households in renter-occupied housing with incomes below 80 percent of AMI, as reported in the most recent HUD Comprehensive Housing Affordability Strategy U.S. Census Bureau American Community Survey (HUD CHAS) data;\n• Percent of renter Households occupying overcrowded housing: The percent of renter-occupied housing units with more than 1.5 occupants\nper room, as reported in the most recent HUD CHAS data; and\n• Rental vacancy rate: The percent of rental housing units that are currently vacant, as reported in the most recent HUD CHAS data.",null,null,null,null,null,null,null,null,null,null,null,null,null,null,null,null,null,null,null,null,null,null,null,null,null,null,null,null,null,null,null,null,null,null,{"$f":"IFERROR(VLOOKUP('Applicant and Activity'!$G$28,CalHome2021scoring!$A$3:$AN$60,10,FALSE),0)","v":0}]
["§7755(b)(3) Feasibility - 25 Points\nFeasibility in a geographic area for the proposed Homeownership Development Projects (PDL) will be based on the following factor:\n• Affordability of Homeownership relative to renting: The ratio of median Monthly Housing Costs for owner-occupied housing units with a Mortgage, to median Monthly Housing Costs for renter-occupied housing units, as reported in the most recent ACS data.",null,null,null,null,null,null,null,null,null,null,null,null,null,null,null,null,null,null,null,null,null,null,null,null,null,null,null,null,null,null,null,null,null,null,{"$f":"IFERROR(VLOOKUP('Applicant and Activity'!$G$28,CalHome2021scoring!$A$3:$AN$60,38,FALSE),0)","v":0}]
["Community Revitalization §7755(b)(4), §7716(l) - 10 Points\nContributes to Community Revitalization (to qualify - all Assisted units are, or will be, located within a federal Promise Zone or a Choice Neighborhood Initiative Area or an Opportunity Zone).",null,null,null,null,null,null,null,null,null,null,null,null,null,null,null,null,null,null,null,null,null,null,null,null,null,null,null,null,null,null,null,null,null,null,{"$f":"IF(AM177=\"Yes\",10,0)","v":0},null,null,{"$f":"IF(AND(OR(AK178=\"Yes\",AK179=\"Yes\",AK180=\"Yes\"),AK181=\"Yes\"),\"Yes\",\"No\")","v":"No"}]
["Federal Promise Zone (https://www.hudexchange.info/programs/promise-zones/)\nPromise Zones in California: Sacramento Promise Zone, Los Angeles Promise Zone, and San Diego Promise Zone, or"]
["Choice Neighborhood Initiative Area (https://www.hud.gov/cn, see grantee report). \nChoice Neighborhood Initiative Areas in California: Sacramento, San Francisco, and Los Angeles, or"]
["Opportunity Zone (https://esrimedia.maps.arcgis.com/apps/View)"]
["Applicant certifies ALL CalHome PDL Assisted units will be in the Promise Zone, Opportunity Zone, or Choice Neighborhood?"]
["File Name:",null,null,"PDL Community Revitalization",null,null,null,null,null,null,null,"Provide a print screen file showing Promise Zone, Neighbor Initiative Area or Op. Zone",null,null,null,null,null,null,null,null,null,null,null,null,null,null,null,null,null,null,null,"Uploaded to HCD?"]
["§7755(b)(5) Volunteer Labor, Self-Help Labor or Youth Construction Skills Training Program - 10 Points\nApplications applying for Homeownership Development Projects (PDL), Self-Help Technical Assistance Homeownership projects (SHTA), or a Mortgage Assistance Local Program (MA) for new construction housing or acquisition with substantial rehabilitation when the Recipient is acquiring and substantially rehabilitating properties for sale to First-Time Homebuyers, will receive up to 10 points to the extent that they are utilizing:\n(A) Volunteer or Self-Help Construction labor, where a minimum of 500 hours of on-site construction labor per Assisted Unit is provided; or\n(B) Labor provided by youth participating in a Construction Skills Training Program, where a minimum of 500 hours of on-site construction labor per Assisted Unit is provided. The 500 hours of construction training labor must be provided by the 16- to 24-year-old program participants; or\n(C) Minimum 15 percent of units include an ADU or a JADU. \n(D) Homeownership development projects are located in a High Resource or Highest Resource area, as identified on the TCAC/HCD Opportunity Area Map. ",null,null,null,null,null,null,null,null,null,null,null,null,null,null,null,null,null,null,null,null,null,null,null,null,null,null,null,null,null,null,null,null,null,null,{"$f":"IF(SUM(AI185:AL186)>=500,10,IF(AI187>=500,10,IF(OR(AK193=\"Yes\",AK195=\"Yes\"),10,0)))","v":0}]
["Enter hours of Volunteer Labor, Self-Help Labor, Youth Construction Skills Training Program",null,null,null,null,null,null,null,null,null,null,null,null,null,null,null,null,null,null,null,null,null,null,null,null,null,null,"Total Hours",null,null,"# Assisted Units",null,null,null,"Hours per Unit"]
["(A) Volunteer Labor",null,null,null,null,null,null,null,null,null,null,null,null,null,null,null,null,null,null,null,null,null,null,null,null,null,null,null,null,null,null,null,null,null,{"$f":"IFERROR(AB185/AE185,0)","v":0}]
["(A) Self-Help Construction Labor",null,null,null,null,null,null,null,null,null,null,null,null,null,null,null,null,null,null,null,null,null,null,null,null,null,null,null,null,null,null,null,null,null,{"$f":"IFERROR(AB186/AE186,0)","v":0}]
["(B) Labor provided by Youth Participating in a Construction Skills Training Program (Ages 16-24 only)",null,null,null,null,null,null,null,null,null,null,null,null,null,null,null,null,null,null,null,null,null,null,null,null,null,null,null,null,null,null,null,null,null,{"$f":"IFERROR(AB187/AE187,0)","v":0}]
["File Name:",null,null,"PDL Labor Program Criteria",null,null,null,null,null,null,null,"As an attachment, describe the criteria for participation in your contributed labor program.",null,null,null,null,null,null,null,null,null,null,null,null,null,null,null,null,null,null,null,"Uploaded to HCD?"]
["File Name:",null,null,"PDL Labor Program Agreement",null,null,null,null,null,null,null,"Attach a copy of the agreement form used for the contributed labor program.",null,null,null,null,null,null,null,null,null,null,null,null,null,null,null,null,null,null,null,"Uploaded to HCD?"]
["File Name:",null,null,"PDL Labor Program Activities",null,null,null,null,null,null,null,"As an attachment, provide a description of activities performed by contributed labor participants.",null,null,null,null,null,null,null,null,null,null,null,null,null,null,null,null,null,null,null,"Uploaded to HCD?"]
["File Name:",null,null,"PDL Labor Program Contracted",null,null,null,null,null,null,null,"As an attachment, provide a description of activities normally contracted out.",null,null,null,null,null,null,null,null,null,null,null,null,null,null,null,null,null,null,null,"Uploaded to HCD?"]
["File Name:",null,null,"PDL Contributed Labor Program",null,null,null,null,null,null,null,"Provide evidence of previous administration of the type of contributed labor program proposed in this application. This includes documentation of completed projects; a copy of the board resolution authorizing the program, supported by completed projects; or copies of contracts with contributed labor participants. ",null,null,null,null,null,null,null,null,null,null,null,null,null,null,null,null,null,null,null,"Uploaded to HCD?"]
["(C) At least 15% of units include an ADU or JADU"]
["File Name:",null,null,"PDL 15 % ADU",null,null,null,null,null,null,null,"Documentation showing at least 15% of total units include an ADU or JADU.",null,null,null,null,null,null,null,null,null,null,null,null,null,null,null,null,null,null,null,"Uploaded to HCD?"]
["(D) Is Project located in a High or Highest Resource Area per TCAC/HCD Opportunity Area Map available at the time of application §7307(b)(2), 7320(b)(2)(A), §7320(b)(4)(C), & §7320(b)(6)? https://www.treasurer.ca.gov/ctcac/opportunity.asp"]
["If \"Yes\", enter the entire TCAC/HCD Opportunity Area Map Tract ID #:",null,null,null,null,null,null,null,null,null,null,null,null,null,null,null,null,null,null,null,null,"Opportunity Area Map Category: "]
["File Name:",null,null,"Opportunity Area ",null,null,null,null,null,null,null,"Documentation of TCAC/HCD Opportunity Area status at time of application.",null,null,null,null,null,null,null,null,null,null,null,null,null,null,null,null,null,null,null,"Uploaded to HCD?"]
["§7755(c) Performance Penalty - A deduction to the total score will be applied for failure to meet CalHome Program Performance Goals pursuant to §7759.",null,null,null,null,null,null,null,null,null,null,null,null,null,null,null,null,null,null,null,null,null,null,null,null,null,null,null,null,null,null,null,null,null,null,0]
["Milestones"]
["Estimated date of project completion:"]
["1. Permanent financing commitments will be obtained by:"]
["2. Site option will expire on:"]
["3. Title will transfer by:"]
["4. Site development will begin by:"]
["5. Unit construction will be completed by:"]
["6. Construction will be completed by:"]
["7. Full occupancy will be accomplished by:"]

{"sheet":"PDL Env & Land Use - Article 9","index":10,"n_rows":46,"n_cols":37,"rows_kept":46,"cut":false,"hidden":true,"merged":[[0,36,0,37],[0,0,0,35],[1,0,1,37],[2,0,2,37],[3,0,3,2],[3,3,3,21],[3,22,3,25],[3,26,3,37],[4,0,4,1],[4,2,4,22],[4,24,4,29],[4,30,4,31],[4,34,4,37],[5,0,5,37],[6,0,6,2],[6,3,6,21],[6,22,6,26],[6,27,6,37],[12,0,12,37],[10,0,10,37],[11,0,11,35],[11,36,11,37],[13,0,13,9],[8,0,8,2],[7,0,7,1],[7,2,7,22],[7,24,7,29],[7,30,7,31],[7,34,7,37],[8,3,8,9],[8,10,8,11],[8,12,8,18],[8,19,8,21],[8,22,8,28],[8,29,8,30],[8,31,8,37],[9,0,9,37],[13,10,13,13],[13,14,13,17],[13,18,13,22],[13,23,13,27],[13,28,13,32],[13,33,13,37],[18,0,18,37],[19,0,19,23],[19,24,19,27],[19,28,19,32],[20,0,20,5],[20,6,20,18],[20,19,20,24],[20,25,20,37],[21,0,21,5],[21,6,21,18],[21,19,21,24],[21,25,21,37],[16,0,16,37],[17,0,17,37],[15,0,15,9],[15,10,15,13],[15,14,15,17],[15,18,15,22],[15,23,15,27],[15,28,15,32],[15,33,15,37],[22,0,22,4],[22,5,22,20],[22,22,22,29],[22,30,22,31],[28,0,28,12],[28,13,28,17],[28,18,28,25],[28,26,28,34],[28,35,28,37],[26,0,26,37],[27,0,27,12],[27,13,27,17],[27,18,27,25],[27,26,27,34],[27,35,27,37],[25,0,25,2],[25,3,25,10],[25,11,25,30],[25,31,25,35],[25,36,25,37],[29,0,29,12],[29,13,29,17],[29,18,29,25],[29,26,29,34],[29,35,29,37],[30,0,30,12],[30,13,30,17],[30,18,30,25],[30,26,30,34],[30,35,30,37],[31,0,31,12],[31,13,31,17],[31,18,31,25],[31,26,31,34],[31,35,31,37],[32,0,32,12],[32,13,32,17],[32,18,32,25],[32,26,32,34],[32,35,32,37],[33,0,33,12],[33,13,33,17],[33,18,33,25],[33,26,33,34],[33,35,33,37],[34,0,34,12],[34,13,34,17],[34,18,34,25],[34,26,34,34],[34,35,34,37],[35,0,35,12],[35,13,35,17],[35,18,35,25],[35,26,35,34],[35,35,35,37],[36,0,36,12],[36,13,36,17],[36,18,36,25],[36,26,36,34],[36,35,36,37],[37,0,37,12],[37,13,37,17],[37,18,37,25],[37,26,37,34],[37,35,37,37],[44,30,44,32],[44,34,44,37],[38,0,38,37],[39,0,39,37],[40,0,40,37],[41,0,41,23],[41,24,41,27],[41,28,41,32],[42,0,42,5],[42,6,42,18],[42,19,42,24],[42,25,42,37],[43,6,43,18],[43,19,43,24],[43,25,43,37],[44,0,44,4],[44,5,44,20],[44,22,44,27],[44,28,44,29],[14,0,14,9],[14,10,14,13],[14,14,14,17],[14,18,14,22],[14,23,14,27],[14,28,14,32],[14,33,14,37],[45,0,45,2],[45,3,45,10],[45,11,45,30],[45,31,45,35],[45,36,45,37],[22,34,22,37],[23,0,23,2],[23,3,23,10],[23,11,23,30],[23,31,23,35],[23,36,23,37],[24,0,24,2],[24,3,24,10],[24,11,24,30],[24,31,24,35],[24,36,24,37],[43,0,43,5]]}
["Verification of Environmental Review & Land Use Entitlements",null,null,null,null,null,null,null,null,null,null,null,null,null,null,null,null,null,null,null,null,null,null,null,null,null,null,null,null,null,null,null,null,null,null,null,{"$f":"'CalHome Coverpage'!A5","v":"2021-08-06"}]
["TO THE APPLICANT: Submit this form to the Agency or Department of local government responsible for administration of the items listed. This form may be submitted to more than one Agency or Department, if necessary. Applicants need only submit one completed form per locality. If the NEPA Responsible Entity is not a local government, submit a copy of this form to the appropriate NEPA Responsible Entity. If an item is not required, include the reason why in the box provided."]
["Applicant"]
["Entity Name",null,null,null,null,null,null,null,null,null,null,null,null,null,null,null,null,null,null,null,null,null,"Applicant Type"]
["Address",null,null,null,null,null,null,null,null,null,null,null,null,null,null,null,null,null,null,null,null,null,null,"City",null,null,null,null,null,null,"State",null,null,"Zip"]
["Homeownership Development Project"]
["Project Name",null,null,null,null,null,null,null,null,null,null,null,null,null,null,null,null,null,null,null,null,null,"Project County"]
["Address",null,null,null,null,null,null,null,null,null,null,null,null,null,null,null,null,null,null,null,null,null,null,"City",null,null,null,null,null,null,"State",null,null,"Zip"]
["Census Tract",null,null,null,null,null,null,null,null,null,"APN",null,null,null,null,null,null,null,null,"Census Tract",null,null,null,null,null,null,null,null,null,"APN"]
["Environmental Review"]
["To the Local Jurisdiction or NEPA Responsible Entity: The Applicant named above will submit an application to the State of California, Department of Housing and Community Development, requesting funding for the project named above under the CalHome Disaster Program. Projects will be evaluated based upon readiness. Please answer the following questions:"]
["Is this Homeownership Development Project approved \"by-right\"?"]
["This form must be completed in its entirety regardless of the answer to the preceding question."]
["All Environmental Clearances NEPA and California Environmental Quality Act (CEQA) necessary to begin construction:",null,null,null,null,null,null,null,null,null,"Not Required for this Project",null,null,null,"Has a Negative Declaration been issued? ",null,null,null,"Final Date of Public Comment Period",null,null,null,null,"Date(s) EIR Certified / Notice of Determination filed",null,null,null,null,"Date Appeal Period Ends",null,null,null,null,"Have any appeals been filed?"]
["NEPA"]
["CEQA"]
["In the box below, explain why any items are not required and include documentation, if applicable:"]
[]
["Signature Block for Environmental Review"]
["I certify that the information on this form is true and correct to the best of my knowledge.",null,null,null,null,null,null,null,null,null,null,null,null,null,null,null,null,null,null,null,null,null,null,null,"Date: "]
["Printed name of party completing form:",null,null,null,null,null,null,null,null,null,null,null,null,null,null,null,null,null,null,"Signature of party completing form:"]
["Title of party completing form:",null,null,null,null,null,null,null,null,null,null,null,null,null,null,null,null,null,null,"Agency and/or Dept. name:"]
["Agency/Dept. Address",null,null,null,null,null,null,null,null,null,null,null,null,null,null,null,null,null,null,null,null,"City",null,null,null,null,null,null,null,null,"State",null,null,"Zip"]
["File Name:",null,null,"Auth to Use Grant Funds",null,null,null,null,null,null,null,"For National Environmental Policy Act (NEPA) only, provide a copy of the HUD 7015.16 \"Authority To Use Grant Funds\" or clarify current status of the issuance of HUD form.",null,null,null,null,null,null,null,null,null,null,null,null,null,null,null,null,null,null,null,"Uploaded to HCD?"]
["File Name:",null,null,"Environmental",null,null,null,null,null,null,null,"Provide a copy of all environmental clearances or Notice of Exemption.",null,null,null,null,null,null,null,null,null,null,null,null,null,null,null,null,null,null,null,"Uploaded to HCD?"]
["File Name:",null,null,"Environmental Verify",null,null,null,null,null,null,null,"Provide a PDF copy of this worksheet with the signature of the person(s) completing the Environmental Review.",null,null,null,null,null,null,null,null,null,null,null,null,null,null,null,null,null,null,null,"Uploaded to HCD?"]
["Land Use Entitlements  (indicate below the status of the following local approvals)"]
["All necessary and discretionary public land use approvals except building permits and other ministerial approvals are:",null,null,null,null,null,null,null,null,null,null,null,null,"Not Required for this Project",null,null,null,null,"Project is consistent with local planning documents & zoning ordinances",null,null,null,null,null,null,null,"An Application has been submitted, accepted and deemed complete for processing.",null,null,null,null,null,null,null,null,"Date Approved"]
["General Plan Amendment:"]
["Site Plan Review:"]
["Zoning Approval:"]
["Conditional Use Permits:"]
["Density Bonus:"]
["Other Variances: "]
["Other Variances: "]
["Other Variances: "]
["Other Variances: "]
["Other Variances: "]
["In the box below, explain why any items are not required and include documentation, if applicable:"]
[]
["Signature Block for Land Use Entitlements"]
["I certify that the information on this form is true and correct to the best of my knowledge.",null,null,null,null,null,null,null,null,null,null,null,null,null,null,null,null,null,null,null,null,null,null,null,"Date: "]
["Printed name of party completing form:",null,null,null,null,null,null,null,null,null,null,null,null,null,null,null,null,null,null,"Signature of party completing form:"]
["Title of party completing form:",null,null,null,null,null,null,null,null,null,null,null,null,null,null,null,null,null,null,"Agency and/or Dept. name:"]
["Agency/Dept. Address",null,null,null,null,null,null,null,null,null,null,null,null,null,null,null,null,null,null,null,null,"City",null,null,null,null,null,null,"State",null,null,null,null,"Zip"]
["File Name:",null,null,"Land Use Verify",null,null,null,null,null,null,null,"Provide a PDF copy of this sheet with thesignature of the person(s) completing the Land Use Entitlements section.",null,null,null,null,null,null,null,null,null,null,null,null,null,null,null,null,null,null,null,"Uploaded to HCD?"]

{"sheet":"Sources","index":11,"n_rows":19,"n_cols":18,"rows_kept":19,"cut":false,"hidden":true,"merged":[[8,0,8,5],[9,0,9,5],[10,0,10,5],[11,0,11,5],[7,0,7,5],[2,0,2,5],[3,0,3,5],[4,0,4,5],[5,0,5,5],[6,0,6,5],[12,0,12,5],[13,0,13,5],[17,0,17,5],[18,0,18,5],[19,0,19,5],[14,0,14,5],[15,0,15,5],[16,0,16,5]]}
["Jurisdiction","Housing Affordability","Median Owner Costs / Median Renter Costs Ratio","Area Home Sales/Proposed # of Loans","Renters <=80%AMI with Severe Cost Burden","Renters in Poverty","Renters <=30%AMI","Renters <=80%AMI","Renters Overcrowded","Rental Vacancy Rate","Renter-occupied units >30yrs old","Renter-occupied units built pre-1980","Owners in Poverty","Owners <=80%AMI","Owners Overcrowded","Owner-occupied units >30yrs old","Owner-occupied units built pre-1980","Homeless Population"]
[]
["Housing Affordability: The ratio of the program-specific single-family value limit to the state Area Median Income (AMI) for a 4-person household. Calculated using single-family value limits provided in the current program NOFA, and the 2019 Official State AMI limits available from HCD at https://www.hcd.ca.gov/grants-funding/income-limits/state-and-federal-income-limits.shtml. "]
["Median Owner Costs/Median Renter Costs Ratio:  The ratio of median monthly housing costs for owner-occupied housing units with a mortgage, to median monthly housing costs for renter-occupied units. Calculated using 2015-2019 American Community Survey (ACS) 5-year average estimates. Tabulations of ACS data are from the Census Bureau and can be downloaded via the \"data.census.gov\" portal: https://data.census.gov/. Data are available in Tables S2503 and S2506 under the \"Advanced Search\" option."]
["Area Home Sales/Proposed # of Loans:  The ratio of (a) the number of home sales in the area in the previous year priced below either the program-specific single-family value limit, or $500,000, whichever is less; to (b) the number of loans that the Applicant expects to provide in the program.  Ratio = (a)/(b).  Applicant will provide (a) based on real estate transaction data (e.g. local Multiple Listing Service, county records, Zillow.com, Redfin.com) and (b) based on proposed activity."]
["Households/Renters/Owners <=80%AMI with Severe Cost Burden:  The percent of all households/renter-occupied households/owner-occupied households with incomes below 80 percent of the Area Median Income (AMI) paying 50 percent or more of their income on housing expenses.  Calculated using 2013-2017 American Community Survey (ACS) 5-year average estimates.  Tabulations of ACS data are from the HUD Comprehensive Housing Affordability Strategy (CHAS) database, and can be downloaded at https://www.huduser.gov/portal/datasets/cp.html."]
["Renters in Poverty:  The percent of families occupying rental housing whose family income is below the federal poverty line. Calculated using 2015-2019 American Community Survey (ACS) 5-year average estimates. Tabulations of ACS data are from the Census Bureau and can be downloaded via the \"data.census.gov\" portal: https://data.census.gov/. Data are available in Table B17019 under the \"Advanced Search\" option."]
["Renters <=30% AMI:  The percent of renter-occupied households where the household income is at or below 30 percent of the Area Median Income (AMI).  Calculated using 2013-2017 American Community Survey (ACS) 5-year average estimates.  Tabulations of ACS data are from the HUD Comprehensive Housing Affordability Strategy (CHAS) database, and can be downloaded at https://www.huduser.gov/portal/datasets/cp.html."]
["Renters <=80% AMI:  The percent of renter-occupied households where the household income is at or below 80 percent of the Area Median Income (AMI).  Calculated using 2013-2017 American Community Survey (ACS) 5-year average estimates.  Tabulations of ACS data are from the HUD Comprehensive Housing Affordability Strategy (CHAS) database, and can be downloaded at https://www.huduser.gov/portal/datasets/cp.html."]
["Renters Overcrowded:  The percent of renter-occupied households with more than 1.5 persons per room (HUD's definition of \"severe overcrowding\").  Calculated using 2013-2017 American Community Survey (ACS) 5-year average estimates.  Tabulations of ACS data are from the HUD Comprehensive Housing Affordability Strategy (CHAS) database, and can be downloaded at https://www.huduser.gov/portal/datasets/cp.html."]
["Rental Vacancy Rate:  The number of vacant-for-rent units divided by the total number of rental units (vacant and occupied).  Calculated using 2013-2017 American Community Survey (ACS) 5-year average estimates.  Tabulations of ACS data are from the HUD Comprehensive Housing Affordability Strategy (CHAS) database, and can be downloaded at https://www.huduser.gov/portal/datasets/cp.html."]
["Renter-occupied units >30 yrs old: The percent of renter-occupied units over 30 years old. Calculated using 2015-2019 American Community Survey (ACS) 5-year average estimates. Tabulations of ACS data are from the Census Bureau and can be downloaded via the \"data.census.gov\" portal: https://data.census.gov/. Data are available in Table B25036 under the \"Advanced Search\" option."]
["Units/Owner-occupied units/Renter-occupied units built before 1980: The percent of all occupied units/renter-occupied units/owner-occupied units built before 1980. Calculated using 2013-2017 American Community Survey (ACS) 5-year average estimates.  Tabulations of ACS data are from the HUD Comprehensive Housing Affordability Strategy (CHAS) database, and can be downloaded at https://www.huduser.gov/portal/datasets/cp.html."]
["Owners in Poverty:  The percent of families in owner-occupied housing whose family income is below the federal poverty line.  Calculated using 2015-2019 American Community Survey (ACS) 5-year average estimates. Tabulations of ACS data are from the Census Bureau and can be downloaded via the \"data.census.gov\" portal: https://data.census.gov/. Data are available in Table B17019 under the \"Advanced Search\" option."]
["Owners <=80% AMI:  The percent of owner-occupied households where the household income is at or below 80 percent of the Area Median Income (AMI).  Calculated using 2013-2017 American Community Survey (ACS) 5-year average estimates.  Tabulations of ACS data are from the HUD Comprehensive Housing Affordability Strategy (CHAS) database, and can be downloaded at https://www.huduser.gov/portal/datasets/cp.html."]
["Owners Overcrowded:  The percent of owner-occupied households with more than 1.5 persons per room (HUD's definition of \"severe overcrowding\").  Calculated using 2013-2017 American Community Survey (ACS) 5-year average estimates.  Tabulations of ACS data are from the HUD Comprehensive Housing Affordability Strategy (CHAS) database, and can be downloaded at https://www.huduser.gov/portal/datasets/cp.html."]
["Owner-occupied units >30 yrs old: The percent of owner-occupied units over 30 years old.  Calculated using 2015-2019 American Community Survey (ACS) 5-year average estimates. Tabulations of ACS data are from the Census Bureau and can be downloaded via the \"data.census.gov\" portal: https://data.census.gov/. Data are available in Table B25036 under the \"Advanced Search\" option."]
["Adults ages 25-64 unemployed or out of the labor force: The percent of adults ages 25-64 who are either unemployed or not in the labor force. Calculated using 2015-2019 American Community Survey (ACS) 5-year average estimates. Tabulations of ACS data are from the Census Bureau and can be downloaded via the \"data.census.gov\" portal: https://data.census.gov/. Data are available in Table B23006 under the \"Advanced Search\" option."]
["Adults ages 25-64 with a HS degree or less: The percent of adults ages 25-64 whose highest level of completed education is a high school degree or less. Calculated using 2015-2019 American Community Survey (ACS) 5-year average estimates. Tabulations of ACS data are from the Census Bureau and can be downloaded via the \"data.census.gov\" portal: https://data.census.gov/. Data are available in Table B23006 under the \"Advanced Search\" option."]

{"sheet":"Allocations","index":12,"n_rows":28,"n_cols":2,"rows_kept":28,"cut":false,"hidden":true,"merged":[]}
["Butte",2650000]
["Fresno",1150000]
["Glenn",400000]
["Lake",3771800]
["Lassen",400000]
["Los Angeles",650000]
["Madera",400000]
["Mendocino",4120000]
["Monterey",650000]
["Napa",1650000]
["Nevada",400000]
["Plumas",400000]
["Riverside",400000]
["San Bernardino",400000]
["San Diego",400000]
["San Mateo",400000]
["Santa Clara",650000]
["Santa Cruz",1650000]
["Shasta",650000]
["Sierra",400000]
["Siskiyou",900000]
["Solano",900000]
["Sonoma",14720000]
["Stanislaus",400000]
["Trinity",900000]
["Tulare",650000]
["Yolo",400000]
["Yuba",4000000]

{"sheet":"CalHomeDR2021scoring","index":13,"n_rows":67,"n_cols":38,"rows_kept":67,"cut":false,"hidden":true,"merged":[[0,35,0,37],[0,1,0,9],[0,10,0,18],[0,20,0,24],[0,25,0,29],[0,30,0,34]]}
[null,"Community Need: MA/SHTA/ADU/PDL/SHP",null,null,null,null,null,null,null,null,"Community Need: OOR",null,null,null,null,null,null,null,null,null,"Feasibility: MA",null,null,null,null,"Feasibility: OOR/ADU",null,null,null,null,"Feasibility: Shared Housing TA",null,null,null,null,"Feasibility: PDL/Self-Help TA"]
["Jurisdiction","Housing Affordability","Points Awarded","Percent of Low-Income Renter Households","Points Awarded","Percent of Overcrowded Renter Households","Points Awarded","Rental Vacancy Rate","Points Awarded","TOTAL POINTS AWARDED","Age of Housing Stock","Points Awarded","Percent of Homeowners in Poverty","Points Awarded","Percent of Low-Income Homeowners","Points Awarded","Percent of Overcrowded Homeowners","Points Awarded","TOTAL POINTS AWARDED",null,"Median Owner Costs / Median Renter Costs Ratio","Points Awarded","Area Home Sales/ Proposed # of Loans (APPLICANT ENTERS DATA)","Points Awarded","TOTAL POINTS AWARDED","Age of Housing Stock","Points Awarded","Percent of Overcrowded Homeowners","Points Awarded","TOTAL POINTS AWARDED","Renters <=80%AMI with Severe Cost Burden","Points Awarded","Rental Vacancy Rate","Points Awarded","TOTAL POINTS AWARDED","Median Owner Costs / Median Renter Costs Ratio","Points Awarded","TOTAL POINTS AWARDED (Add 20 points for other criteria)"]
["Alameda County, California",10.35031847133758,3,0.54494119406892172,1,4.231409285540659E-2,4,2.5705020768053633E-2,4,12,0.79643952073708846,4,2.3403283900096387E-2,1,0.24069746241691944,1,7.7569489334195219E-3,3,9,null,1.6310517529215358,4,0,{"$f":"IF(W3>=190, 15, IF(W3>=105, 12, IF(W3>=49, 9, IF(W3>=21, 6, 3))))","v":3},{"$f":"X3+V3","v":7},0.79643952073708846,12,7.7569489334195219E-3,9,22,0.42176777381279168,9,2.5705020768053633E-2,12,22,1.6310517529215358,2,22]
["Alpine County, California",15,4,0.6,3,0,1,0.5,1,9,0.72108843537414968,3,5.5837563451776651E-2,3,0.31372549019607843,3,1.5686274509803921E-2,4,13,null,3.4851301115241635,2,0,3,{"$f":"X4+V4","v":5},0.72108843537414968,9,1.5686274509803921E-2,12,22,0.26666666666666666,3,0.5,3,7,3.4851301115241635,1,21]
["Amador County, California",5.8576874205844982,2,0.62327718223583461,3,1.225114854517611E-3,1,0.10178817056396149,1,7,0.62651141961486789,2,3.6675126903553297E-2,2,0.30448717948717946,3,4.120879120879121E-3,1,8,null,1.6083408884859474,6,0,3,9,0.62651141961486789,6,4.120879120879121E-3,3,10,0.43734643734643736,9,0.10178817056396149,3,13,1.6083408884859474,3,23]
["Butte County, California",6.1951909476661955,2,0.62816702052370843,3,1.2455767869780608E-2,2,6.8924617817606754E-2,1,8,0.68303828654308474,3,4.9737688762644561E-2,3,0.29963614908053887,3,4.8185662307011507E-3,2,11,null,1.5471698113207548,8,0,3,11,0.68303828654308474,9,4.8185662307011507E-3,6,16,0.48287516899504279,12,6.8924617817606754E-2,3,16,1.5471698113207548,4,24]
["Calaveras County, California",5.9764993880048962,2,0.64819587628865982,4,7.7319587628865982E-3,1,6.6185318892900122E-2,1,8,0.50687011311014951,1,3.7784734967073304E-2,2,0.36898779612347454,4,6.1019382627422831E-3,2,9,null,1.4122479462285287,10,0,3,13,0.50687011311014951,3,6.1019382627422831E-3,6,10,0.38767395626242546,6,6.6185318892900122E-2,3,10,1.4122479462285287,5,25]
["Colusa County, California",15,4,0.54257425742574261,1,4.5544554455445543E-2,4,4.5368620037807186E-2,2,11,0.66598639455782316,2,2.6307831871787118E-2,1,0.26216814159292035,1,9.9557522123893804E-3,3,7,null,1.7885264341957254,2,0,3,5,0.66598639455782316,6,9.9557522123893804E-3,9,16,0.33576642335766421,3,4.5368620037807186E-2,6,10,1.7885264341957254,1,21]
["Contra Costa County, California",7.8821656050955413,3,0.55827969790542797,1,2.5782209159566947E-2,2,2.8376229034123773E-2,4,10,0.7174113524231106,3,2.7071255375834439E-2,1,0.26745689655172411,1,4.9373040752351098E-3,2,7,null,1.5090709180868609,8,0,3,11,0.7174113524231106,9,4.9373040752351098E-3,6,16,0.43189390910302544,9,2.8376229034123773E-2,12,22,1.5090709180868609,4,24]
["Del Norte County, California",5.0707213578500712,1,0.61058344640434192,3,2.9850746268656716E-2,3,1.8641810918774968E-2,4,11,0.63510282161645149,2,6.368038740920097E-2,4,0.41451209341117595,4,6.672226855713094E-3,2,12,null,1.5945330296127562,6,0,3,9,0.63510282161645149,6,6.672226855713094E-3,6,13,0.4,6,1.8641810918774968E-2,12,19,1.5945330296127562,3,23]
["El Dorado County, California",7.7058177826564211,3,0.60861481251936789,3,9.9163309575457086E-3,1,5.3110328638497656E-2,1,8,0.57287441860465116,1,3.3680358070179779E-2,2,0.28103946102021177,2,3.1761308950914342E-3,1,6,null,1.8103174603174603,2,0,3,5,0.57287441860465116,3,3.1761308950914342E-3,3,7,0.34470468431771895,3,5.3110328638497656E-2,3,7,1.8103174603174603,1,21]
["Fresno County, California",5.3041018387553045,1,0.63916798871849112,3,3.9097479287854751E-2,4,3.9288738357324299E-2,2,10,0.59177816772684066,1,7.0478335866919761E-2,4,0.269625,2,1.0500000000000001E-2,3,10,null,1.6342685370741483,4,0,3,7,0.59177816772684066,3,1.0500000000000001E-2,9,13,0.44340871483728628,9,3.9288738357324299E-2,6,16,1.6342685370741483,2,22]
["Glenn County, California",4.3847241867043847,1,0.6330166270783848,3,9.5011876484560574E-3,1,1.2895662368112544E-2,4,9,0.70941883767535074,3,3.0890498508734553E-2,2,0.33711790393013102,4,1.7467248908296944E-3,1,10,null,1.8179640718562875,2,0,3,5,0.70941883767535074,9,1.7467248908296944E-3,3,13,0.39212007504690433,6,1.2895662368112544E-2,12,19,1.8179640718562875,1,21]
["Humboldt County, California",5.833333333333333,2,0.64138077988493503,4,1.4702748774770935E-2,2,3.1172584640792735E-2,3,11,0.73704871613359935,4,5.3810567324080835E-2,3,0.30672131147540982,3,1.1147540983606558E-2,4,14,null,1.7757390417940877,2,0,3,5,0.73704871613359935,12,1.1147540983606558E-2,12,25,0.4511627906976744,12,3.1172584640792735E-2,9,22,1.7757390417940877,1,21]
["Imperial County, California",15,4,0.68156424581005581,4,3.4281361097003554E-2,3,4.0448343079922025E-2,2,13,0.48199265942804709,1,8.9808077355081312E-2,4,0.34032542638698293,4,2.2544599098216034E-2,4,13,null,1.7566265060240964,2,0,3,5,0.48199265942804709,3,2.2544599098216034E-2,12,16,0.36847988077496274,3,4.0448343079922025E-2,6,10,1.7566265060240964,1,21]
["Inyo County, California",15,4,0.57461406518010294,2,3.4305317324185248E-3,1,5.2032520325203252E-2,2,9,0.80687932359723291,4,5.0115207373271888E-2,3,0.33561643835616439,4,7.8277886497064581E-4,1,12,null,2.0380848748639826,2,0,3,5,0.80687932359723291,12,7.8277886497064581E-4,3,16,0.28955223880597014,3,5.2032520325203252E-2,6,10,2.0380848748639826,1,21]
["Kern County, California",4.5968882602545973,1,0.60521907784536721,3,3.7688442211055273E-2,3,5.3843266463694375E-2,1,8,0.56381304187770542,1,7.993586247873613E-2,4,0.29693530828357473,2,9.7977765315211303E-3,3,10,null,1.5613496932515338,6,0,3,9,0.56381304187770542,3,9.7977765315211303E-3,9,13,0.41347414420975964,6,5.3843266463694375E-2,3,10,1.5613496932515338,3,23]
["Kings County, California",4.172560113154173,1,0.59020807833537337,2,2.8886168910648716E-2,3,3.2219853115375501E-2,3,9,0.54031584040821712,1,6.6790758786817034E-2,4,0.26020524515393384,1,1.3683010262257697E-2,4,10,null,1.4737373737373738,10,0,3,13,0.54031584040821712,3,1.3683010262257697E-2,12,16,0.35338034010783909,3,3.2219853115375501E-2,9,13,1.4737373737373738,5,25]
["Lake County, California",4.7383309759547387,1,0.6854433909648634,4,1.5616285554935862E-2,2,5.4324894514767935E-2,1,8,0.69813314547375838,3,8.7665744538777068E-2,4,0.39976958525345624,4,7.7764976958525347E-3,3,14,null,1.5961145194274029,6,0,3,9,0.69813314547375838,9,7.7764976958525347E-3,9,19,0.402766476810415,6,5.4324894514767935E-2,3,10,1.5961145194274029,3,23]
["Lassen County, California",3.3926592797783934,1,0.55451713395638624,1,1.2461059190031153E-3,1,6.0029282576866766E-2,1,4,0.69362041467304625,3,6.1389700921969867E-2,4,0.31380417335473515,3,1.6051364365971107E-3,1,11,null,1.5156903765690377,8,0,3,11,0.69362041467304625,9,1.6051364365971107E-3,3,13,0.40168539325842695,6,6.0029282576866766E-2,3,10,1.5156903765690377,4,24]
["Los Angeles County, California",9.9514999999999993,3,0.65852139990520719,4,7.5579063682281317E-2,4,3.2351121339093812E-2,3,14,0.87188354712948068,4,4.1900827508774337E-2,3,0.34870881037315726,4,1.522449937680388E-2,4,15,null,1.710958904109589,4,0,3,7,0.87188354712948068,12,1.522449937680388E-2,12,25,0.43870923779955451,9,3.2351121339093812E-2,9,19,1.710958904109589,2,22]
["Madera County, California",5.0565770862800568,1,0.6708445240226798,4,5.2820053715308866E-2,4,4.2024013722126927E-2,2,11,0.5150841095509523,1,6.641440501043841E-2,4,0.30433212996389891,3,1.1191335740072202E-2,4,12,null,1.529585798816568,8,0,3,11,0.5150841095509523,3,1.1191335740072202E-2,12,16,0.3318505338078292,3,4.2024013722126927E-2,6,10,1.529585798816568,4,24]
["Marin County, California",11.447192513368984,4,0.59640479360852194,2,3.5419440745672437E-2,3,2.3534000780132621E-2,4,13,0.86692989644639795,4,2.1286529849954369E-2,1,0.29838769596552495,2,3.6406865294598412E-3,1,8,null,1.7636539391010151,2,0,3,5,0.86692989644639795,12,3.6406865294598412E-3,3,16,0.42308551015851753,9,2.3534000780132621E-2,12,22,1.7636539391010151,1,21]
["Mariposa County, California",5.7949080622347946,2,0.55632183908045973,1,6.8965517241379309E-3,1,0.1553398058252427,1,5,0.60057361376673035,2,5.6410256410256411E-2,3,0.31273764258555131,3,3.8022813688212928E-3,1,9,null,1.7857911733046286,2,0,3,5,0.60057361376673035,6,3.8022813688212928E-3,3,10,0.45867768595041325,12,0.1553398058252427,3,16,1.7857911733046286,1,21]
["Mendocino County, California",8.2390381895332396,3,0.62616487455197134,3,2.1863799283154121E-2,2,2.8213166144200628E-2,4,12,0.76561059628353789,4,5.8599695585996953E-2,4,0.31487889273356401,3,8.4033613445378148E-3,3,14,null,1.6631762652705062,4,0,3,7,0.76561059628353789,12,8.4033613445378148E-3,9,22,0.44819690898683456,12,2.8213166144200628E-2,12,25,1.6631762652705062,2,22]
["Merced County, California",5.0919377652050919,1,0.62514781237682304,3,3.0876363158586256E-2,3,3.9015151515151517E-2,2,9,0.54884555568847948,1,6.6733158037900087E-2,4,0.31743720422278848,3,1.2983861181895401E-2,4,12,null,1.4622918707149852,10,0,3,13,0.54884555568847948,3,1.2983861181895401E-2,12,16,0.37095418242959227,3,3.9015151515151517E-2,6,10,1.4622918707149852,5,25]
["Modoc County, California",15,4,0.68020304568527923,4,4.0609137055837565E-3,1,0,4,13,0.6938700147710487,3,6.7775723967960569E-2,4,0.4463276836158192,4,3.766478342749529E-3,1,12,null,1.602510460251046,6,0,3,9,0.6938700147710487,9,3.766478342749529E-3,3,13,0.32686567164179103,3,0,12,16,1.602510460251046,3,23]
["Mono County, California",10.129310344827585,3,0.413953488372093,1,2.3255813953488372E-2,2,0.36296296296296299,1,7,0.66786179921773137,2,1.9740552735476594E-2,1,0.27272727272727271,2,0,1,6,null,1.5348258706467661,8,0,3,11,0.66786179921773137,6,0,3,10,0.1853932584269663,3,0.36296296296296299,3,7,1.5348258706467661,4,24]
["Monterey County, California",10.569852941176471,4,0.56344155321034395,1,8.4910980423749297E-2,4,4.8520619346926259E-2,2,11,0.75295839753466876,4,3.3125878337683198E-2,2,0.26661448140900196,1,1.5968688845401174E-2,4,11,null,1.5150501672240804,8,0,3,11,0.75295839753466876,12,1.5968688845401174E-2,12,25,0.39462396339719757,6,4.8520619346926259E-2,6,13,1.5150501672240804,4,24]
["Napa County, California",8.75,3,0.53841901603095632,1,3.1232725262576009E-2,3,5.114083398898505E-2,2,9,0.734173167924287,3,2.6706889667716605E-2,1,0.27120012921983522,2,5.6533677919560653E-3,2,8,null,1.5676470588235294,6,0,3,9,0.734173167924287,9,5.6533677919560653E-3,6,16,0.39014373716632444,6,5.114083398898505E-2,6,13,1.5676470588235294,3,23]
["Nevada County, California",6.1255411255411252,2,0.56388088376560996,2,8.6455331412103754E-3,1,3.9224734656206739E-2,2,7,0.67376962659981532,2,3.6230853132261584E-2,2,0.31175979983319435,3,7.6730608840700583E-3,2,9,null,1.6590730557737627,4,0,3,7,0.67376962659981532,6,7.6730608840700583E-3,6,13,0.44463373083475299,12,3.9224734656206739E-2,6,19,1.6590730557737627,2,22]
["Orange County, California",10.665417057169634,4,0.61806725095950044,3,5.9185427049321192E-2,4,3.2241969997671663E-2,3,14,0.76114616511443511,4,3.0315394699146622E-2,2,0.32194376008835274,4,1.0118086823549401E-2,3,13,null,1.5043149946062568,10,0,3,13,0.76114616511443511,12,1.0118086823549401E-2,9,22,0.43490027433825162,9,3.2241969997671663E-2,9,19,1.5043149946062568,5,25]
["Placer County, California",7.3600439077936333,3,0.50977480821578813,1,1.4600346448898788E-2,2,5.2853627094808391E-2,1,7,0.42209449585971748,1,3.2432779310787398E-2,2,0.23508736182568388,1,2.4960521623962101E-3,1,5,null,1.5415045395590143,8,0,3,11,0.42209449585971748,3,2.4960521623962101E-3,3,7,0.45364077669902914,12,5.2853627094808391E-2,3,16,1.5415045395590143,4,24]
["Plumas County, California",5.4035567715458273,1,0.64977973568281944,4,0,1,6.7761806981519512E-2,1,7,0.67218973359324241,2,2.6502230385725533E-2,1,0.32003325020781381,3,0,1,7,null,1.668122270742358,4,0,3,7,0.67218973359324241,6,0,3,10,0.40677966101694918,6,6.7761806981519512E-2,3,10,1.668122270742358,2,22]
["Riverside County, California",7.419354838709677,3,0.56492658726173495,2,3.292024022335148E-2,3,5.6689213512950226E-2,1,9,0.49409078811670382,1,5.6408349420057638E-2,3,0.29291903455130835,2,1.0858056569934528E-2,3,9,null,1.4494545454545456,10,0,3,13,0.49409078811670382,3,1.0858056569934528E-2,9,13,0.48919149541349644,12,5.6689213512950226E-2,3,16,1.4494545454545456,5,25]
["Sacramento County, California",5.7628979143798027,2,0.62960616619153209,3,2.1539436173582515E-2,2,4.3468600399943443E-2,2,9,0.65139851921494885,2,4.1644876522516486E-2,2,0.29557192447718228,2,6.0621454576242489E-3,2,8,null,1.5375399361022364,8,0,3,11,0.65139851921494885,6,6.0621454576242489E-3,6,13,0.41358376656045615,6,4.3468600399943443E-2,6,13,1.5375399361022364,4,24]
["San Benito County, California",8.761742006615215,3,0.54853985793212312,1,4.8934490923441203E-2,4,1.7829457364341085E-2,4,12,0.52483988229184697,1,2.7296049256028732E-2,1,0.23773075191355245,1,1.6659162539396668E-2,4,7,null,1.6397394136807817,4,0,3,7,0.52483988229184697,3,1.6659162539396668E-2,12,16,0.36402877697841729,3,1.7829457364341085E-2,12,16,1.6397394136807817,2,22]
["San Bernardino County, California",5.612903225806452,2,0.58028429310107543,2,3.6863731985922972E-2,3,4.9218633168835055E-2,2,9,0.67438814981553119,3,5.8394568375113379E-2,3,0.29480410473018709,2,1.1317791676820187E-2,4,12,null,1.4169914263445051,10,0,3,13,0.67438814981553119,9,1.1317791676820187E-2,12,22,0.46837201423005254,12,4.9218633168835055E-2,6,19,1.4169914263445051,5,25]
["San Diego County, California",9.0956887486855944,3,0.58553947129230088,2,3.7227681091476193E-2,3,3.6016011215229099E-2,3,11,0.71307973284630666,3,3.0649401399694482E-2,2,0.29215218664335607,2,7.205356915530133E-3,2,9,null,1.5548854041013269,6,0,3,9,0.71307973284630666,9,7.205356915530133E-3,6,16,0.44001633986928107,9,3.6016011215229099E-2,9,19,1.5548854041013269,3,23]
["San Francisco County, California",13.03475935828877,4,0.51426920341394022,1,4.8141891891891893E-2,4,2.7178966031697983E-2,4,13,0.86357797693758764,4,2.466357964303572E-2,1,0.33099170465585531,4,1.3526642253942157E-2,4,13,null,1.9245382585751978,2,0,3,5,0.86357797693758764,12,1.3526642253942157E-2,12,25,0.35214798167516637,3,2.7178966031697983E-2,12,16,1.9245382585751978,1,21]
["San Joaquin County, California",6.8666666666666663,2,0.57224325006308352,2,2.8160484481453446E-2,3,4.5428268619327486E-2,2,9,0.55137962741174018,1,4.7164948453608246E-2,3,0.24660279793161502,1,9.6604802180622912E-3,3,8,null,1.5786423841059603,6,0,3,9,0.55137962741174018,3,9.6604802180622912E-3,9,13,0.44986330364229649,12,4.5428268619327486E-2,6,19,1.5786423841059603,3,23]
["San Luis Obispo County, California",8.1697341513292425,3,0.58716361038342457,2,2.2386282448201952E-2,2,2.8234205045128441E-2,4,11,0.63326078960274645,2,3.5541950981017367E-2,2,0.27541633624107853,2,4.5995241871530533E-3,1,7,null,1.5928184281842819,6,0,3,9,0.63326078960274645,6,4.5995241871530533E-3,3,10,0.44818495234232408,12,2.8234205045128441E-2,12,25,1.5928184281842819,3,23]
["San Mateo County, California",15.207219251336898,4,0.55391621993453199,1,6.1862517197210497E-2,4,3.0360182161092968E-2,3,12,0.88033530335618726,4,2.2806614983691999E-2,1,0.31109335038363173,3,9.0792838874680301E-3,3,11,null,1.5254749568221071,8,0,3,11,0.88033530335618726,12,9.0792838874680301E-3,9,22,0.41640972935936965,9,3.0360182161092968E-2,9,19,1.5254749568221071,4,24]
["Santa Barbara County, California",10.377358490566039,4,0.59064114693253766,2,6.8845062222545661E-2,4,2.9932933286268972E-2,3,13,0.80196194614523664,4,2.7610333692142087E-2,1,0.28283096534324792,2,1.1884211924047271E-2,4,11,null,1.4388314059646987,10,0,3,13,0.80196194614523664,12,1.1884211924047271E-2,12,25,0.45391818629866931,12,2.9932933286268972E-2,9,22,1.4388314059646987,5,25]
["Santa Clara County, California",11.566424322538005,4,0.49489110223318666,1,4.9137470773422683E-2,4,3.3608511546809952E-2,3,12,0.79459713933620413,4,2.2276587565092789E-2,1,0.26338595293494771,1,7.9556379139787935E-3,3,9,null,1.4907407407407407,10,0,3,13,0.79459713933620413,12,7.9556379139787935E-3,9,22,0.43034113314236822,9,3.3608511546809952E-2,9,19,1.4907407407407407,5,25]
["Santa Cruz County, California",10.500446827524575,4,0.66299130885977431,4,5.526008561421715E-2,4,1.8086867914915296E-2,4,15,0.81063567345946042,4,3.3343256921702889E-2,2,0.30479031409019125,3,7.1065099140200034E-3,2,11,null,1.6453115899825277,4,0,3,7,0.81063567345946042,12,7.1065099140200034E-3,6,19,0.48131481119154762,12,1.8086867914915296E-2,12,25,1.6453115899825277,2,22]
["Shasta County, California",5.1626591230551631,1,0.62523683213338388,3,1.7241379310344827E-2,2,3.0848329048843187E-2,3,9,0.64387020286291385,2,5.5616481278395739E-2,3,0.30706429300374194,3,4.762444721623767E-3,1,9,null,1.5332050048123196,8,0,3,11,0.64387020286291385,6,4.762444721623767E-3,3,10,0.45090909090909093,12,3.0848329048843187E-2,9,22,1.5332050048123196,4,24]
["Sierra County, California",15,4,0.65306122448979587,4,0,1,0,4,13,0.7283702213279678,3,1.6442451420029897E-2,1,0.39896373056994816,4,0,1,9,null,1.5689300411522633,6,0,3,9,0.7283702213279678,9,0,3,13,0.375,6,0,12,19,1.5689300411522633,3,23]
["Siskiyou County, California",4.2432814710042432,1,0.67378048780487809,4,1.2195121951219513E-2,1,2.5983667409057165E-2,4,10,0.71524502358302022,3,7.3802115743621652E-2,4,0.37936571657968687,4,6.0216780409474103E-3,2,13,null,1.5525700934579438,6,0,3,9,0.71524502358302022,9,6.0216780409474103E-3,6,16,0.38800904977375567,6,2.5983667409057165E-2,12,19,1.5525700934579438,3,23]
["Solano County, California",5.7905337361530718,2,0.53883330507037475,1,2.4419196201458368E-2,2,4.176145596360091E-2,2,7,0.66162410878034483,2,2.6310135918992852E-2,1,0.25463905861054537,1,5.7139624349400314E-3,2,6,null,1.3618090452261307,10,0,3,13,0.66162410878034483,6,5.7139624349400314E-3,6,13,0.47395751376868606,12,4.176145596360091E-2,6,19,1.3618090452261307,5,25]
["Sonoma County, California",7.9864472410454983,3,0.52955599734923786,1,2.9953611663353214E-2,3,2.8895038290752302E-2,3,10,0.73999295490278627,4,2.4190670718952641E-2,1,0.25543146322310445,1,6.0204170665735975E-3,2,8,null,1.5058605798889575,10,0,3,13,0.73999295490278627,12,6.0204170665735975E-3,6,19,0.48191715680140157,12,2.8895038290752302E-2,9,22,1.5058605798889575,5,25]
["Stanislaus County, California",6.082036775106082,2,0.5799279254776637,2,2.2710274019174543E-2,2,3.7247970672951033E-2,3,9,0.61807986000636339,2,4.627556731454157E-2,3,0.25743941098271805,1,1.0992944063810206E-2,3,9,null,1.4735930735930736,10,0,3,13,0.61807986000636339,6,1.0992944063810206E-2,9,16,0.44366279751436277,9,3.7247970672951033E-2,9,19,1.4735930735930736,5,25]
["Sutter County, California",5.2666666666666666,1,0.57519884309472158,2,3.5068691250903831E-2,3,3.2867132867132866E-2,3,9,0.57359732469876323,1,4.6242363972155136E-2,3,0.24707164260419504,1,7.6273494960501223E-3,2,7,null,1.6234269119070668,4,0,3,7,0.57359732469876323,3,7.6273494960501223E-3,6,10,0.33940917661847897,3,3.2867132867132866E-2,9,13,1.6234269119070668,2,22]
["Tehama County, California",4.5049504950495045,1,0.71915167095115684,4,2.1850899742930592E-2,2,5.410334346504559E-2,1,8,0.61291342566242968,2,8.7765474677799965E-2,4,0.34044556008785692,4,1.1295889551302165E-2,4,14,null,1.6181192660550459,6,0,3,9,0.61291342566242968,6,1.1295889551302165E-2,12,19,0.37533512064343161,6,5.410334346504559E-2,3,10,1.6181192660550459,3,23]
["Trinity County, California",15,4,0.78005865102639294,4,5.8651026392961877E-3,1,2.0114942528735632E-2,4,13,0.70241876374297585,3,6.0965954077593032E-2,4,0.38696808510638298,4,1.1968085106382979E-2,4,14,null,1.8197747183979975,2,0,3,5,0.70241876374297585,9,1.1968085106382979E-2,12,22,0.37518796992481201,6,2.0114942528735632E-2,12,19,1.8197747183979975,1,21]
["Tulare County, California",4.7383309759547387,1,0.67737028899780294,4,3.557546053743451E-2,3,3.4353325173398612E-2,3,11,0.60153931985900133,2,9.2802543679342236E-2,4,0.34281013491280027,4,1.5531424810793023E-2,4,14,null,1.5074309978768579,8,0,3,11,0.60153931985900133,6,1.5531424810793023E-2,12,19,0.36926147704590817,3,3.4353325173398612E-2,9,13,1.5074309978768579,4,24]
["Tuolumne County, California",5.4738095238095239,2,0.56607929515418498,2,1.0279001468428781E-2,1,5.9392265193370167E-2,1,6,0.68751169025500347,3,5.0669663763229372E-2,3,0.28880983182406211,2,2.5873221216041399E-3,1,9,null,1.732408325074331,2,0,3,5,0.68751169025500347,9,2.5873221216041399E-3,3,13,0.41374837872892345,9,5.9392265193370167E-2,3,13,1.732408325074331,1,21]
["Ventura County, California",8.5020242914979764,3,0.5915266176914562,2,4.3322934487269801E-2,4,3.468039634738683E-2,3,12,0.75822846927687615,4,2.8005994291867793E-2,2,0.28922545113662995,2,7.7923599718771972E-3,3,11,null,1.445382882882883,10,0,3,13,0.75822846927687615,12,7.7923599718771972E-3,9,22,0.42420891459680166,9,3.468039634738683E-2,9,19,1.445382882882883,5,25]
["Yolo County, California",6.6594594594594598,2,0.66576280861995152,4,2.1121735407449695E-2,2,2.5587539980531218E-2,4,12,0.59757275218582806,1,3.1072774815770705E-2,2,0.25892620999735522,1,7.9344088865379529E-3,3,7,null,1.6805135951661632,4,0,{"$f":"IF(W59>=190, 15, IF(W59>=105, 12, IF(W59>=49, 9, IF(W59>=21, 6, 3))))","v":3},7,0.59757275218582806,3,7.9344088865379529E-3,9,13,0.4304394426580922,9,2.5587539980531218E-2,12,22,1.6805135951661632,2,22]
["Yuba County, California",5.7346666666666666,2,0.60610263522884877,3,3.8834951456310676E-2,4,4.5875606528451698E-2,2,11,0.54746676699272634,1,4.6243753705428985E-2,3,0.26717557251908397,1,7.6335877862595417E-3,2,7,null,1.6736526946107784,4,0,{"$f":"IF(W60>=190, 15, IF(W60>=105, 12, IF(W60>=49, 9, IF(W60>=21, 6, 3))))","v":3},7,0.54746676699272634,3,7.6335877862595417E-3,6,10,0.37299771167048057,3,4.5875606528451698E-2,6,10,1.6736526946107784,2,22]
[null,"Ratio of single-family value limit to AMI:","Points Awarded:","Percent of Low-Income Renter Households:","Points Awarded:","Percent of Overcrowded Renter Households:","Points Awarded:","Rental Vacancy Rate:","Points Awarded:",null,"Percent of housing units over 30 yrs old:","Points Awarded:","Percent of homeowners in poverty:","Points Awarded:","Percent of homeowners <=80% AMI:","Points Awarded:","Percent of overcrowded homeowners:","Points Awarded:",null,null,"Median Owner Costs / Median Renter Costs Ratio:","Points Awarded:","Area Home Sales/ Proposed # of Loans:","Points Awarded:",null,"Percent of housing units over 30 yrs old:","Points Awarded:","Percent of overcrowded homeowners:","Points Awarded:",null,"Percent of renters <=80%AMI with severe cost burden:","Points Awarded:","Rental Vacancy Rate:","Points Awarded:",null,"Median Owner Costs / Median Renter Costs Ratio:","Points Awarded:"]
[null,{"$f":"_xlfn.CONCAT(\"Less than or equal to \", TEXT(QUARTILE(B$3:B$60, 1), \"0.00\"))","v":"Less than or equal to 5.42"},1,{"$f":"_xlfn.CONCAT(\"Less than or equal to \", TEXT(QUARTILE(D$3:D$60, 1), \"0.00%\"))","v":"Less than or equal to 56.36%"},1,{"$f":"_xlfn.CONCAT(\"Less than or equal to \", TEXT(QUARTILE(F$3:F$60, 1), \"0.00%\"))","v":"Less than or equal to 1.23%"},1,{"$f":"_xlfn.CONCAT(\"More than \", TEXT(QUARTILE(H$3:H$60, 3), \"0.00%\"))","v":"More than 5.26%"},1,"Minimum total points awarded: 4",{"$f":"_xlfn.CONCAT(\"Less than or equal to \", TEXT(QUARTILE(K$3:K$60, 1), \"0.00%\"))","v":"Less than or equal to 59.83%"},1,{"$f":"_xlfn.CONCAT(\"Less than or equal to \", TEXT(QUARTILE(M$3:M$60, 1), \"0.00%\"))","v":"Less than or equal to 2.77%"},1,{"$f":"_xlfn.CONCAT(\"Less than or equal to \", TEXT(QUARTILE(O$3:O$60, 1), \"0.00%\"))","v":"Less than or equal to 26.80%"},1,{"$f":"_xlfn.CONCAT(\"Less than or equal to \", TEXT(QUARTILE(Q$3:Q$60, 1), \"0.00%\"))","v":"Less than or equal to 0.48%"},1,"Minimum total points awarded: 4",null,{"$f":"_xlfn.CONCAT(\"More than \", TEXT(_xlfn.PERCENTILE.INC(U$3:U$60, 0.8), \"0.00\"))","v":"More than 1.72"},2,"Up to 21",3,"Minimum total points awarded: 5",{"$f":"_xlfn.CONCAT(\"Less than or equal to \", TEXT(QUARTILE(Z$3:Z$60, 1), \"0.00%\"))","v":"Less than or equal to 59.83%"},3,{"$f":"_xlfn.CONCAT(\"Less than or equal to \", TEXT(QUARTILE(AB$3:AB$60, 1), \"0.00%\"))","v":"Less than or equal to 0.48%"},3,"Minimum total points awarded: 5",{"$f":"_xlfn.CONCAT(\"Less than or equal to \", TEXT(QUARTILE(AE$3:AE$60, 1), \"0.00%\"))","v":"Less than or equal to 37.35%"},3,{"$f":"_xlfn.CONCAT(\"More than \", TEXT(QUARTILE(AG$3:AG$60, 3), \"0.00%\"))","v":"More than 5.26%"},3,"Minimum total points awarded: 5",{"$f":"_xlfn.CONCAT(\"More than \", TEXT(_xlfn.PERCENTILE.INC(AJ$3:AJ$60, 0.8), \"0.00\"))","v":"More than 1.72"},1,"Minimum total points awarded: 5"]
[null,{"$f":"_xlfn.CONCAT(\"More than \", TEXT(QUARTILE(B$3:B$60, 1), \"0.00\"), \" but less than or equal to \", TEXT(QUARTILE(B$3:B$60, 2), \"0.00\"))","v":"More than 5.42 but less than or equal to 7.11"},2,{"$f":"_xlfn.CONCAT(\"More than \", TEXT(QUARTILE(D$3:D$60, 1), \"0.00%\"), \" but less than or equal to \", TEXT(QUARTILE(D$3:D$60, 2), \"0.00%\"))","v":"More than 56.36% but less than or equal to 59.82%"},2,{"$f":"_xlfn.CONCAT(\"More than \", TEXT(QUARTILE(F$3:F$60, 1), \"0.00%\"), \" but less than or equal to \", TEXT(QUARTILE(F$3:F$60, 2), \"0.00%\"))","v":"More than 1.23% but less than or equal to 2.70%"},2,{"$f":"_xlfn.CONCAT(\"Less than \", TEXT(QUARTILE(H$3:H$60, 3), \"0.00%\"), \" but more than or equal to \", TEXT(QUARTILE(H$3:H$60, 2), \"0.00%\"))","v":"Less than 5.26% but more than or equal to 3.81%"},2,null,{"$f":"_xlfn.CONCAT(\"More than \", TEXT(QUARTILE(K$3:K$60, 1), \"0.00%\"), \" but less than or equal to \", TEXT(QUARTILE(K$3:K$60, 2), \"0.00%\"))","v":"More than 59.83% but less than or equal to 67.41%"},2,{"$f":"_xlfn.CONCAT(\"More than \", TEXT(QUARTILE(M$3:M$60, 1), \"0.00%\"), \" but less than or equal to \", TEXT(QUARTILE(M$3:M$60, 2), \"0.00%\"))","v":"More than 2.77% but less than or equal to 4.18%"},2,{"$f":"_xlfn.CONCAT(\"More than \", TEXT(QUARTILE(O$3:O$60, 1), \"0.00%\"), \" but less than or equal to \", TEXT(QUARTILE(O$3:O$60, 2), \"0.00%\"))","v":"More than 26.80% but less than or equal to 29.90%"},2,{"$f":"_xlfn.CONCAT(\"More than \", TEXT(QUARTILE(Q$3:Q$60, 1), \"0.00%\"), \" but less than or equal to \", TEXT(QUARTILE(Q$3:Q$60, 2), \"0.00%\"))","v":"More than 0.48% but less than or equal to 0.77%"},2,null,null,{"$f":"_xlfn.CONCAT(\"Less than \", TEXT(_xlfn.PERCENTILE.INC(U$3:U$60, 0.8), \"0.00\"), \" but more than or equal to \", TEXT(_xlfn.PERCENTILE.INC(U$3:U$60, 0.6), \"0.00\"))","v":"Less than 1.72 but more than or equal to 1.62"},4,"Above 21 to 49",6,null,{"$f":"_xlfn.CONCAT(\"More than \", TEXT(QUARTILE(Z$3:Z$60, 1), \"0.00%\"), \" but less than or equal to \", TEXT(QUARTILE(Z$3:Z$60, 2), \"0.00%\"))","v":"More than 59.83% but less than or equal to 67.41%"},6,{"$f":"_xlfn.CONCAT(\"More than \", TEXT(QUARTILE(AB$3:AB$60, 1), \"0.00%\"), \" but less than or equal to \", TEXT(QUARTILE(AB$3:AB$60, 2), \"0.00%\"))","v":"More than 0.48% but less than or equal to 0.77%"},6,null,{"$f":"_xlfn.CONCAT(\"More than \", TEXT(QUARTILE(AE$3:AE$60, 1), \"0.00%\"), \" but less than or equal to \", TEXT(QUARTILE(AE$3:AE$60, 2), \"0.00%\"))","v":"More than 37.35% but less than or equal to 41.37%"},6,{"$f":"_xlfn.CONCAT(\"Less than \", TEXT(QUARTILE(AG$3:AG$60, 3), \"0.00%\"), \" but more than or equal to \", TEXT(QUARTILE(AG$3:AG$60, 2), \"0.00%\"))","v":"Less than 5.26% but more than or equal to 3.81%"},6,null,{"$f":"_xlfn.CONCAT(\"Less than \", TEXT(_xlfn.PERCENTILE.INC(AJ$3:AJ$60, 0.8), \"0.00\"), \" but more than or equal to \", TEXT(_xlfn.PERCENTILE.INC(AJ$3:AJ$60, 0.6), \"0.00\"))","v":"Less than 1.72 but more than or equal to 1.62"},2]
[null,{"$f":"_xlfn.CONCAT(\"More than \", TEXT(QUARTILE(B$3:B$60, 2), \"0.00\"), \" but less than or equal to \", TEXT(QUARTILE(B$3:B$60, 3), \"0.00\"))","v":"More than 7.11 but less than or equal to 10.37"},3,{"$f":"_xlfn.CONCAT(\"More than \", TEXT(QUARTILE(D$3:D$60, 2), \"0.00%\"), \" but less than or equal to \", TEXT(QUARTILE(D$3:D$60, 3), \"0.00%\"))","v":"More than 59.82% but less than or equal to 64.08%"},3,{"$f":"_xlfn.CONCAT(\"More than \", TEXT(QUARTILE(F$3:F$60, 2), \"0.00%\"), \" but less than or equal to \", TEXT(QUARTILE(F$3:F$60, 3), \"0.00%\"))","v":"More than 2.70% but less than or equal to 3.85%"},3,{"$f":"_xlfn.CONCAT(\"Less than \", TEXT(QUARTILE(H$3:H$60, 2), \"0.00%\"), \" but more than or equal to \", TEXT(QUARTILE(H$3:H$60, 1), \"0.00%\"))","v":"Less than 3.81% but more than or equal to 2.85%"},3,null,{"$f":"_xlfn.CONCAT(\"More than \", TEXT(QUARTILE(K$3:K$60, 2), \"0.00%\"), \" but less than or equal to \", TEXT(QUARTILE(K$3:K$60, 3), \"0.00%\"))","v":"More than 67.41% but less than or equal to 73.63%"},3,{"$f":"_xlfn.CONCAT(\"More than \", TEXT(QUARTILE(M$3:M$60, 2), \"0.00%\"), \" but less than or equal to \", TEXT(QUARTILE(M$3:M$60, 3), \"0.00%\"))","v":"More than 4.18% but less than or equal to 5.85%"},3,{"$f":"_xlfn.CONCAT(\"More than \", TEXT(QUARTILE(O$3:O$60, 2), \"0.00%\"), \" but less than or equal to \", TEXT(QUARTILE(O$3:O$60, 3), \"0.00%\"))","v":"More than 29.90% but less than or equal to 32.15%"},3,{"$f":"_xlfn.CONCAT(\"More than \", TEXT(QUARTILE(Q$3:Q$60, 2), \"0.00%\"), \" but less than or equal to \", TEXT(QUARTILE(Q$3:Q$60, 3), \"0.00%\"))","v":"More than 0.77% but less than or equal to 1.11%"},3,null,null,{"$f":"_xlfn.CONCAT(\"Less than \", TEXT(_xlfn.PERCENTILE.INC(U$3:U$60, 0.6), \"0.00\"), \" but more than or equal to \", TEXT(_xlfn.PERCENTILE.INC(U$3:U$60, 0.4), \"0.00\"))","v":"Less than 1.62 but more than or equal to 1.55"},6,"Above 49 to 105",9,null,{"$f":"_xlfn.CONCAT(\"More than \", TEXT(QUARTILE(Z$3:Z$60, 2), \"0.00%\"), \" but less than or equal to \", TEXT(QUARTILE(Z$3:Z$60, 3), \"0.00%\"))","v":"More than 67.41% but less than or equal to 73.63%"},9,{"$f":"_xlfn.CONCAT(\"More than \", TEXT(QUARTILE(AB$3:AB$60, 2), \"0.00%\"), \" but less than or equal to \", TEXT(QUARTILE(AB$3:AB$60, 3), \"0.00%\"))","v":"More than 0.77% but less than or equal to 1.11%"},9,null,{"$f":"_xlfn.CONCAT(\"More than \", TEXT(QUARTILE(AE$3:AE$60, 2), \"0.00%\"), \" but less than or equal to \", TEXT(QUARTILE(AE$3:AE$60, 3), \"0.00%\"))","v":"More than 41.37% but less than or equal to 44.44%"},9,{"$f":"_xlfn.CONCAT(\"Less than \", TEXT(QUARTILE(AG$3:AG$60, 2), \"0.00%\"), \" but more than or equal to \", TEXT(QUARTILE(AG$3:AG$60, 1), \"0.00%\"))","v":"Less than 3.81% but more than or equal to 2.85%"},9,null,{"$f":"_xlfn.CONCAT(\"Less than \", TEXT(_xlfn.PERCENTILE.INC(AJ$3:AJ$60, 0.6), \"0.00\"), \" but more than or equal to \", TEXT(_xlfn.PERCENTILE.INC(AJ$3:AJ$60, 0.4), \"0.00\"))","v":"Less than 1.62 but more than or equal to 1.55"},3]
[null,{"$f":"_xlfn.CONCAT(\"More than \", TEXT(QUARTILE(B$3:B$60, 3), \"0.00\"))","v":"More than 10.37"},4,{"$f":"_xlfn.CONCAT(\"More than \", TEXT(QUARTILE(D$3:D$60, 3), \"0.00%\"))","v":"More than 64.08%"},4,{"$f":"_xlfn.CONCAT(\"More than \", TEXT(QUARTILE(F$3:F$60, 3), \"0.00%\"))","v":"More than 3.85%"},4,{"$f":"_xlfn.CONCAT(\"Less than \", TEXT(QUARTILE(H$3:H$60, 1), \"0.00%\"))","v":"Less than 2.85%"},4,"Maximum total points awarded: 15",{"$f":"_xlfn.CONCAT(\"More than \", TEXT(QUARTILE(K$3:K$60, 3), \"0.00%\"))","v":"More than 73.63%"},4,{"$f":"_xlfn.CONCAT(\"More than \", TEXT(QUARTILE(M$3:M$60, 3), \"0.00%\"))","v":"More than 5.85%"},4,{"$f":"_xlfn.CONCAT(\"More than \", TEXT(QUARTILE(O$3:O$60, 3), \"0.00%\"))","v":"More than 32.15%"},4,{"$f":"_xlfn.CONCAT(\"More than \", TEXT(QUARTILE(Q$3:Q$60, 3), \"0.00%\"))","v":"More than 1.11%"},4,"Maximum total points awarded: 15",null,{"$f":"_xlfn.CONCAT(\"Less than \", TEXT(_xlfn.PERCENTILE.INC(U$3:U$60, 0.4), \"0.00\"), \" but more than or equal to \", TEXT(_xlfn.PERCENTILE.INC(U$3:U$60, 0.2), \"0.00\"))","v":"Less than 1.55 but more than or equal to 1.51"},8,"Above 105 to 190",12,null,{"$f":"_xlfn.CONCAT(\"More than \", TEXT(QUARTILE(Z$3:Z$60, 3), \"0.00%\"))","v":"More than 73.63%"},12,{"$f":"_xlfn.CONCAT(\"More than \", TEXT(QUARTILE(AB$3:AB$60, 3), \"0.00%\"))","v":"More than 1.11%"},12,"Maximum total points awarded: 25",{"$f":"_xlfn.CONCAT(\"More than \", TEXT(QUARTILE(AE$3:AE$60, 3), \"0.00%\"))","v":"More than 44.44%"},12,{"$f":"_xlfn.CONCAT(\"Less than \", TEXT(QUARTILE(AG$3:AG$60, 1), \"0.00%\"))","v":"Less than 2.85%"},12,"Maximum total points awarded: 25",{"$f":"_xlfn.CONCAT(\"Less than \", TEXT(_xlfn.PERCENTILE.INC(AJ$3:AJ$60, 0.4), \"0.00\"), \" but more than or equal to \", TEXT(_xlfn.PERCENTILE.INC(AJ$3:AJ$60, 0.2), \"0.00\"))","v":"Less than 1.55 but more than or equal to 1.51"},4]
[null,null,null,null,null,null,null,null,null,null,null,null,null,null,null,null,null,null,null,null,{"$f":"_xlfn.CONCAT(\"Less than \", TEXT(_xlfn.PERCENTILE.INC(U$3:U$60, 0.2), \"0.00\"))","v":"Less than 1.51"},10,"Above 190",15,null,null,null,null,null,null,null,null,null,null,null,{"$f":"_xlfn.CONCAT(\"Less than \", TEXT(_xlfn.PERCENTILE.INC(AJ$3:AJ$60, 0.2), \"0.00\"))","v":"Less than 1.51"},5,"Maximum total points awarded: 25"]
[null,null,null,null,null,null,null,null,null,null,null,null,null,null,null,null,null,null,null,null,null,null,"No response",3,"Maximum total points awarded: 25"]

{"sheet":"Certification & Legal","index":14,"n_rows":39,"n_cols":37,"rows_kept":39,"cut":false,"hidden":false,"merged":[[38,0,38,8],[38,10,38,18],[38,20,38,33],[33,0,33,35],[33,36,33,37],[34,0,34,37],[35,0,35,2],[35,3,35,10],[35,11,35,30],[35,31,35,35],[35,36,35,37],[36,0,36,37],[37,0,37,8],[37,10,37,18],[37,20,37,33],[37,35,37,37],[30,0,30,35],[30,36,30,37],[31,0,31,35],[31,36,31,37],[32,0,32,35],[32,36,32,37],[29,0,29,35],[29,36,29,37],[23,0,23,35],[23,36,23,37],[24,0,24,35],[24,36,24,37],[25,0,25,35],[25,36,25,37],[26,0,26,37],[27,0,27,35],[27,36,27,37],[28,0,28,35],[28,36,28,37],[19,0,19,37],[20,0,20,37],[21,0,21,35],[21,36,21,37],[22,0,22,35],[22,36,22,37],[18,0,18,37],[11,0,11,8],[11,10,11,18],[11,20,11,33],[11,35,11,37],[12,0,12,8],[12,10,12,18],[12,20,12,33],[13,0,13,37],[14,0,14,37],[15,0,15,37],[16,0,16,37],[17,0,17,37],[10,0,10,37],[0,0,0,34],[0,35,0,37],[1,0,1,37],[2,0,2,37],[3,0,3,37],[4,0,4,37],[5,0,5,37],[6,0,6,37],[7,0,7,37],[8,0,8,37],[9,0,9,37]]}
["Certification & Legal Status",null,null,null,null,null,null,null,null,null,null,null,null,null,null,null,null,null,null,null,null,null,null,null,null,null,null,null,null,null,null,null,null,null,null,{"$f":"'CalHome Coverpage'!A5","v":"2021-08-06"}]
["Certification"]
["On behalf of the entity identified in the signature block below, I certify that:"]
["1. The information, statements and attachments included in this application are, to the best of my knowledge and belief, true and correct."]
["2. I possess the legal authority to submit this application on behalf of the entity identified in the signature block."]
["3. The following is a complete disclosure of all identities of interest - of all persons or entities, including affiliates, that will provide goods or services to the Project either (a) in one or more capacity or (b) that qualify as a \"Related Party\" to any person or entity that will provide goods or services to the project. \"Related Party\" is defined in Section 10302 of the California Code of Regulations (CTCAC Regulations): "]
[]
["4. As of the date of application, the Project, or the real property on which the Project is proposed (Property) is not part to or the subject of any claim or action at the State or Federal appellate level."]
["5. I have disclosed and described below any claim or action undertaken which affects or potentially affects the feasibility of the Project."]
["In addition, I acknowledge that all information in this application and attachments is public, and may be disclosed by the State."]
[]
["     "]
["Printed Name",null,null,null,null,null,null,null,null,null,"Title of Signatory",null,null,null,null,null,null,null,null,null,"Signature",null,null,null,null,null,null,null,null,null,null,null,null,null,null,null,"Date"]
["Legal Disclosure"]
["Public entity applicants without an ownership interest in the proposed project, including but not limited to cities, counties, and joint powers authorities with 100 or more members, are not required to respond to this questionnaire. "]
["For purposes of the following questions, and with the exceptions noted below, the term “applicant” shall include the applicant and joint applicant, and any subsidiary of the applicant or joint applicant if the subsidiary is involved in (for example, as a guarantor) or will be benefited by the application or the project. "]
["In addition to each of these entities themselves, the term “applicant” shall also include the direct and indirect holders of more than ten percent (10%) of the ownership interests in the entity, as well as the officers, directors, principals and senior executives of the entity if the entity is a corporation, the general and limited partners of the entity if the entity is a partnership, and the members or managers of the entity if the entity is a limited liability company. For projects using tax-exempt bonds, it shall also include the individual who will be executing the bond purchase agreement."]
["The following questions must be responded to for each entity and person qualifying as an \"applicant,\" or \"joint applicant\" as defined above.  "]
["Explain all positive responses on a separate sheet and include with this questionnaire in the application."]
["Members of the boards of directors of non-profit corporations, including officers of the boards, are also not required to respond. However, chief executive officers (Executive Directors, Chief Executive Officers, Presidents or their equivalent) must respond, as must chief financial officers (Treasurers, Chief Financial Officers, or their equivalent)."]
["Civil Matters"]
["1. Has the applicant filed a bankruptcy or receivership case or had a bankruptcy or receivership action commenced against it, defaulted on a loan or been foreclosed against in past ten years? "]
["2. Is the applicant currently a party to, or been notified that it may become a party to, any civil litigation that may materially and adversely affect (a) the financial condition of the applicant’s business, or (b) the project that is the subject of the application?"]
["3. Have there been any administrative or civil settlements, decisions, or judgments against the applicant within the past ten years that materially and adversely affected (a) the financial condition of the applicant’s business, or (b) the project that is the subject of the application?"]
["4. Is the applicant currently subject to, or been notified that it may become subject to, any civil or administrative proceeding, examination, or investigation by a local, state or federal licensing or accreditation agency, a local, state or federal taxing authority, or a local, state or federal regulatory or enforcement agency? "]
["5. In the past ten years, has the applicant been subject to any civil or administrative proceeding, examination, or investigation by a local, state or federal licensing or accreditation agency, a local, state or federal taxing authority, or a local, state or federal regulatory or enforcement agency that resulted in a settlement, decision, or judgment? "]
["Criminal Matters"]
["6. Is the applicant currently a party to, or the subject of, or been notified that it may become a party to or the subject of, any criminal litigation, proceeding, charge, complaint, examination or investigation, of any kind, involving, or that could result in, felony charges against the applicant? "]
["7. Is the applicant currently a party to, or the subject of, or been notified that it may become a party to or the subject of, any criminal litigation, proceeding, charge, complaint, examination or investigation, of any kind, involving, or that could result in, misdemeanor charges against the applicant for matters relating to the conduct of the applicant’s business? "]
["8. Is the applicant currently a party to, or the subject of, or been notified that it may become a party to or the subject of, any criminal litigation, proceeding, charge, complaint, examination or investigation, of any kind, involving, or that could result in, criminal charges (whether felony or misdemeanor) against the applicant for any financial or fraud related crime? "]
["9. Is the applicant currently a party to, or the subject of, or been notified that it may become a party to or the subject of, any criminal litigation, proceeding, charge, complaint, examination or investigation, of any kind, that could materially affect the financial condition of the applicant’s business?"]
["10. Within the past ten years, has the applicant been convicted of any felony? "]
["11. Within the past ten years, has the applicant been convicted of any misdemeanor related to the conduct of the applicant’s business?  "]
["12. Within the past ten years, has the applicant been convicted of any misdemeanor for any financial or fraud related crime? "]
["Please provide a letter of explanation if you responded \"Yes\" to any of the questions above."]
["File Name:",null,null,"Cert. Letter of Explanation",null,null,null,null,null,null,null,"'Letter of explanation for any \"red\" shaded cells above. ",null,null,null,null,null,null,null,null,null,null,null,null,null,null,null,null,null,null,null,"Uploaded to HCD?"]
[]
["     "]
["Printed Name",null,null,null,null,null,null,null,null,null,"Title of Signatory",null,null,null,null,null,null,null,null,null,"Signature",null,null,null,null,null,null,null,null,null,null,null,null,null,null,null,"Date"]

{"sheet":"CalHome2021scoring","index":15,"n_rows":68,"n_cols":38,"rows_kept":68,"cut":false,"hidden":false,"merged":[[66,0,67,19],[66,25,67,34],[0,35,0,37],[0,1,0,9],[0,10,0,18],[0,20,0,24],[0,25,0,29],[0,30,0,34]]}
[null,"Community Need: MA/SHTA/ADU/PDL/SHP",null,null,null,null,null,null,null,null,"Community Need: OOR",null,null,null,null,null,null,null,null,null,"Feasibility: MA",null,null,null,null,"Feasibility: OOR & ADU/JADU",null,null,null,null,"Feasibility: Shared Housing TA",null,null,null,null,"Feasibility: PDL/Self-Help TA"]
["Jurisdiction","Housing Affordability","Points Awarded","Percent of Low-Income Renter households","Points Awarded","Percent of Overcrowded Renter households","Points Awarded","Rental Vacancy Rate","Points Awarded","Total Points Awarded","Age of Housing Stock","Points Awarded","Percent of Homeowners in Poverty","Points Awarded","Percent of Low-Income Homeowners","Points Awarded","Percent of Overcrowded Homeowners","Points Awarded","Total Points Awarded",null,"Median Owner Costs / Median Renter Costs Ratio","Points Awarded","Ratio Area Home Sales/ Proposed # of Loans","Points Awarded","Total Points Awarded","Age of Housing Stock","Points Awarded","Percent of Overcrowded Homeowners","Points Awarded","Total Points Awarded","Renters <=80%AMI with Severe Cost Burden","Points Awarded","Rental Vacancy Rate","Points Awarded","Total Points Awarded","Median Owner Costs / Median Renter Costs Ratio","Points Awarded","Total Points Awarded"]
["Alameda",10.35031847133758,3,0.54494119406892172,1,4.231409285540659E-2,4,2.5705020768053633E-2,4,{"$f":"MIN(15,C3+E3+G3+I3)","v":12},0.79643952073708846,4,2.3403283900096387E-2,1,0.24069746241691944,1,7.7569489334195219E-3,3,{"$f":"MIN(15,L3+N3+P3+R3)","v":9},null,1.6310517529215358,4,{"$f":"IF('Applicant and Activity'!$G$28=A3,'Mortgage Asst MA - Article 4'!$Y$40,0)","v":0},{"$f":"IF(W3>=190,15,IF(W3>=105,12,IF(W3>=49,9,IF(W3>=21,6,3))))","v":3},{"$f":"X3+V3","v":7},0.79643952073708846,12,7.7569489334195219E-3,9,{"$f":"1+AA3+AC3","v":22},0.42176777381279168,9,2.5705020768053633E-2,12,{"$f":"1+AF3+AH3","v":22},1.6310517529215358,2,{"$f":"20+AK3","v":22}]
["Alpine",15,4,0.6,3,0,1,0.5,1,{"$f":"MIN(15,C4+E4+G4+I4)","v":9},0.72108843537414968,3,5.5837563451776651E-2,3,0.31372549019607843,3,1.5686274509803921E-2,4,{"$f":"MIN(15,L4+N4+P4+R4)","v":13},null,3.4851301115241635,2,{"$f":"IF('Applicant and Activity'!$G$28=A4,'Mortgage Asst MA - Article 4'!$Y$40,0)","v":0},{"$f":"IF(W4>=190,15,IF(W4>=105,12,IF(W4>=49,9,IF(W4>=21,6,3))))","v":3},{"$f":"X4+V4","v":5},0.72108843537414968,9,1.5686274509803921E-2,12,{"$f":"1+AA4+AC4","v":22},0.26666666666666666,3,0.5,3,{"$f":"1+AF4+AH4","v":7},3.4851301115241635,1,{"$f":"20+AK4","v":21}]
["Amador",5.8576874205844982,2,0.62327718223583461,3,1.225114854517611E-3,1,0.10178817056396149,1,7,0.62651141961486789,2,3.6675126903553297E-2,2,0.30448717948717946,3,4.120879120879121E-3,1,8,null,1.6083408884859474,6,{"$f":"IF('Applicant and Activity'!$G$28=A5,'Mortgage Asst MA - Article 4'!$Y$40,0)","v":0},3,9,0.62651141961486789,6,4.120879120879121E-3,3,10,0.43734643734643736,9,0.10178817056396149,3,13,1.6083408884859474,3,23]
["Butte",6.1951909476661955,2,0.62816702052370843,3,1.2455767869780608E-2,2,6.8924617817606754E-2,1,8,0.68303828654308474,3,4.9737688762644561E-2,3,0.29963614908053887,3,4.8185662307011507E-3,2,11,null,1.5471698113207548,8,{"$f":"IF('Applicant and Activity'!$G$28=A6,'Mortgage Asst MA - Article 4'!$Y$40,0)","v":0},3,11,0.68303828654308474,9,4.8185662307011507E-3,6,16,0.48287516899504279,12,6.8924617817606754E-2,3,16,1.5471698113207548,4,24]
["Calaveras",5.9764993880048962,2,0.64819587628865982,4,7.7319587628865982E-3,1,6.6185318892900122E-2,1,8,0.50687011311014951,1,3.7784734967073304E-2,2,0.36898779612347454,4,6.1019382627422831E-3,2,9,null,1.4122479462285287,10,{"$f":"IF('Applicant and Activity'!$G$28=A7,'Mortgage Asst MA - Article 4'!$Y$40,0)","v":0},3,13,0.50687011311014951,3,6.1019382627422831E-3,6,10,0.38767395626242546,6,6.6185318892900122E-2,3,10,1.4122479462285287,5,25]
["Colusa",15,4,0.54257425742574261,1,4.5544554455445543E-2,4,4.5368620037807186E-2,2,11,0.66598639455782316,2,2.6307831871787118E-2,1,0.26216814159292035,1,9.9557522123893804E-3,3,7,null,1.7885264341957254,2,{"$f":"IF('Applicant and Activity'!$G$28=A8,'Mortgage Asst MA - Article 4'!$Y$40,0)","v":0},3,5,0.66598639455782316,6,9.9557522123893804E-3,9,16,0.33576642335766421,3,4.5368620037807186E-2,6,10,1.7885264341957254,1,21]
["Contra Costa",7.8821656050955413,3,0.55827969790542797,1,2.5782209159566947E-2,2,2.8376229034123773E-2,4,10,0.7174113524231106,3,2.7071255375834439E-2,1,0.26745689655172411,1,4.9373040752351098E-3,2,7,null,1.5090709180868609,8,{"$f":"IF('Applicant and Activity'!$G$28=A9,'Mortgage Asst MA - Article 4'!$Y$40,0)","v":0},3,11,0.7174113524231106,9,4.9373040752351098E-3,6,16,0.43189390910302544,9,2.8376229034123773E-2,12,22,1.5090709180868609,4,24]
["Del Norte",5.0707213578500712,1,0.61058344640434192,3,2.9850746268656716E-2,3,1.8641810918774968E-2,4,11,0.63510282161645149,2,6.368038740920097E-2,4,0.41451209341117595,4,6.672226855713094E-3,2,12,null,1.5945330296127562,6,{"$f":"IF('Applicant and Activity'!$G$28=A10,'Mortgage Asst MA - Article 4'!$Y$40,0)","v":0},3,9,0.63510282161645149,6,6.672226855713094E-3,6,13,0.4,6,1.8641810918774968E-2,12,19,1.5945330296127562,3,23]
["El Dorado",7.7058177826564211,3,0.60861481251936789,3,9.9163309575457086E-3,1,5.3110328638497656E-2,1,8,0.57287441860465116,1,3.3680358070179779E-2,2,0.28103946102021177,2,3.1761308950914342E-3,1,6,null,1.8103174603174603,2,{"$f":"IF('Applicant and Activity'!$G$28=A11,'Mortgage Asst MA - Article 4'!$Y$40,0)","v":0},3,5,0.57287441860465116,3,3.1761308950914342E-3,3,7,0.34470468431771895,3,5.3110328638497656E-2,3,7,1.8103174603174603,1,21]
["Fresno",5.3041018387553045,1,0.63916798871849112,3,3.9097479287854751E-2,4,3.9288738357324299E-2,2,10,0.59177816772684066,1,7.0478335866919761E-2,4,0.269625,2,1.0500000000000001E-2,3,10,null,1.6342685370741483,4,{"$f":"IF('Applicant and Activity'!$G$28=A12,'Mortgage Asst MA - Article 4'!$Y$40,0)","v":0},3,7,0.59177816772684066,3,1.0500000000000001E-2,9,13,0.44340871483728628,9,3.9288738357324299E-2,6,16,1.6342685370741483,2,22]
["Glenn",4.3847241867043847,1,0.6330166270783848,3,9.5011876484560574E-3,1,1.2895662368112544E-2,4,9,0.70941883767535074,3,3.0890498508734553E-2,2,0.33711790393013102,4,1.7467248908296944E-3,1,10,null,1.8179640718562875,2,{"$f":"IF('Applicant and Activity'!$G$28=A13,'Mortgage Asst MA - Article 4'!$Y$40,0)","v":0},3,5,0.70941883767535074,9,1.7467248908296944E-3,3,13,0.39212007504690433,6,1.2895662368112544E-2,12,19,1.8179640718562875,1,21]
["Humboldt",5.833333333333333,2,0.64138077988493503,4,1.4702748774770935E-2,2,3.1172584640792735E-2,3,11,0.73704871613359935,4,5.3810567324080835E-2,3,0.30672131147540982,3,1.1147540983606558E-2,4,14,null,1.7757390417940877,2,{"$f":"IF('Applicant and Activity'!$G$28=A14,'Mortgage Asst MA - Article 4'!$Y$40,0)","v":0},3,5,0.73704871613359935,12,1.1147540983606558E-2,12,25,0.4511627906976744,12,3.1172584640792735E-2,9,22,1.7757390417940877,1,21]
["Imperial",15,4,0.68156424581005581,4,3.4281361097003554E-2,3,4.0448343079922025E-2,2,13,0.48199265942804709,1,8.9808077355081312E-2,4,0.34032542638698293,4,2.2544599098216034E-2,4,13,null,1.7566265060240964,2,{"$f":"IF('Applicant and Activity'!$G$28=A15,'Mortgage Asst MA - Article 4'!$Y$40,0)","v":0},3,5,0.48199265942804709,3,2.2544599098216034E-2,12,16,0.36847988077496274,3,4.0448343079922025E-2,6,10,1.7566265060240964,1,21]
["Inyo",15,4,0.57461406518010294,2,3.4305317324185248E-3,1,5.2032520325203252E-2,2,9,0.80687932359723291,4,5.0115207373271888E-2,3,0.33561643835616439,4,7.8277886497064581E-4,1,12,null,2.0380848748639826,2,{"$f":"IF('Applicant and Activity'!$G$28=A16,'Mortgage Asst MA - Article 4'!$Y$40,0)","v":0},3,5,0.80687932359723291,12,7.8277886497064581E-4,3,16,0.28955223880597014,3,5.2032520325203252E-2,6,10,2.0380848748639826,1,21]
["Kern",4.5968882602545973,1,0.60521907784536721,3,3.7688442211055273E-2,3,5.3843266463694375E-2,1,8,0.56381304187770542,1,7.993586247873613E-2,4,0.29693530828357473,2,9.7977765315211303E-3,3,10,null,1.5613496932515338,6,{"$f":"IF('Applicant and Activity'!$G$28=A17,'Mortgage Asst MA - Article 4'!$Y$40,0)","v":0},3,9,0.56381304187770542,3,9.7977765315211303E-3,9,13,0.41347414420975964,6,5.3843266463694375E-2,3,10,1.5613496932515338,3,23]
["Kings",4.172560113154173,1,0.59020807833537337,2,2.8886168910648716E-2,3,3.2219853115375501E-2,3,9,0.54031584040821712,1,6.6790758786817034E-2,4,0.26020524515393384,1,1.3683010262257697E-2,4,10,null,1.4737373737373738,10,{"$f":"IF('Applicant and Activity'!$G$28=A18,'Mortgage Asst MA - Article 4'!$Y$40,0)","v":0},3,13,0.54031584040821712,3,1.3683010262257697E-2,12,16,0.35338034010783909,3,3.2219853115375501E-2,9,13,1.4737373737373738,5,25]
["Lake",4.7383309759547387,1,0.6854433909648634,4,1.5616285554935862E-2,2,5.4324894514767935E-2,1,8,0.69813314547375838,3,8.7665744538777068E-2,4,0.39976958525345624,4,7.7764976958525347E-3,3,14,null,1.5961145194274029,6,{"$f":"IF('Applicant and Activity'!$G$28=A19,'Mortgage Asst MA - Article 4'!$Y$40,0)","v":0},3,9,0.69813314547375838,9,7.7764976958525347E-3,9,19,0.402766476810415,6,5.4324894514767935E-2,3,10,1.5961145194274029,3,23]
["Lassen",3.3926592797783934,1,0.55451713395638624,1,1.2461059190031153E-3,1,6.0029282576866766E-2,1,4,0.69362041467304625,3,6.1389700921969867E-2,4,0.31380417335473515,3,1.6051364365971107E-3,1,11,null,1.5156903765690377,8,{"$f":"IF('Applicant and Activity'!$G$28=A20,'Mortgage Asst MA - Article 4'!$Y$40,0)","v":0},3,11,0.69362041467304625,9,1.6051364365971107E-3,3,13,0.40168539325842695,6,6.0029282576866766E-2,3,10,1.5156903765690377,4,24]
["Los Angeles",9.9514999999999993,3,0.65852139990520719,4,7.5579063682281317E-2,4,3.2351121339093812E-2,3,14,0.87188354712948068,4,4.1900827508774337E-2,3,0.34870881037315726,4,1.522449937680388E-2,4,15,null,1.710958904109589,4,{"$f":"IF('Applicant and Activity'!$G$28=A21,'Mortgage Asst MA - Article 4'!$Y$40,0)","v":0},3,7,0.87188354712948068,12,1.522449937680388E-2,12,25,0.43870923779955451,9,3.2351121339093812E-2,9,19,1.710958904109589,2,22]
["Madera",5.0565770862800568,1,0.6708445240226798,4,5.2820053715308866E-2,4,4.2024013722126927E-2,2,11,0.5150841095509523,1,6.641440501043841E-2,4,0.30433212996389891,3,1.1191335740072202E-2,4,12,null,1.529585798816568,8,{"$f":"IF('Applicant and Activity'!$G$28=A22,'Mortgage Asst MA - Article 4'!$Y$40,0)","v":0},3,11,0.5150841095509523,3,1.1191335740072202E-2,12,16,0.3318505338078292,3,4.2024013722126927E-2,6,10,1.529585798816568,4,24]
["Marin",11.447192513368984,4,0.59640479360852194,2,3.5419440745672437E-2,3,2.3534000780132621E-2,4,13,0.86692989644639795,4,2.1286529849954369E-2,1,0.29838769596552495,2,3.6406865294598412E-3,1,8,null,1.7636539391010151,2,{"$f":"IF('Applicant and Activity'!$G$28=A23,'Mortgage Asst MA - Article 4'!$Y$40,0)","v":0},3,5,0.86692989644639795,12,3.6406865294598412E-3,3,16,0.42308551015851753,9,2.3534000780132621E-2,12,22,1.7636539391010151,1,21]
["Mariposa",5.7949080622347946,2,0.55632183908045973,1,6.8965517241379309E-3,1,0.1553398058252427,1,5,0.60057361376673035,2,5.6410256410256411E-2,3,0.31273764258555131,3,3.8022813688212928E-3,1,9,null,1.7857911733046286,2,{"$f":"IF('Applicant and Activity'!$G$28=A24,'Mortgage Asst MA - Article 4'!$Y$40,0)","v":0},3,5,0.60057361376673035,6,3.8022813688212928E-3,3,10,0.45867768595041325,12,0.1553398058252427,3,16,1.7857911733046286,1,21]
["Mendocino",8.2390381895332396,3,0.62616487455197134,3,2.1863799283154121E-2,2,2.8213166144200628E-2,4,12,0.76561059628353789,4,5.8599695585996953E-2,4,0.31487889273356401,3,8.4033613445378148E-3,3,14,null,1.6631762652705062,4,{"$f":"IF('Applicant and Activity'!$G$28=A25,'Mortgage Asst MA - Article 4'!$Y$40,0)","v":0},3,7,0.76561059628353789,12,8.4033613445378148E-3,9,22,0.44819690898683456,12,2.8213166144200628E-2,12,25,1.6631762652705062,2,22]
["Merced",5.0919377652050919,1,0.62514781237682304,3,3.0876363158586256E-2,3,3.9015151515151517E-2,2,9,0.54884555568847948,1,6.6733158037900087E-2,4,0.31743720422278848,3,1.2983861181895401E-2,4,12,null,1.4622918707149852,10,{"$f":"IF('Applicant and Activity'!$G$28=A26,'Mortgage Asst MA - Article 4'!$Y$40,0)","v":0},3,13,0.54884555568847948,3,1.2983861181895401E-2,12,16,0.37095418242959227,3,3.9015151515151517E-2,6,10,1.4622918707149852,5,25]
["Modoc",15,4,0.68020304568527923,4,4.0609137055837565E-3,1,0,4,13,0.6938700147710487,3,6.7775723967960569E-2,4,0.4463276836158192,4,3.766478342749529E-3,1,12,null,1.602510460251046,6,{"$f":"IF('Applicant and Activity'!$G$28=A27,'Mortgage Asst MA - Article 4'!$Y$40,0)","v":0},3,9,0.6938700147710487,9,3.766478342749529E-3,3,13,0.32686567164179103,3,0,12,16,1.602510460251046,3,23]
["Mono",10.129310344827585,3,0.413953488372093,1,2.3255813953488372E-2,2,0.36296296296296299,1,7,0.66786179921773137,2,1.9740552735476594E-2,1,0.27272727272727271,2,0,1,6,null,1.5348258706467661,8,{"$f":"IF('Applicant and Activity'!$G$28=A28,'Mortgage Asst MA - Article 4'!$Y$40,0)","v":0},3,11,0.66786179921773137,6,0,3,10,0.1853932584269663,3,0.36296296296296299,3,7,1.5348258706467661,4,24]
["Monterey",10.569852941176471,4,0.56344155321034395,1,8.4910980423749297E-2,4,4.8520619346926259E-2,2,11,0.75295839753466876,4,3.3125878337683198E-2,2,0.26661448140900196,1,1.5968688845401174E-2,4,11,null,1.5150501672240804,8,{"$f":"IF('Applicant and Activity'!$G$28=A29,'Mortgage Asst MA - Article 4'!$Y$40,0)","v":0},3,11,0.75295839753466876,12,1.5968688845401174E-2,12,25,0.39462396339719757,6,4.8520619346926259E-2,6,13,1.5150501672240804,4,24]
["Napa",8.75,3,0.53841901603095632,1,3.1232725262576009E-2,3,5.114083398898505E-2,2,9,0.734173167924287,3,2.6706889667716605E-2,1,0.27120012921983522,2,5.6533677919560653E-3,2,8,null,1.5676470588235294,6,{"$f":"IF('Applicant and Activity'!$G$28=A30,'Mortgage Asst MA - Article 4'!$Y$40,0)","v":0},3,9,0.734173167924287,9,5.6533677919560653E-3,6,16,0.39014373716632444,6,5.114083398898505E-2,6,13,1.5676470588235294,3,23]
["Nevada",6.1255411255411252,2,0.56388088376560996,2,8.6455331412103754E-3,1,3.9224734656206739E-2,2,7,0.67376962659981532,2,3.6230853132261584E-2,2,0.31175979983319435,3,7.6730608840700583E-3,2,9,null,1.6590730557737627,4,{"$f":"IF('Applicant and Activity'!$G$28=A31,'Mortgage Asst MA - Article 4'!$Y$40,0)","v":0},3,7,0.67376962659981532,6,7.6730608840700583E-3,6,13,0.44463373083475299,12,3.9224734656206739E-2,6,19,1.6590730557737627,2,22]
["Orange",10.665417057169634,4,0.61806725095950044,3,5.9185427049321192E-2,4,3.2241969997671663E-2,3,14,0.76114616511443511,4,3.0315394699146622E-2,2,0.32194376008835274,4,1.0118086823549401E-2,3,13,null,1.5043149946062568,10,{"$f":"IF('Applicant and Activity'!$G$28=A32,'Mortgage Asst MA - Article 4'!$Y$40,0)","v":0},3,13,0.76114616511443511,12,1.0118086823549401E-2,9,22,0.43490027433825162,9,3.2241969997671663E-2,9,19,1.5043149946062568,5,25]
["Placer",7.3600439077936333,3,0.50977480821578813,1,1.4600346448898788E-2,2,5.2853627094808391E-2,1,7,0.42209449585971748,1,3.2432779310787398E-2,2,0.23508736182568388,1,2.4960521623962101E-3,1,5,null,1.5415045395590143,8,{"$f":"IF('Applicant and Activity'!$G$28=A33,'Mortgage Asst MA - Article 4'!$Y$40,0)","v":0},3,11,0.42209449585971748,3,2.4960521623962101E-3,3,7,0.45364077669902914,12,5.2853627094808391E-2,3,16,1.5415045395590143,4,24]
["Plumas",5.4035567715458273,1,0.64977973568281944,4,0,1,6.7761806981519512E-2,1,7,0.67218973359324241,2,2.6502230385725533E-2,1,0.32003325020781381,3,0,1,7,null,1.668122270742358,4,{"$f":"IF('Applicant and Activity'!$G$28=A34,'Mortgage Asst MA - Article 4'!$Y$40,0)","v":0},3,7,0.67218973359324241,6,0,3,10,0.40677966101694918,6,6.7761806981519512E-2,3,10,1.668122270742358,2,22]
["Riverside",7.419354838709677,3,0.56492658726173495,2,3.292024022335148E-2,3,5.6689213512950226E-2,1,9,0.49409078811670382,1,5.6408349420057638E-2,3,0.29291903455130835,2,1.0858056569934528E-2,3,9,null,1.4494545454545456,10,{"$f":"IF('Applicant and Activity'!$G$28=A35,'Mortgage Asst MA - Article 4'!$Y$40,0)","v":0},3,13,0.49409078811670382,3,1.0858056569934528E-2,9,13,0.48919149541349644,12,5.6689213512950226E-2,3,16,1.4494545454545456,5,25]
["Sacramento",5.7628979143798027,2,0.62960616619153209,3,2.1539436173582515E-2,2,4.3468600399943443E-2,2,9,0.65139851921494885,2,4.1644876522516486E-2,2,0.29557192447718228,2,6.0621454576242489E-3,2,8,null,1.5375399361022364,8,{"$f":"IF('Applicant and Activity'!$G$28=A36,'Mortgage Asst MA - Article 4'!$Y$40,0)","v":0},3,11,0.65139851921494885,6,6.0621454576242489E-3,6,13,0.41358376656045615,6,4.3468600399943443E-2,6,13,1.5375399361022364,4,24]
["San Benito",8.761742006615215,3,0.54853985793212312,1,4.8934490923441203E-2,4,1.7829457364341085E-2,4,12,0.52483988229184697,1,2.7296049256028732E-2,1,0.23773075191355245,1,1.6659162539396668E-2,4,7,null,1.6397394136807817,4,{"$f":"IF('Applicant and Activity'!$G$28=A37,'Mortgage Asst MA - Article 4'!$Y$40,0)","v":0},3,7,0.52483988229184697,3,1.6659162539396668E-2,12,16,0.36402877697841729,3,1.7829457364341085E-2,12,16,1.6397394136807817,2,22]
["San Bernardino",5.612903225806452,2,0.58028429310107543,2,3.6863731985922972E-2,3,4.9218633168835055E-2,2,9,0.67438814981553119,3,5.8394568375113379E-2,3,0.29480410473018709,2,1.1317791676820187E-2,4,12,null,1.4169914263445051,10,{"$f":"IF('Applicant and Activity'!$G$28=A38,'Mortgage Asst MA - Article 4'!$Y$40,0)","v":0},3,13,0.67438814981553119,9,1.1317791676820187E-2,12,22,0.46837201423005254,12,4.9218633168835055E-2,6,19,1.4169914263445051,5,25]
["San Diego",9.0956887486855944,3,0.58553947129230088,2,3.7227681091476193E-2,3,3.6016011215229099E-2,3,11,0.71307973284630666,3,3.0649401399694482E-2,2,0.29215218664335607,2,7.205356915530133E-3,2,9,null,1.5548854041013269,6,{"$f":"IF('Applicant and Activity'!$G$28=A39,'Mortgage Asst MA - Article 4'!$Y$40,0)","v":0},3,9,0.71307973284630666,9,7.205356915530133E-3,6,16,0.44001633986928107,9,3.6016011215229099E-2,9,19,1.5548854041013269,3,23]
["San Francisco",13.03475935828877,4,0.51426920341394022,1,4.8141891891891893E-2,4,2.7178966031697983E-2,4,13,0.86357797693758764,4,2.466357964303572E-2,1,0.33099170465585531,4,1.3526642253942157E-2,4,13,null,1.9245382585751978,2,{"$f":"IF('Applicant and Activity'!$G$28=A40,'Mortgage Asst MA - Article 4'!$Y$40,0)","v":0},3,5,0.86357797693758764,12,1.3526642253942157E-2,12,25,0.35214798167516637,3,2.7178966031697983E-2,12,16,1.9245382585751978,1,21]
["San Joaquin",6.8666666666666663,2,0.57224325006308352,2,2.8160484481453446E-2,3,4.5428268619327486E-2,2,9,0.55137962741174018,1,4.7164948453608246E-2,3,0.24660279793161502,1,9.6604802180622912E-3,3,8,null,1.5786423841059603,6,{"$f":"IF('Applicant and Activity'!$G$28=A41,'Mortgage Asst MA - Article 4'!$Y$40,0)","v":0},3,9,0.55137962741174018,3,9.6604802180622912E-3,9,13,0.44986330364229649,12,4.5428268619327486E-2,6,19,1.5786423841059603,3,23]
["San Luis Obispo",8.1697341513292425,3,0.58716361038342457,2,2.2386282448201952E-2,2,2.8234205045128441E-2,4,11,0.63326078960274645,2,3.5541950981017367E-2,2,0.27541633624107853,2,4.5995241871530533E-3,1,7,null,1.5928184281842819,6,{"$f":"IF('Applicant and Activity'!$G$28=A42,'Mortgage Asst MA - Article 4'!$Y$40,0)","v":0},3,9,0.63326078960274645,6,4.5995241871530533E-3,3,10,0.44818495234232408,12,2.8234205045128441E-2,12,25,1.5928184281842819,3,23]
["San Mateo",15.207219251336898,4,0.55391621993453199,1,6.1862517197210497E-2,4,3.0360182161092968E-2,3,12,0.88033530335618726,4,2.2806614983691999E-2,1,0.31109335038363173,3,9.0792838874680301E-3,3,11,null,1.5254749568221071,8,{"$f":"IF('Applicant and Activity'!$G$28=A43,'Mortgage Asst MA - Article 4'!$Y$40,0)","v":0},3,11,0.88033530335618726,12,9.0792838874680301E-3,9,22,0.41640972935936965,9,3.0360182161092968E-2,9,19,1.5254749568221071,4,24]
["Santa Barbara",10.377358490566039,4,0.59064114693253766,2,6.8845062222545661E-2,4,2.9932933286268972E-2,3,13,0.80196194614523664,4,2.7610333692142087E-2,1,0.28283096534324792,2,1.1884211924047271E-2,4,11,null,1.4388314059646987,10,{"$f":"IF('Applicant and Activity'!$G$28=A44,'Mortgage Asst MA - Article 4'!$Y$40,0)","v":0},3,13,0.80196194614523664,12,1.1884211924047271E-2,12,25,0.45391818629866931,12,2.9932933286268972E-2,9,22,1.4388314059646987,5,25]
["Santa Clara",11.566424322538005,4,0.49489110223318666,1,4.9137470773422683E-2,4,3.3608511546809952E-2,3,12,0.79459713933620413,4,2.2276587565092789E-2,1,0.26338595293494771,1,7.9556379139787935E-3,3,9,null,1.4907407407407407,10,{"$f":"IF('Applicant and Activity'!$G$28=A45,'Mortgage Asst MA - Article 4'!$Y$40,0)","v":0},3,13,0.79459713933620413,12,7.9556379139787935E-3,9,22,0.43034113314236822,9,3.3608511546809952E-2,9,19,1.4907407407407407,5,25]
["Santa Cruz",10.500446827524575,4,0.66299130885977431,4,5.526008561421715E-2,4,1.8086867914915296E-2,4,15,0.81063567345946042,4,3.3343256921702889E-2,2,0.30479031409019125,3,7.1065099140200034E-3,2,11,null,1.6453115899825277,4,{"$f":"IF('Applicant and Activity'!$G$28=A46,'Mortgage Asst MA - Article 4'!$Y$40,0)","v":0},3,7,0.81063567345946042,12,7.1065099140200034E-3,6,19,0.48131481119154762,12,1.8086867914915296E-2,12,25,1.6453115899825277,2,22]
["Shasta",5.1626591230551631,1,0.62523683213338388,3,1.7241379310344827E-2,2,3.0848329048843187E-2,3,9,0.64387020286291385,2,5.5616481278395739E-2,3,0.30706429300374194,3,4.762444721623767E-3,1,9,null,1.5332050048123196,8,{"$f":"IF('Applicant and Activity'!$G$28=A47,'Mortgage Asst MA - Article 4'!$Y$40,0)","v":0},3,11,0.64387020286291385,6,4.762444721623767E-3,3,10,0.45090909090909093,12,3.0848329048843187E-2,9,22,1.5332050048123196,4,24]
["Sierra",15,4,0.65306122448979587,4,0,1,0,4,13,0.7283702213279678,3,1.6442451420029897E-2,1,0.39896373056994816,4,0,1,9,null,1.5689300411522633,6,{"$f":"IF('Applicant and Activity'!$G$28=A48,'Mortgage Asst MA - Article 4'!$Y$40,0)","v":0},3,9,0.7283702213279678,9,0,3,13,0.375,6,0,12,19,1.5689300411522633,3,23]
["Siskiyou",4.2432814710042432,1,0.67378048780487809,4,1.2195121951219513E-2,1,2.5983667409057165E-2,4,10,0.71524502358302022,3,7.3802115743621652E-2,4,0.37936571657968687,4,6.0216780409474103E-3,2,13,null,1.5525700934579438,6,{"$f":"IF('Applicant and Activity'!$G$28=A49,'Mortgage Asst MA - Article 4'!$Y$40,0)","v":0},3,9,0.71524502358302022,9,6.0216780409474103E-3,6,16,0.38800904977375567,6,2.5983667409057165E-2,12,19,1.5525700934579438,3,23]
["Solano",5.7905337361530718,2,0.53883330507037475,1,2.4419196201458368E-2,2,4.176145596360091E-2,2,7,0.66162410878034483,2,2.6310135918992852E-2,1,0.25463905861054537,1,5.7139624349400314E-3,2,6,null,1.3618090452261307,10,{"$f":"IF('Applicant and Activity'!$G$28=A50,'Mortgage Asst MA - Article 4'!$Y$40,0)","v":0},3,13,0.66162410878034483,6,5.7139624349400314E-3,6,13,0.47395751376868606,12,4.176145596360091E-2,6,19,1.3618090452261307,5,25]
["Sonoma",7.9864472410454983,3,0.52955599734923786,1,2.9953611663353214E-2,3,2.8895038290752302E-2,3,10,0.73999295490278627,4,2.4190670718952641E-2,1,0.25543146322310445,1,6.0204170665735975E-3,2,8,null,1.5058605798889575,10,{"$f":"IF('Applicant and Activity'!$G$28=A51,'Mortgage Asst MA - Article 4'!$Y$40,0)","v":0},3,13,0.73999295490278627,12,6.0204170665735975E-3,6,19,0.48191715680140157,12,2.8895038290752302E-2,9,22,1.5058605798889575,5,25]
["Stanislaus",6.082036775106082,2,0.5799279254776637,2,2.2710274019174543E-2,2,3.7247970672951033E-2,3,9,0.61807986000636339,2,4.627556731454157E-2,3,0.25743941098271805,1,1.0992944063810206E-2,3,9,null,1.4735930735930736,10,{"$f":"IF('Applicant and Activity'!$G$28=A52,'Mortgage Asst MA - Article 4'!$Y$40,0)","v":0},3,13,0.61807986000636339,6,1.0992944063810206E-2,9,16,0.44366279751436277,9,3.7247970672951033E-2,9,19,1.4735930735930736,5,25]
["Sutter",5.2666666666666666,1,0.57519884309472158,2,3.5068691250903831E-2,3,3.2867132867132866E-2,3,9,0.57359732469876323,1,4.6242363972155136E-2,3,0.24707164260419504,1,7.6273494960501223E-3,2,7,null,1.6234269119070668,4,{"$f":"IF('Applicant and Activity'!$G$28=A53,'Mortgage Asst MA - Article 4'!$Y$40,0)","v":0},3,7,0.57359732469876323,3,7.6273494960501223E-3,6,10,0.33940917661847897,3,3.2867132867132866E-2,9,13,1.6234269119070668,2,22]
["Tehama",4.5049504950495045,1,0.71915167095115684,4,2.1850899742930592E-2,2,5.410334346504559E-2,1,8,0.61291342566242968,2,8.7765474677799965E-2,4,0.34044556008785692,4,1.1295889551302165E-2,4,14,null,1.6181192660550459,6,{"$f":"IF('Applicant and Activity'!$G$28=A54,'Mortgage Asst MA - Article 4'!$Y$40,0)","v":0},3,9,0.61291342566242968,6,1.1295889551302165E-2,12,19,0.37533512064343161,6,5.410334346504559E-2,3,10,1.6181192660550459,3,23]
["Trinity",15,4,0.78005865102639294,4,5.8651026392961877E-3,1,2.0114942528735632E-2,4,13,0.70241876374297585,3,6.0965954077593032E-2,4,0.38696808510638298,4,1.1968085106382979E-2,4,15,null,1.8197747183979975,2,{"$f":"IF('Applicant and Activity'!$G$28=A55,'Mortgage Asst MA - Article 4'!$Y$40,0)","v":0},3,5,0.70241876374297585,9,1.1968085106382979E-2,12,22,0.37518796992481201,6,2.0114942528735632E-2,12,19,1.8197747183979975,1,21]
["Tulare",4.7383309759547387,1,0.67737028899780294,4,3.557546053743451E-2,3,3.4353325173398612E-2,3,11,0.60153931985900133,2,9.2802543679342236E-2,4,0.34281013491280027,4,1.5531424810793023E-2,4,14,null,1.5074309978768579,8,{"$f":"IF('Applicant and Activity'!$G$28=A56,'Mortgage Asst MA - Article 4'!$Y$40,0)","v":0},3,11,0.60153931985900133,6,1.5531424810793023E-2,12,19,0.36926147704590817,3,3.4353325173398612E-2,9,13,1.5074309978768579,4,24]
["Tuolumne",5.4738095238095239,2,0.56607929515418498,2,1.0279001468428781E-2,1,5.9392265193370167E-2,1,6,0.68751169025500347,3,5.0669663763229372E-2,3,0.28880983182406211,2,2.5873221216041399E-3,1,9,null,1.732408325074331,2,{"$f":"IF('Applicant and Activity'!$G$28=A57,'Mortgage Asst MA - Article 4'!$Y$40,0)","v":0},3,5,0.68751169025500347,9,2.5873221216041399E-3,3,13,0.41374837872892345,9,5.9392265193370167E-2,3,13,1.732408325074331,1,21]
["Ventura",8.5020242914979764,3,0.5915266176914562,2,4.3322934487269801E-2,4,3.468039634738683E-2,3,12,0.75822846927687615,4,2.8005994291867793E-2,2,0.28922545113662995,2,7.7923599718771972E-3,3,11,null,1.445382882882883,10,{"$f":"IF('Applicant and Activity'!$G$28=A58,'Mortgage Asst MA - Article 4'!$Y$40,0)","v":0},3,13,0.75822846927687615,12,7.7923599718771972E-3,9,22,0.42420891459680166,9,3.468039634738683E-2,9,19,1.445382882882883,5,25]
["Yolo",6.6594594594594598,2,0.66576280861995152,4,2.1121735407449695E-2,2,2.5587539980531218E-2,4,12,0.59757275218582806,1,3.1072774815770705E-2,2,0.25892620999735522,1,7.9344088865379529E-3,3,7,null,1.6805135951661632,4,{"$f":"IF('Applicant and Activity'!$G$28=A59,'Mortgage Asst MA - Article 4'!$Y$40,0)","v":0},3,7,0.59757275218582806,3,7.9344088865379529E-3,9,13,0.4304394426580922,9,2.5587539980531218E-2,12,22,1.6805135951661632,2,22]
["Yuba",5.7346666666666666,2,0.60610263522884877,3,3.8834951456310676E-2,4,4.5875606528451698E-2,2,11,0.54746676699272634,1,4.6243753705428985E-2,3,0.26717557251908397,1,7.6335877862595417E-3,2,7,null,1.6736526946107784,4,{"$f":"IF('Applicant and Activity'!$G$28=A60,'Mortgage Asst MA - Article 4'!$Y$40,0)","v":0},3,7,0.54746676699272634,3,7.6335877862595417E-3,6,10,0.37299771167048057,3,4.5875606528451698E-2,6,10,1.6736526946107784,2,22]
["Scoring thresholds"]
[null,"Ratio of single-family value limit to AMI","Points Awarded","Percent of Low-Income Renter Households","Points Awarded","Percent of Overcrowded Renter Households","Points Awarded","Rental Vacancy Rate","Points Awarded",null,"Percent of housing units over 30 yrs old","Points Awarded","Percent of homeowners in poverty","Points Awarded","Percent of homeowners <=80% AMI","Points Awarded","Percent of overcrowded homeowners","Points Awarded",null,null,"Median Owner Costs / Median Renter Costs Ratio","Points Awarded","Area Home Sales/ Proposed # of Loans","Points Awarded",null,"Percent of housing units over 30 yrs old","Points Awarded","Percent of overcrowded homeowners","Points Awarded",null,"Percent of renters <=80%AMI with severe cost burden","Points Awarded","Rental Vacancy Rate","Points Awarded",null,"Median Owner Costs / Median Renter Costs Ratio","Points Awarded"]
[null,{"$f":"_xlfn.CONCAT(\"Less than or equal to \", TEXT(QUARTILE(B$3:B$60, 1), \"0.00\"))","v":"Less than or equal to 5.42"},1,{"$f":"_xlfn.CONCAT(\"Less than or equal to \", TEXT(QUARTILE(D$3:D$60, 1), \"0.00%\"))","v":"Less than or equal to 56.36%"},1,{"$f":"_xlfn.CONCAT(\"Less than or equal to \", TEXT(QUARTILE(F$3:F$60, 1), \"0.00%\"))","v":"Less than or equal to 1.23%"},1,{"$f":"_xlfn.CONCAT(\"More than \", TEXT(QUARTILE(H$3:H$60, 3), \"0.00%\"))","v":"More than 5.26%"},1,"Minimum total points awarded: 4",{"$f":"_xlfn.CONCAT(\"Less than or equal to \", TEXT(QUARTILE(K$3:K$60, 1), \"0.00%\"))","v":"Less than or equal to 59.83%"},1,{"$f":"_xlfn.CONCAT(\"Less than or equal to \", TEXT(QUARTILE(M$3:M$60, 1), \"0.00%\"))","v":"Less than or equal to 2.77%"},1,{"$f":"_xlfn.CONCAT(\"Less than or equal to \", TEXT(QUARTILE(O$3:O$60, 1), \"0.00%\"))","v":"Less than or equal to 26.80%"},1,{"$f":"_xlfn.CONCAT(\"Less than or equal to \", TEXT(QUARTILE(Q$3:Q$60, 1), \"0.00%\"))","v":"Less than or equal to 0.48%"},1,"Minimum total points awarded: 4",null,{"$f":"_xlfn.CONCAT(\"More than \", TEXT(_xlfn.PERCENTILE.INC(U$3:U$60, 0.8), \"0.00\"))","v":"More than 1.72"},2,"Up to 21",3,"Minimum total points awarded: 5",{"$f":"_xlfn.CONCAT(\"Less than or equal to \", TEXT(QUARTILE(Z$3:Z$60, 1), \"0.00%\"))","v":"Less than or equal to 59.83%"},3,{"$f":"_xlfn.CONCAT(\"Less than or equal to \", TEXT(QUARTILE(AB$3:AB$60, 1), \"0.00%\"))","v":"Less than or equal to 0.48%"},3,"Minimum total points awarded: 5",{"$f":"_xlfn.CONCAT(\"Less than or equal to \", TEXT(QUARTILE(AE$3:AE$60, 1), \"0.00%\"))","v":"Less than or equal to 37.35%"},3,{"$f":"_xlfn.CONCAT(\"More than \", TEXT(QUARTILE(AG$3:AG$60, 3), \"0.00%\"))","v":"More than 5.26%"},3,"Minimum total points awarded: 5",{"$f":"_xlfn.CONCAT(\"More than \", TEXT(_xlfn.PERCENTILE.INC(AJ$3:AJ$60, 0.8), \"0.00\"))","v":"More than 1.72"},1,"Minimum total points awarded: 5"]
[null,{"$f":"_xlfn.CONCAT(\"More than \", TEXT(QUARTILE(B$3:B$60, 1), \"0.00\"), \" but less than or equal to \", TEXT(QUARTILE(B$3:B$60, 2), \"0.00\"))","v":"More than 5.42 but less than or equal to 7.11"},2,{"$f":"_xlfn.CONCAT(\"More than \", TEXT(QUARTILE(D$3:D$60, 1), \"0.00%\"), \" but less than or equal to \", TEXT(QUARTILE(D$3:D$60, 2), \"0.00%\"))","v":"More than 56.36% but less than or equal to 59.82%"},2,{"$f":"_xlfn.CONCAT(\"More than \", TEXT(QUARTILE(F$3:F$60, 1), \"0.00%\"), \" but less than or equal to \", TEXT(QUARTILE(F$3:F$60, 2), \"0.00%\"))","v":"More than 1.23% but less than or equal to 2.70%"},2,{"$f":"_xlfn.CONCAT(\"Less than \", TEXT(QUARTILE(H$3:H$60, 3), \"0.00%\"), \" but more than or equal to \", TEXT(QUARTILE(H$3:H$60, 2), \"0.00%\"))","v":"Less than 5.26% but more than or equal to 3.81%"},2,null,{"$f":"_xlfn.CONCAT(\"More than \", TEXT(QUARTILE(K$3:K$60, 1), \"0.00%\"), \" but less than or equal to \", TEXT(QUARTILE(K$3:K$60, 2), \"0.00%\"))","v":"More than 59.83% but less than or equal to 67.41%"},2,{"$f":"_xlfn.CONCAT(\"More than \", TEXT(QUARTILE(M$3:M$60, 1), \"0.00%\"), \" but less than or equal to \", TEXT(QUARTILE(M$3:M$60, 2), \"0.00%\"))","v":"More than 2.77% but less than or equal to 4.18%"},2,{"$f":"_xlfn.CONCAT(\"More than \", TEXT(QUARTILE(O$3:O$60, 1), \"0.00%\"), \" but less than or equal to \", TEXT(QUARTILE(O$3:O$60, 2), \"0.00%\"))","v":"More than 26.80% but less than or equal to 29.90%"},2,{"$f":"_xlfn.CONCAT(\"More than \", TEXT(QUARTILE(Q$3:Q$60, 1), \"0.00%\"), \" but less than or equal to \", TEXT(QUARTILE(Q$3:Q$60, 2), \"0.00%\"))","v":"More than 0.48% but less than or equal to 0.77%"},2,null,null,{"$f":"_xlfn.CONCAT(\"Less than \", TEXT(_xlfn.PERCENTILE.INC(U$3:U$60, 0.8), \"0.00\"), \" but more than or equal to \", TEXT(_xlfn.PERCENTILE.INC(U$3:U$60, 0.6), \"0.00\"))","v":"Less than 1.72 but more than or equal to 1.62"},4,"Above 21 to 49",6,null,{"$f":"_xlfn.CONCAT(\"More than \", TEXT(QUARTILE(Z$3:Z$60, 1), \"0.00%\"), \" but less than or equal to \", TEXT(QUARTILE(Z$3:Z$60, 2), \"0.00%\"))","v":"More than 59.83% but less than or equal to 67.41%"},6,{"$f":"_xlfn.CONCAT(\"More than \", TEXT(QUARTILE(AB$3:AB$60, 1), \"0.00%\"), \" but less than or equal to \", TEXT(QUARTILE(AB$3:AB$60, 2), \"0.00%\"))","v":"More than 0.48% but less than or equal to 0.77%"},6,null,{"$f":"_xlfn.CONCAT(\"More than \", TEXT(QUARTILE(AE$3:AE$60, 1), \"0.00%\"), \" but less than or equal to \", TEXT(QUARTILE(AE$3:AE$60, 2), \"0.00%\"))","v":"More than 37.35% but less than or equal to 41.37%"},6,{"$f":"_xlfn.CONCAT(\"Less than \", TEXT(QUARTILE(AG$3:AG$60, 3), \"0.00%\"), \" but more than or equal to \", TEXT(QUARTILE(AG$3:AG$60, 2), \"0.00%\"))","v":"Less than 5.26% but more than or equal to 3.81%"},6,null,{"$f":"_xlfn.CONCAT(\"Less than \", TEXT(_xlfn.PERCENTILE.INC(AJ$3:AJ$60, 0.8), \"0.00\"), \" but more than or equal to \", TEXT(_xlfn.PERCENTILE.INC(AJ$3:AJ$60, 0.6), \"0.00\"))","v":"Less than 1.72 but more than or equal to 1.62"},2]
[null,{"$f":"_xlfn.CONCAT(\"More than \", TEXT(QUARTILE(B$3:B$60, 2), \"0.00\"), \" but less than or equal to \", TEXT(QUARTILE(B$3:B$60, 3), \"0.00\"))","v":"More than 7.11 but less than or equal to 10.37"},3,{"$f":"_xlfn.CONCAT(\"More than \", TEXT(QUARTILE(D$3:D$60, 2), \"0.00%\"), \" but less than or equal to \", TEXT(QUARTILE(D$3:D$60, 3), \"0.00%\"))","v":"More than 59.82% but less than or equal to 64.08%"},3,{"$f":"_xlfn.CONCAT(\"More than \", TEXT(QUARTILE(F$3:F$60, 2), \"0.00%\"), \" but less than or equal to \", TEXT(QUARTILE(F$3:F$60, 3), \"0.00%\"))","v":"More than 2.70% but less than or equal to 3.85%"},3,{"$f":"_xlfn.CONCAT(\"Less than \", TEXT(QUARTILE(H$3:H$60, 2), \"0.00%\"), \" but more than or equal to \", TEXT(QUARTILE(H$3:H$60, 1), \"0.00%\"))","v":"Less than 3.81% but more than or equal to 2.85%"},3,null,{"$f":"_xlfn.CONCAT(\"More than \", TEXT(QUARTILE(K$3:K$60, 2), \"0.00%\"), \" but less than or equal to \", TEXT(QUARTILE(K$3:K$60, 3), \"0.00%\"))","v":"More than 67.41% but less than or equal to 73.63%"},3,{"$f":"_xlfn.CONCAT(\"More than \", TEXT(QUARTILE(M$3:M$60, 2), \"0.00%\"), \" but less than or equal to \", TEXT(QUARTILE(M$3:M$60, 3), \"0.00%\"))","v":"More than 4.18% but less than or equal to 5.85%"},3,{"$f":"_xlfn.CONCAT(\"More than \", TEXT(QUARTILE(O$3:O$60, 2), \"0.00%\"), \" but less than or equal to \", TEXT(QUARTILE(O$3:O$60, 3), \"0.00%\"))","v":"More than 29.90% but less than or equal to 32.15%"},3,{"$f":"_xlfn.CONCAT(\"More than \", TEXT(QUARTILE(Q$3:Q$60, 2), \"0.00%\"), \" but less than or equal to \", TEXT(QUARTILE(Q$3:Q$60, 3), \"0.00%\"))","v":"More than 0.77% but less than or equal to 1.11%"},3,null,null,{"$f":"_xlfn.CONCAT(\"Less than \", TEXT(_xlfn.PERCENTILE.INC(U$3:U$60, 0.6), \"0.00\"), \" but more than or equal to \", TEXT(_xlfn.PERCENTILE.INC(U$3:U$60, 0.4), \"0.00\"))","v":"Less than 1.62 but more than or equal to 1.55"},6,"Above 49 to 105",9,null,{"$f":"_xlfn.CONCAT(\"More than \", TEXT(QUARTILE(Z$3:Z$60, 2), \"0.00%\"), \" but less than or equal to \", TEXT(QUARTILE(Z$3:Z$60, 3), \"0.00%\"))","v":"More than 67.41% but less than or equal to 73.63%"},9,{"$f":"_xlfn.CONCAT(\"More than \", TEXT(QUARTILE(AB$3:AB$60, 2), \"0.00%\"), \" but less than or equal to \", TEXT(QUARTILE(AB$3:AB$60, 3), \"0.00%\"))","v":"More than 0.77% but less than or equal to 1.11%"},9,null,{"$f":"_xlfn.CONCAT(\"More than \", TEXT(QUARTILE(AE$3:AE$60, 2), \"0.00%\"), \" but less than or equal to \", TEXT(QUARTILE(AE$3:AE$60, 3), \"0.00%\"))","v":"More than 41.37% but less than or equal to 44.44%"},9,{"$f":"_xlfn.CONCAT(\"Less than \", TEXT(QUARTILE(AG$3:AG$60, 2), \"0.00%\"), \" but more than or equal to \", TEXT(QUARTILE(AG$3:AG$60, 1), \"0.00%\"))","v":"Less than 3.81% but more than or equal to 2.85%"},9,null,{"$f":"_xlfn.CONCAT(\"Less than \", TEXT(_xlfn.PERCENTILE.INC(AJ$3:AJ$60, 0.6), \"0.00\"), \" but more than or equal to \", TEXT(_xlfn.PERCENTILE.INC(AJ$3:AJ$60, 0.4), \"0.00\"))","v":"Less than 1.62 but more than or equal to 1.55"},3]
[null,{"$f":"_xlfn.CONCAT(\"More than \", TEXT(QUARTILE(B$3:B$60, 3), \"0.00\"))","v":"More than 10.37"},4,{"$f":"_xlfn.CONCAT(\"More than \", TEXT(QUARTILE(D$3:D$60, 3), \"0.00%\"))","v":"More than 64.08%"},4,{"$f":"_xlfn.CONCAT(\"More than \", TEXT(QUARTILE(F$3:F$60, 3), \"0.00%\"))","v":"More than 3.85%"},4,{"$f":"_xlfn.CONCAT(\"Less than \", TEXT(QUARTILE(H$3:H$60, 1), \"0.00%\"))","v":"Less than 2.85%"},4,"Maximum total points awarded: 15",{"$f":"_xlfn.CONCAT(\"More than \", TEXT(QUARTILE(K$3:K$60, 3), \"0.00%\"))","v":"More than 73.63%"},4,{"$f":"_xlfn.CONCAT(\"More than \", TEXT(QUARTILE(M$3:M$60, 3), \"0.00%\"))","v":"More than 5.85%"},4,{"$f":"_xlfn.CONCAT(\"More than \", TEXT(QUARTILE(O$3:O$60, 3), \"0.00%\"))","v":"More than 32.15%"},4,{"$f":"_xlfn.CONCAT(\"More than \", TEXT(QUARTILE(Q$3:Q$60, 3), \"0.00%\"))","v":"More than 1.11%"},4,"Maximum total points awarded: 15",null,{"$f":"_xlfn.CONCAT(\"Less than \", TEXT(_xlfn.PERCENTILE.INC(U$3:U$60, 0.4), \"0.00\"), \" but more than or equal to \", TEXT(_xlfn.PERCENTILE.INC(U$3:U$60, 0.2), \"0.00\"))","v":"Less than 1.55 but more than or equal to 1.51"},8,"Above 105 to 190",12,null,{"$f":"_xlfn.CONCAT(\"More than \", TEXT(QUARTILE(Z$3:Z$60, 3), \"0.00%\"))","v":"More than 73.63%"},12,{"$f":"_xlfn.CONCAT(\"More than \", TEXT(QUARTILE(AB$3:AB$60, 3), \"0.00%\"))","v":"More than 1.11%"},12,"Maximum total points awarded: 25",{"$f":"_xlfn.CONCAT(\"More than \", TEXT(QUARTILE(AE$3:AE$60, 3), \"0.00%\"))","v":"More than 44.44%"},12,{"$f":"_xlfn.CONCAT(\"Less than \", TEXT(QUARTILE(AG$3:AG$60, 1), \"0.00%\"))","v":"Less than 2.85%"},12,"Maximum total points awarded: 25",{"$f":"_xlfn.CONCAT(\"Less than \", TEXT(_xlfn.PERCENTILE.INC(AJ$3:AJ$60, 0.4), \"0.00\"), \" but more than or equal to \", TEXT(_xlfn.PERCENTILE.INC(AJ$3:AJ$60, 0.2), \"0.00\"))","v":"Less than 1.55 but more than or equal to 1.51"},4]
[null,null,null,null,null,null,null,null,null,null,null,null,null,null,null,null,null,null,null,null,{"$f":"_xlfn.CONCAT(\"Less than \", TEXT(_xlfn.PERCENTILE.INC(U$3:U$60, 0.2), \"0.00\"))","v":"Less than 1.51"},10,"Above 190",15,null,null,null,null,null,null,null,null,null,null,null,{"$f":"_xlfn.CONCAT(\"Less than \", TEXT(_xlfn.PERCENTILE.INC(AJ$3:AJ$60, 0.2), \"0.00\"))","v":"Less than 1.51"},5,"Maximum total points awarded: 25"]
[null,null,null,null,null,null,null,null,null,null,null,null,null,null,null,null,null,null,null,null,null,null,"No response",3,"Maximum total points awarded: 25"]

{"sheet":"Application Support","index":16,"n_rows":31,"n_cols":43,"rows_kept":31,"cut":false,"hidden":false,"merged":[[3,0,3,3],[3,4,3,14],[3,15,3,16],[3,17,3,27],[3,28,3,31],[3,32,3,37],[0,0,0,34],[0,35,0,37],[1,0,1,37],[2,0,2,2],[2,3,2,21],[2,22,2,25],[2,26,2,29],[2,30,2,33],[2,34,2,37],[4,0,4,37],[5,0,5,1],[5,2,5,4],[5,5,5,8],[5,9,5,14],[5,15,5,16],[5,17,5,28],[5,29,5,31],[5,32,5,34],[5,35,5,37],[6,29,6,31],[6,32,6,34],[6,35,6,37],[7,0,7,1],[7,2,7,4],[7,5,7,8],[7,9,7,14],[7,15,7,16],[7,17,7,28],[7,29,7,31],[6,0,6,1],[6,2,6,4],[6,5,6,8],[6,9,6,14],[6,15,6,16],[6,17,6,28],[7,32,7,34],[7,35,7,37],[8,0,8,1],[8,2,8,4],[8,5,8,8],[8,9,8,14],[8,15,8,16],[8,17,8,28],[8,29,8,31],[8,32,8,34],[8,35,8,37],[9,0,9,1],[9,2,9,4],[9,5,9,8],[9,9,9,14],[9,15,9,16],[9,17,9,28],[9,29,9,31],[9,32,9,34],[9,35,9,37],[10,29,10,31],[10,32,10,34],[10,35,10,37],[11,0,11,1],[11,2,11,4],[11,5,11,8],[11,9,11,14],[11,15,11,16],[11,17,11,28],[11,29,11,31],[10,0,10,1],[10,2,10,4],[10,5,10,8],[10,9,10,14],[10,15,10,16],[10,17,10,28],[11,32,11,34],[11,35,11,37],[12,0,12,1],[12,2,12,4],[12,5,12,8],[12,9,12,14],[12,15,12,16],[12,17,12,28],[12,29,12,31],[12,32,12,34],[12,35,12,37],[13,0,13,1],[13,2,13,4],[13,5,13,8],[13,9,13,14],[13,15,13,16],[13,17,13,28],[13,29,13,31],[13,32,13,34],[13,35,13,37],[14,29,14,31],[14,32,14,34],[14,35,14,37],[15,0,15,1],[15,2,15,4],[15,5,15,8],[15,9,15,14],[15,15,15,16],[15,17,15,28],[15,29,15,31],[14,0,14,1],[14,2,14,4],[14,5,14,8],[14,9,14,14],[14,15,14,16],[14,17,14,28],[15,32,15,34],[15,35,15,37],[16,0,16,1],[16,2,16,4],[16,5,16,8],[16,9,16,14],[16,15,16,16],[16,17,16,28],[16,29,16,31],[16,32,16,34],[16,35,16,37],[17,0,17,1],[17,2,17,4],[17,5,17,8],[17,9,17,14],[17,15,17,16],[17,17,17,28],[17,29,17,31],[17,32,17,34],[17,35,17,37],[18,29,18,31],[18,32,18,34],[18,35,18,37],[19,0,19,1],[19,2,19,4],[19,5,19,8],[19,9,19,14],[19,15,19,16],[19,17,19,28],[19,29,19,31],[18,0,18,1],[18,2,18,4],[18,5,18,8],[18,9,18,14],[18,15,18,16],[18,17,18,28],[19,32,19,34],[19,35,19,37],[20,0,20,1],[20,2,20,4],[20,5,20,8],[20,9,20,14],[20,15,20,16],[20,17,20,28],[20,29,20,31],[20,32,20,34],[20,35,20,37],[21,0,21,1],[21,2,21,4],[21,5,21,8],[21,9,21,14],[21,15,21,16],[21,17,21,28],[21,29,21,31],[21,32,21,34],[21,35,21,37],[22,29,22,31],[22,32,22,34],[22,35,22,37],[23,0,23,1],[23,2,23,4],[23,5,23,8],[23,9,23,14],[23,15,23,16],[23,17,23,28],[23,29,23,31],[22,0,22,1],[22,2,22,4],[22,5,22,8],[22,9,22,14],[22,15,22,16],[22,17,22,28],[23,32,23,34],[23,35,23,37],[24,0,24,1],[24,2,24,4],[24,5,24,8],[24,9,24,14],[24,15,24,16],[24,17,24,28],[24,29,24,31],[24,32,24,34],[24,35,24,37],[25,0,25,1],[25,2,25,4],[25,5,25,8],[25,9,25,14],[25,15,25,16],[25,17,25,28],[25,29,25,31],[25,32,25,34],[25,35,25,37],[26,29,26,31],[26,32,26,34],[26,35,26,37],[27,0,27,1],[27,2,27,4],[27,5,27,8],[27,9,27,14],[27,15,27,16],[27,17,27,28],[27,29,27,31],[26,0,26,1],[26,2,26,4],[26,5,26,8],[26,9,26,14],[26,15,26,16],[26,17,26,28],[27,32,27,34],[27,35,27,37],[28,0,28,1],[28,2,28,4],[28,5,28,8],[28,9,28,14],[28,15,28,16],[28,17,28,28],[28,29,28,31],[28,32,28,34],[28,35,28,37],[29,0,29,1],[29,2,29,4],[29,5,29,8],[29,9,29,14],[29,15,29,16],[29,17,29,28],[29,29,29,31],[29,32,29,34],[29,35,29,37],[30,29,30,31],[30,32,30,34],[30,35,30,37],[30,0,30,1],[30,2,30,4],[30,5,30,8],[30,9,30,14],[30,15,30,16],[30,17,30,28]]}
["Application Development Team (ADT) Support Form",null,null,null,null,null,null,null,null,null,null,null,null,null,null,null,null,null,null,null,null,null,null,null,null,null,null,null,null,null,null,null,null,null,null,{"$f":"'CalHome Coverpage'!A5","v":"2021-08-06"}]
["Please complete the \"yellow\" cells in the form below and email a copy to: AppSupport@hcd.ca.gov. A member of the Application Development Team will respond to your request ASAP. "]
["Full Name:",null,null,null,null,null,null,null,null,null,null,null,null,null,null,null,null,null,null,null,null,null,"Date Requested:",null,null,null,null,null,null,null,"Application Version Date:"]
["Organization:",null,null,null,null,null,null,null,null,null,null,null,null,null,null,"Email:",null,null,null,null,null,null,null,null,null,null,null,null,"Contact Phone:"]
["Justification:"]
["Issue #",null,"Program Name & Round",null,null,"Tab",null,null,null,"Section",null,null,null,null,null,"Cell#",null,"Update/Comment",null,null,null,null,null,null,null,null,null,null,null,"Urgency ",null,null,"ADT Status",null,null,"Status Date",null,null,"Requestor","Email","Phone","App Version"]
[1,null,"CalHome",null,null,null,null,null,null,null,null,null,null,null,null,null,null,null,null,null,null,null,null,null,null,null,null,null,null,null,null,null,null,null,null,null,null,null,{"$f":"IF(C7=\"\",\"\",$D$3)","v":0},{"$f":"IF(C7=\"\",\"\",$R$4)","v":0},{"$f":"IF(C7=\"\",\"\",$AG$4)","v":0},{"$f":"IF(C7=\"\",\"\",$AI$3)","v":"00:00:00"},"CalHome Coverpage"]
[2,null,"CalHome",null,null,null,null,null,null,null,null,null,null,null,null,null,null,null,null,null,null,null,null,null,null,null,null,null,null,null,null,null,null,null,null,null,null,null,0,0,{"$f":"IF(C8=\"\",\"\",$AG$4)","v":0},{"$f":"IF(C8=\"\",\"\",$AI$3)","v":"00:00:00"},"Applicant and Activity"]
[3,null,"CalHome",null,null,null,null,null,null,null,null,null,null,null,null,null,null,null,null,null,null,null,null,null,null,null,null,null,null,null,null,null,null,null,null,null,null,null,0,0,{"$f":"IF(C9=\"\",\"\",$AG$4)","v":0},{"$f":"IF(C9=\"\",\"\",$AI$3)","v":"00:00:00"},"Mortgage Asst MA - Article 4"]
[4,null,"CalHome",null,null,null,null,null,null,null,null,null,null,null,null,null,null,null,null,null,null,null,null,null,null,null,null,null,null,null,null,null,null,null,null,null,null,null,0,0,{"$f":"IF(C10=\"\",\"\",$AG$4)","v":0},{"$f":"IF(C10=\"\",\"\",$AI$3)","v":"00:00:00"},"OOR - Article 5"]
[5,null,"CalHome",null,null,null,null,null,null,null,null,null,null,null,null,null,null,null,null,null,null,null,null,null,null,null,null,null,null,null,null,null,null,null,null,null,null,null,0,0,{"$f":"IF(C11=\"\",\"\",$AG$4)","v":0},{"$f":"IF(C11=\"\",\"\",$AI$3)","v":"00:00:00"},"Shared Hsng SHP - Article 7"]
[6,null,"CalHome",null,null,null,null,null,null,null,null,null,null,null,null,null,null,null,null,null,null,null,null,null,null,null,null,null,null,null,null,null,null,null,null,null,null,null,0,0,0,"00:00:00","ADU-JADU - Article 8"]
[7,null,"CalHome",null,null,null,null,null,null,null,null,null,null,null,null,null,null,null,null,null,null,null,null,null,null,null,null,null,null,null,null,null,null,null,null,null,null,null,0,0,0,"00:00:00","Self-Help SHTA - Article 6"]
[8,null,"CalHome",null,null,null,null,null,null,null,null,null,null,null,null,null,null,null,null,null,null,null,null,null,null,null,null,null,null,null,null,null,null,null,null,null,null,null,0,0,0,"00:00:00","Develop Project PDL - Article 9"]
[9,null,"CalHome",null,null,null,null,null,null,null,null,null,null,null,null,null,null,null,null,null,null,null,null,null,null,null,null,null,null,null,null,null,null,null,null,null,null,null,0,0,0,"00:00:00","PDL Env & Land Use - Article 9"]
[10,null,"CalHome",null,null,null,null,null,null,null,null,null,null,null,null,null,null,null,null,null,null,null,null,null,null,null,null,null,null,null,null,null,null,null,null,null,null,null,0,0,0,"00:00:00","Certification & Legal"]
[11,null,"CalHome",null,null,null,null,null,null,null,null,null,null,null,null,null,null,null,null,null,null,null,null,null,null,null,null,null,null,null,null,null,null,null,null,null,null,null,0,0,0,"00:00:00"]
[12,null,"CalHome",null,null,null,null,null,null,null,null,null,null,null,null,null,null,null,null,null,null,null,null,null,null,null,null,null,null,null,null,null,null,null,null,null,null,null,0,0,0,"00:00:00"]
[13,null,"CalHome",null,null,null,null,null,null,null,null,null,null,null,null,null,null,null,null,null,null,null,null,null,null,null,null,null,null,null,null,null,null,null,null,null,null,null,0,0,0,"00:00:00"]
[14,null,"CalHome",null,null,null,null,null,null,null,null,null,null,null,null,null,null,null,null,null,null,null,null,null,null,null,null,null,null,null,null,null,null,null,null,null,null,null,0,0,0,"00:00:00"]
[15,null,"CalHome",null,null,null,null,null,null,null,null,null,null,null,null,null,null,null,null,null,null,null,null,null,null,null,null,null,null,null,null,null,null,null,null,null,null,null,0,0,0,"00:00:00"]
[16,null,"CalHome",null,null,null,null,null,null,null,null,null,null,null,null,null,null,null,null,null,null,null,null,null,null,null,null,null,null,null,null,null,null,null,null,null,null,null,0,0,0,"00:00:00"]
[17,null,"CalHome",null,null,null,null,null,null,null,null,null,null,null,null,null,null,null,null,null,null,null,null,null,null,null,null,null,null,null,null,null,null,null,null,null,null,null,0,0,0,"00:00:00"]
[18,null,"CalHome",null,null,null,null,null,null,null,null,null,null,null,null,null,null,null,null,null,null,null,null,null,null,null,null,null,null,null,null,null,null,null,null,null,null,null,0,0,0,"00:00:00"]
[19,null,"CalHome",null,null,null,null,null,null,null,null,null,null,null,null,null,null,null,null,null,null,null,null,null,null,null,null,null,null,null,null,null,null,null,null,null,null,null,0,0,0,"00:00:00"]
[20,null,"CalHome",null,null,null,null,null,null,null,null,null,null,null,null,null,null,null,null,null,null,null,null,null,null,null,null,null,null,null,null,null,null,null,null,null,null,null,0,0,0,"00:00:00"]
[21,null,"CalHome",null,null,null,null,null,null,null,null,null,null,null,null,null,null,null,null,null,null,null,null,null,null,null,null,null,null,null,null,null,null,null,null,null,null,null,0,0,0,"00:00:00"]
[22,null,"CalHome",null,null,null,null,null,null,null,null,null,null,null,null,null,null,null,null,null,null,null,null,null,null,null,null,null,null,null,null,null,null,null,null,null,null,null,0,0,0,"00:00:00"]
[23,null,"CalHome",null,null,null,null,null,null,null,null,null,null,null,null,null,null,null,null,null,null,null,null,null,null,null,null,null,null,null,null,null,null,null,null,null,null,null,0,0,0,"00:00:00"]
[24,null,"CalHome",null,null,null,null,null,null,null,null,null,null,null,null,null,null,null,null,null,null,null,null,null,null,null,null,null,null,null,null,null,null,null,null,null,null,null,0,0,0,"00:00:00"]
[25,null,"CalHome",null,null,null,null,null,null,null,null,null,null,null,null,null,null,null,null,null,null,null,null,null,null,null,null,null,null,null,null,null,null,null,null,null,null,null,0,0,0,"00:00:00"]

{"sheet":"Dropdowns","index":17,"n_rows":16,"n_cols":10,"rows_kept":16,"cut":false,"hidden":true,"merged":[]}
["First-Time Homebuyer for Mortgage Assistance (Article 4)","Homeownership Development Project Loans (Article 9)","Technical Assistance for Self-Help Housing Projects (Article 6)","DR-4344","Applying for funds in a county in which it has developed a homeownership project within the county the last four years","OOR - other than accessory dwelling units or manufactured housing units","Fee Title",null,"Townhouse","Conventional"]
["Owner-Occupied Rehabilitation (Article 5)",null,null,"DR-4353","Applying for funds in a county in which it has operated a housing program within the county the last four years","OOR - accessory dwelling units","Option to Purchase","Mortgage Assistance Programs (Article 4)","Single Family","FHA"]
["Technical Assistance for Shared Housing Programs (Article 7)",null,null,"DR-4382","Applicant has an existing 523 Self-Help Technical Assistance Grant Agreement with United States Department of Agriculture (USDA)","OOR - junior accessory dwelling units","Disposition and Development Agreement (DDA)","Mortgage Assistance Programs (Article 4) & Owner-Occupied Rehabilitation Programs (Article 5)","Condominium","CalHFA"]
[null,null,null,"DR-4407",null,"OOR - manufactured housing","Sales Contract","Mortgage Assistance Programs (Article 4) & Technical Assistance for Shared Housing Programs (Article 7)","Duplex/Triplex","USDA-Rural Development"]
[null,null,null,null,null,null,"Leasehold Interest","Mortgage Assistance Programs (Article 4) & ADU/JADU Programs (Article 8)","Manufactured Housing","Federal HOME"]
[null,null,null,null,null,null,"Other (Describe Below)","Owner-Occupied Rehabilitation Programs (Article 5)","Other (describe in narrative below)","Redevelopment Agency"]
[null,null,null,null,null,null,null,"Owner-Occupied Rehabilitation Programs (Article 5) & Technical Assistance for Shared Housing Programs (Article 7)",null,"Other"]
[null,null,null,null,null,null,null,"Owner-Occupied Rehabilitation Programs (Article 5) & ADU/JADU Programs (Article 8)"]
[null,null,null,null,null,null,null,"Technical Assistance for Shared Housing Programs (Article 7)"]
[null,null,null,null,null,null,null,"Technical Assistance for Shared Housing Programs (Article 7) & ADU/JADU Programs (Article 8)"]
[null,null,null,null,null,null,null,"ADU/JADU Programs (Article 8)"]
[null,null,null,null,null,null,null,"Projects"]
[]
[null,null,null,null,null,null,null,"Homeownership Development Project Loans (Article 9)"]
[null,null,null,null,null,null,null,"Homeownership Development Project Loans (Article 9) & Technical Assistance for Self-Help Housing Projects (Article 6)"]
[null,null,null,null,null,null,null,"Technical Assistance for Self-Help Housing Projects (Article 6)"]